Workbook

Sheet Info Semanal-Mensual
A1: CENTRO DE EXPORTADORES DE CEREALES (C.E.C.) | E1: CENTRO DE EXPORTADORES DE CEREALES (C.E.C.) | I1: CENTRO DE EXPORTADORES DE CEREALES (C.E.C.) | M1: CENTRO DE EXPORTADORES DE CEREALES (C.E.C.) | Q1: CENTRO DE EXPORTADORES DE CEREALES (C.E.C.) | U1: CENTRO DE EXPORTADORES DE CEREALES (C.E.C.) | Z1: CENTRO DE EXPORTADORES DE CEREALES (C.E.C.) | AF1: CENTRO DE EXPORTADORES DE CEREALES (C.E.C.) | AL1: CENTRO DE EXPORTADORES DE CEREALES (C.E.C.) | AP1: CENTRO DE EXPORTADORES DE CEREALES (C.E.C.) | AT1: CENTRO DE EXPORTADORES DE CEREALES (C.E.C.) | AX1: CENTRO DE EXPORTADORES DE CEREALES (C.E.C.) | BB1: CENTRO DE EXPORTADORES DE CEREALES (C.E.C.) | BF1: CENTRO DE EXPORTADORES DE CEREALES (C.E.C.) | BJ1: CENTRO DE EXPORTADORES DE CEREALES (C.E.C.) | BN1: CENTRO DE EXPORTADORES DE CEREALES (C.E.C.) | BR1: CENTRO DE EXPORTADORES DE CEREALES (C.E.C.) | BV1: CENTRO DE EXPORTADORES DE CEREALES (C.E.C.) | BZ1: CENTRO DE EXPORTADORES DE CEREALES (C.E.C.) | CD1: CENTRO DE EXPORTADORES DE CEREALES (C.E.C.) | CH1: CENTRO DE EXPORTADORES DE CEREALES (C.E.C.) | CL1: CENTRO DE EXPORTADORES DE CEREALES (C.E.C.) | CQ1: CENTRO DE EXPORTADORES DE CEREALES (C.E.C.) | CW1: CENTRO DE EXPORTADORES DE CEREALES (C.E.C.) | DC1: CENTRO DE EXPORTADORES DE CEREALES (C.E.C.)
A2: CÁMARA DE LA INDUSTRIA ACEITERA DE LA REPÚBLICA ARGENTINA (C.I.A.R.A.) | E2: CÁMARA DE LA INDUSTRIA ACEITERA DE LA REPÚBLICA ARGENTINA (C.I.A.R.A.) | I2: CÁMARA DE LA INDUSTRIA ACEITERA DE LA REPÚBLICA ARGENTINA (C.I.A.R.A.) | M2: CÁMARA DE LA INDUSTRIA ACEITERA DE LA REPÚBLICA ARGENTINA (C.I.A.R.A.) | Q2: CÁMARA DE LA INDUSTRIA ACEITERA DE LA REPÚBLICA ARGENTINA (C.I.A.R.A.) | U2: CÁMARA DE LA INDUSTRIA ACEITERA DE LA REPÚBLICA ARGENTINA (C.I.A.R.A.) | Z2: CÁMARA DE LA INDUSTRIA ACEITERA DE LA REPÚBLICA ARGENTINA (C.I.A.R.A.) | AF2: CÁMARA DE LA INDUSTRIA ACEITERA DE LA REPÚBLICA ARGENTINA (C.I.A.R.A.) | AL2: CÁMARA DE LA INDUSTRIA ACEITERA DE LA REPÚBLICA ARGENTINA (C.I.A.R.A.) | AP2: CÁMARA DE LA INDUSTRIA ACEITERA DE LA REPÚBLICA ARGENTINA (C.I.A.R.A.) | AT2: CÁMARA DE LA INDUSTRIA ACEITERA DE LA REPÚBLICA ARGENTINA (C.I.A.R.A.) | AX2: CÁMARA DE LA INDUSTRIA ACEITERA DE LA REPÚBLICA ARGENTINA (C.I.A.R.A.) | BB2: CÁMARA DE LA INDUSTRIA ACEITERA DE LA REPÚBLICA ARGENTINA (C.I.A.R.A.) | BF2: CÁMARA DE LA INDUSTRIA ACEITERA DE LA REPÚBLICA ARGENTINA (C.I.A.R.A.) | BJ2: CÁMARA DE LA INDUSTRIA ACEITERA DE LA REPÚBLICA ARGENTINA (C.I.A.R.A.) | BN2: CÁMARA DE LA INDUSTRIA ACEITERA DE LA REPÚBLICA ARGENTINA (C.I.A.R.A.) | BR2: CÁMARA DE LA INDUSTRIA ACEITERA DE LA REPÚBLICA ARGENTINA (C.I.A.R.A.) | BV2: CÁMARA DE LA INDUSTRIA ACEITERA DE LA REPÚBLICA ARGENTINA (C.I.A.R.A.) | BZ2: CÁMARA DE LA INDUSTRIA ACEITERA DE LA REPÚBLICA ARGENTINA (C.I.A.R.A.) | CD2: CÁMARA DE LA INDUSTRIA ACEITERA DE LA REPÚBLICA ARGENTINA (C.I.A.R.A.) | CH2: CÁMARA DE LA INDUSTRIA ACEITERA DE LA REPÚBLICA ARGENTINA (C.I.A.R.A.) | CL2: CÁMARA DE LA INDUSTRIA ACEITERA DE LA REPÚBLICA ARGENTINA (C.I.A.R.A.) | CQ2: CÁMARA DE LA INDUSTRIA ACEITERA DE LA REPÚBLICA ARGENTINA (C.I.A.R.A.) | CW2: CÁMARA DE LA INDUSTRIA ACEITERA DE LA REPÚBLICA ARGENTINA (C.I.A.R.A.) | DC2: CÁMARA DE LA INDUSTRIA ACEITERA DE LA REPÚBLICA ARGENTINA (C.I.A.R.A.)
A4: LIQUIDACION DE DIVISAS DE LOS INDUSTRIALES DE OLEAGINOSOS | E4: LIQUIDACION DE DIVISAS DE LOS INDUSTRIALES DE OLEAGINOSOS | I4: LIQUIDACION DE DIVISAS DE LOS INDUSTRIALES DE OLEAGINOSOS | M4: LIQUIDACION DE DIVISAS DE LOS INDUSTRIALES DE OLEAGINOSOS | Q4: LIQUIDACION DE DIVISAS DE LOS INDUSTRIALES DE OLEAGINOSOS | U4: LIQUIDACION DE DIVISAS DE LOS INDUSTRIALES DE OLEAGINOSOS | Z4: LIQUIDACION DE DIVISAS DE LOS INDUSTRIALES DE OLEAGINOSOS | AF4: LIQUIDACION DE DIVISAS DE LOS INDUSTRIALES DE OLEAGINOSOS | AL4: LIQUIDACION DE DIVISAS DE LOS INDUSTRIALES DE OLEAGINOSOS | AP4: LIQUIDACION DE DIVISAS DE LOS INDUSTRIALES DE OLEAGINOSOS | AT4: LIQUIDACION DE DIVISAS DE LOS INDUSTRIALES DE OLEAGINOSOS | AX4: LIQUIDACION DE DIVISAS DE LOS INDUSTRIALES DE OLEAGINOSOS | BB4: LIQUIDACION DE DIVISAS DE LOS INDUSTRIALES DE OLEAGINOSOS | BF4: LIQUIDACION DE DIVISAS DE LOS INDUSTRIALES DE OLEAGINOSOS | BJ4: LIQUIDACION DE DIVISAS DE LOS INDUSTRIALES DE OLEAGINOSOS | BN4: LIQUIDACION DE DIVISAS DE LOS INDUSTRIALES DE OLEAGINOSOS | BR4: LIQUIDACION DE DIVISAS DE LOS INDUSTRIALES DE OLEAGINOSOS | BV4: LIQUIDACION DE DIVISAS DE LOS INDUSTRIALES DE OLEAGINOSOS | BZ4: LIQUIDACION DE DIVISAS DE LOS INDUSTRIALES DE OLEAGINOSOS | CD4: LIQUIDACION DE DIVISAS DE LOS INDUSTRIALES DE OLEAGINOSOS | CH4: LIQUIDACION DE DIVISAS DE LOS INDUSTRIALES DE OLEAGINOSOS | CL4: LIQUIDACION DE DIVISAS DE LOS INDUSTRIALES DE OLEAGINOSOS | CQ4: LIQUIDACION DE DIVISAS DE LOS INDUSTRIALES DE OLEAGINOSOS | CW4: LIQUIDACION DE DIVISAS DE LOS INDUSTRIALES DE OLEAGINOSOS | DC4: LIQUIDACION DE DIVISAS DE LOS INDUSTRIALES DE OLEAGINOSOS
A5: Y EXPORTADORES DE CEREALES | E5: Y EXPORTADORES DE CEREALES | I5: Y EXPORTADORES DE CEREALES | M5: Y EXPORTADORES DE CEREALES | Q5: Y EXPORTADORES DE CEREALES | U5: Y EXPORTADORES DE CEREALES | Z5: Y EXPORTADORES DE CEREALES | AF5: Y EXPORTADORES DE CEREALES | AL5: Y EXPORTADORES DE CEREALES | AP5: Y EXPORTADORES DE CEREALES | AT5: Y EXPORTADORES DE CEREALES | AX5: Y EXPORTADORES DE CEREALES | BB5: Y EXPORTADORES DE CEREALES | BF5: Y EXPORTADORES DE CEREALES | BJ5: Y EXPORTADORES DE CEREALES | BN5: Y EXPORTADORES DE CEREALES | BR5: Y EXPORTADORES DE CEREALES y COMPRAS MAYORISTAS DEL BCRA | BV5: Y EXPORTADORES DE CEREALES y COMPRAS MAYORISTAS DEL BCRA | BZ5: Y EXPORTADORES DE CEREALES y COMPRAS MAYORISTAS DEL BCRA | CD5: Y EXPORTADORES DE CEREALES y COMPRAS MAYORISTAS DEL BCRA | CH5: Y EXPORTADORES DE CEREALES y COMPRAS MAYORISTAS DEL BCRA | CL5: Y EXPORTADORES DE CEREALES y COMPRAS MAYORISTAS DEL BCRA | CQ5: Y EXPORTADORES DE CEREALES y COMPRAS MAYORISTAS DEL BCRA | CW5: Y EXPORTADORES DE CEREALES y COMPRAS MAYORISTAS DEL BCRA | DC5: Y EXPORTADORES DE CEREALES y COMPRAS MAYORISTAS DEL BCRA
A6: (en dólares estadounidenses) | E6: (en dólares estadounidenses) | I6: (en dólares estadounidenses) | M6: (en dólares estadounidenses) | Q6: (en dólares estadounidenses) | U6: (en dólares estadounidenses) | Z6: (en dólares estadounidenses) | AF6: (en dólares estadounidenses) | AL6: (en dólares estadounidenses) | AP6: (en dólares estadounidenses) | AT6: (en dólares estadounidenses) | AX6: (en dólares estadounidenses) | BB6: (en dólares estadounidenses) | BF6: (en dólares estadounidenses) | BJ6: (en dólares estadounidenses) | BN6: (en dólares estadounidenses) | BR6: (en dólares estadounidenses) | BV6: (en dólares estadounidenses) | BZ6: (en dólares estadounidenses) | CD6: (en dólares estadounidenses) | CH6: (en dólares estadounidenses) | CL6: (en dólares estadounidenses) | CQ6: (en dólares estadounidenses) | CW6: (en dólares estadounidenses) | DC6: (en dólares estadounidenses)
B7: Liquidacion del | C7: Acumulado | F7: Liquidacion del | G7: Acumulado | J7: Liquidacion del | K7: Acumulado | N7: Liquidacion del | O7: Acumulado | R7: Liquidacion del | S7: Acumulado | V7: Liquidacion del | W7: Acumulado | AA7: Liquidacion del | AB7: Acumulado | AG7: Liquidacion del | AH7: Acumulado | AM7: Liquidacion del | AN7: Acumulado | AQ7: Liquidacion de | AR7: Acumulado | AU7: Liquidacion de | AV7: Acumulado | AY7: Liquidacion de | AZ7: Acumulado | BC7: Liquidacion de | BD7: Acumulado | BG7: Liquidacion de | BH7: Acumulado | BK7: Liquidacion de | BL7: Acumulado | BO7: Liquidacion de | BP7: Acumulado | BS7: Liquidacion de | BT7: Acumulado | BW7: Liquidacion de | BX7: Acumulado | CB7: Acumulado | CE7: Liquidacion de | CF7: Acumulado | CI7: Liquidacion de | CJ7: Acumulado | CN7: Acumulado | CO7: Tipo de Cambio de Referencia (*) | CS7: Acumulado | CT7: Intervención | CU7: Tipo de Cambio (*) | CY7: Acumulado | CZ7: Intervención | DA7: Tipo de Cambio (*) | DE7: Acumulado | DF7: Intervención | DG7: Tipo de Cambio (*)
A8: Mensual | B8: mes | C8: desde el 1 de Enero | E8: Mensual | F8: mes | G8: desde el 1 de Enero | I8: Mensual | J8: mes | K8: desde el 1 de Enero | M8: Mensual | N8: mes | O8: desde el 1 de Enero | Q8: Mensual | R8: mes | S8: desde el 1 de Enero | U8: Mensual | V8: mes | W8: desde el 1 de Enero | Z8: Mensual | AA8: mes | AB8: desde el 1 de Enero | AF8: Mensual | AG8: mes | AH8: desde el 1 de Enero | AL8: Mensual | AM8: mes | AN8: desde el 1 de Enero | AP8: Semana | AQ8: la Semana | AR8: desde el 1 de Enero | AT8: Semana | AU8: la Semana | AV8: desde el 1 de Enero | AX8: Semana | AY8: la Semana | AZ8: desde el 1 de Enero | BB8: Semana | BC8: la Semana | BD8: desde el 1 de Enero | BF8: Semana | BG8: la Semana | BH8: desde el 1 de Enero | BJ8: Semana | BK8: la Semana | BL8: desde el 1 de Enero | BN8: Semana | BO8: la Semana | BP8: desde el 1 de Enero | BR8: Semana | BS8: la Semana | BT8: desde el 1 de Enero | BV8: Semana | BW8: la Semana | BX8: desde el 1 de Enero | BZ8: Fecha | CA8: Del Día/Semana | CB8: desde el 1 de Enero | CD8: Semana | CE8: la Semana | CF8: desde el 1 de Enero | CH8: Semana | CI8: la Semana | CJ8: desde el 1 de Enero | CL8: Fecha | CM8: Del Día/Semana | CN8: desde el 1 de Enero | CO8: en $ x U$S | CQ8: Fecha | CR8: Del Día/Semana | CS8: desde el 1 de Enero | CT8: del BCRA | CU8: en $ x U$S | CW8: Fecha | CX8: Del Día/Semana | CY8: desde el 1 de Enero | CZ8: del BCRA | DA8: en $ x U$S | DC8: Fecha | DD8: Del Día/Semana | DE8: desde el 24 de Mayo | DF8: del BCRA | DG8: en $ x U$S
A9: Del 2 al 31 de Enero de 2025 | B9: 2073499162 | C9: 2073499162 | E9: Del 2 al 31 de Enero de 2024 | F9: 1522414786 | G9: 1522414786 | I9: Del 2 al 31 de Enero de 2023 | J9: 928372001 | K9: 928372001 | M9: Del 2 al 31 de Enero de 2022 | N9: 2441646546 | O9: 2441646546 | Q9: Del 2 al 31 de Enero de 2021 | R9: 2140354575 | S9: 2140354575 | U9: Del 2 al 31 de Enero de 2021 | V9: 2140354575 | W9: 2140354575 | Z9: Del 2 al 31 de Enero de 2020 | AA9: 1613756421 | AB9: 1613756421 | AF9: Del 1 al 31 de Enero de 2019 | AG9: 1755694136 | AH9: 1755694136 | AL9: Del 2 al 31 de Enero de 2018 | AM9: 1879151216 | AN9: 1879151216
A10: Del 3 al 28 de Febrero de 2025 | E10: Del 1 al 29 de Febrero de 2024 | F10: 1499345762 | G10: =G9+F10 -> 3021760548 | I10: Del 1 al 28 de Febrero de 2023 | J10: 644961511 | K10: =K9+J10 -> 1573333512 | M10: Del 1 al 25 de Febrero de 2022 | N10: 2500397358 | O10: =O9+N10 -> 4942043904 | Q10: De 1 al 26 de Febrero de 2021 | R10: 1810076157 | S10: =+S9+R10 -> 3950430732 | U10: De 1 al 26 de Febrero de 2021 | V10: 1810076157 | W10: =+W9+V10 -> 3950430732 | Z10: Del 3 al 28 de Febrero de 2020 | AA10: 815063096 | AB10: =+AB9+AA10 -> 2428819517 | AF10: Del 1al 28 de Febrero de 2019 | AG10: 1290339768 | AH10: =SUM(AH9+AG10) -> 3046033904 | AL10: Del 1 al 28 de Febrero de 2018 | AM10: 1378551615 | AN10: =SUM(AN9+AM10) -> 3257702831 | AP10: Del 2 al 6 de Enero de 2017 | AQ10: 294202088 | AR10: 294202088 | AT10: Del 4 al 8 de Enero de 2016 | AU10: 869746065 | AV10: 869746065 | AX10: 02 de enero de 2015 | AY10: 37274469 | AZ10: 37274469 | BB10: Del 02 al 03 de enero de 2014 | BC10: 75055836 | BD10: 75055836 | BF10: Del 02 al 04 de Enero de 2013 | BG10: 111285602 | BH10: 111285602 | BJ10: Del 02 al 06 de enero de 2012 | BK10: 356970567 | BL10: 356970567 | BN10: Del 03 al 07 de enero de 2011 | BO10: 273925005 | BP10: 273925005 | BR10: Del 04 al 08 de Enero de 2010 | BS10: 284898153 | BT10: 284898153 | BV10: Del 05 al 09 de Enero de 2009 | BW10: 455964875 | BX10: 455964875 | BZ10: Del 2 al 4 de Enero de 2008 | CA10: 155644354 | CB10: =+CA10 -> 155644354 | CD10: Del 2 al 5 de Enero de 2007 | CE10: 281555632 | CF10: =+CE10 -> 281555632 | CH10: Del 2 al 6 de Enero de 2006 | CI10: 109244466 | CJ10: =+CI10 -> 109244466 | CL10: 03 de Enero de 2005 | CM10: 27783488 | CN10: =+CM10 -> 27783488 | CO10: 2.9653 | CQ10: 02 de Enero de 2004 | CR10: 37951371 | CS10: =+CR10 -> 37951371 | CT10: 36381000 | CU10: 2.9243 | CW10: 02 de Enero de 2003 | CX10: 48978494 | CY10: =+CX10 -> 48978494 | CZ10: 29370000 | DA10: 3.3625 | DC10: 24 de Mayo de 2002 | DD10: 35096054 | DE10: =+DD10 -> 35096054 | DF10: s/d | DG10: 3.4283
A11: Del 3 al 31 de Marzo de 2025 | E11: Del 1 al 31 de Marzo de 2024 | F11: 1501843144 | G11: 4523603692 | I11: Del 1al 31 de Marzo de 2023 | J11: 1228670903 | K11: 2802004415 | M11: Del 1 al 31 de Marzo de 2022 | N11: 2984037264 | O11: 7926081168 | Q11: Del 1 al 31 de Marzo de 2021 | R11: 2773576208 | S11: 6724006940 | U11: Del 1 al 31 de Marzo de 2021 | V11: 2773576208 | W11: 6724006940 | Z11: Del 2 al 31 de Marzo de 2020 | AA11: 1064321944 | AB11: 3493141461 | AF11: Del 1 al 29 de Marzo de 2019 | AG11: 1143379287 | AH11: 4189413191 | AL11: Del 01 al 28 de Marzo de 2018 | AM11: 1423059120 | AN11: 4680761951 | AP11: Del 9 al 13 de Enero de 2017 | AQ11: 438876685 | AR11: =SUM(AR10+AQ11) -> 733078773 | AT11: Del 11 al 15 de Enero de 2016 | AU11: 741148219 | AV11: =SUM(AV10+AU11) -> 1610894284 | AX11: Del 05 al 09 de enero de 2015 | AY11: 274381406 | AZ11: =SUM(AZ10+AY11) -> 311655875 | BB11: Del 06 al 10 de enero de 2014 | BC11: 314200402 | BD11: =SUM(BD10+BC11) -> 389256238 | BF11: Del 07 al 11 de Enero de 2013 | BG11: 399263013 | BH11: =SUM(BH10+BG11) -> 510548615 | BJ11: Del 09 al 13 de enero de 2012 | BK11: 468259215 | BL11: =SUM(BL10+BK11) -> 825229782 | BN11: Del 10 al 14 de enero de 2011 | BO11: 398139191 | BP11: =SUM(BP10+BO11) -> 672064196 | BR11: Del 11 al 15 de Enero de 2010 | BS11: 233587751 | BT11: =SUM(BS11+BT10) -> 518485904 | BV11: Del 12 al 16 de Enero de 2009 | BW11: 434306564 | BX11: =SUM(BX10+BW11) -> 890271439 | BZ11: Del 7 al 11 de Enero de 2008 | CA11: 449973103 | CB11: =+CA11+CB10 -> 605617457 | CD11: Del 8 al 12 de Enero de 2007 | CE11: 229554943 | CF11: =+CE11+CF10 -> 511110575 | CH11: Del 9 al 13 de Enero de 2006 | CI11: 187940560 | CJ11: =+CI11+CJ10 -> 297185026 | CL11: 04 de Enero de 2005 | CM11: 20870594 | CN11: =+CM11+CN10 -> 48654082 | CO11: 2.9705 | CQ11: 05 de Enero de 2004 | CR11: 36929243 | CS11: =+CR11+CS10 -> 74880614 | CT11: 35002000 | CU11: 2.8922 | CW11: 03 de Enero de 2003 | CX11: 45596005 | CY11: =+CX11+CY10 -> 94574499 | CZ11: 61460000 | DA11: 3.3328 | DC11: 27 de Mayo de 2002 | DD11: 23307950 | DE11: =+DE10+DD11 -> 58404004 | DF11: s/d | DG11: 3.4483
A12: Del 1 al 30 de Abril de 2025 | E12: Del 1 al 30 de Abril de 2024 | F12: 1909880386 | G12: 6433484078 | I12: Del 1 al 30 de Abril de 2023 | J12: 2435229359 | K12: 5237233774 | M12: Del 1 al 29 de Abril de 2022 | N12: 3171793606 | O12: 11097874774 | Q12: Del 1 al 30 de Abril de 2021 | R12: 3031403008 | S12: 9755409948 | U12: Del 1 al 30 de Abril de 2021 | V12: 3031403008 | W12: 9755409948 | Z12: Del 1 al 30 de Abril de 2020 | AA12: 1524445457 | AB12: 5017586918 | AF12: Del 1 al 30 de Abril de 2019 | AG12: 1915008217 | AH12: 6104421408 | AL12: Del 03 al 27 de Abril de 2018 | AM12: 1376332358 | AN12: 6057094309 | AP12: Del 16 al 20 de Enero de 2017 | AQ12: 537757654 | AR12: 1270836427 | AT12: Del 18 al 22 de Enero de 2016 | AU12: 455238379 | AV12: 2066132663 | AX12: Del 12 al 16 de enero de 2015 | AY12: 324115265 | AZ12: 635771140 | BB12: Del 13 al 17 de enero de 2014 | BC12: 304384268 | BD12: 693640506 | BF12: Del 14 al 18 de Enero de 2013 | BG12: 285900273 | BH12: 796448888 | BJ12: Del 16 al 20 de enero de 2012 | BK12: 359046807 | BL12: 1184276589 | BN12: Del 17 al 21 de enero de 2011 | BO12: 400338244 | BP12: 1072402440 | BR12: Del 18 al 22 de Enero de 2010 | BS12: 219643489 | BT12: 738129393 | BV12: Del 19 al 23 de Enero de 2009 | BW12: 341167396 | BX12: 1231438835 | BZ12: Del 14 al 18 de Enero de 2008 | CA12: 408479899 | CB12: 1014097356 | CD12: Del 15 al 19 de Enero de 2007 | CE12: 178428931 | CF12: 689539506 | CH12: Del 16 al 20 de Enero de 2006 | CI12: 215501030 | CJ12: 512686056 | CL12: 05 de Enero de 2005 | CM12: 30687672 | CN12: 79341754 | CO12: 2.9712 | CQ12: 06 de Enero de 2004 | CR12: 46029610 | CS12: 120910224 | CT12: 33527000 | CU12: 2.8573 | CW12: 06 de Enero de 2003 | CX12: 22294935 | CY12: 116869434 | CZ12: 51680000 | DA12: 3.329 | DC12: 28 de Mayo de 2002 | DD12: 19946498 | DE12: 78350502 | DF12: s/d | DG12: 3.4517
A13: Del 2 al 30 de Mayo de 2025 | E13: Del 2 al 31 de Mayo de 2024 | F13: 2612599569 | G13: 9046083647 | I13: Del 1 al 31 de Mayo de 2023 | J13: 4212734119 | K13: 9449967893 | M13: Del 1 al 31 de Mayo de 2022 | N13: 4231717716 | O13: 15329592490 | Q13: Del 1 al 31 de Mayo de 2021 | R13: 3545921486 | S13: 13301331434 | U13: Del 1 al 31 de Mayo de 2021 | V13: 3545921486 | W13: 13301331434 | Z13: Del 4 al 29 de Mayo de 2020 | AA13: 1945672172 | AB13: 6963259090 | AF13: Del 1 al 31 de Mayo de 2019 | AG13: 2395285841 | AH13: 8499707249 | AL13: Del 02 al 31 de Mayo de 2018 | AM13: 1677797871 | AN13: 7734892180 | AP13: Del 23 al 27 de Enero de 2017 | AQ13: 567902541 | AR13: 1838738968 | AT13: Del 25 al 29 de Enero de 2016 | AU13: 411080081 | AV13: 2477212744 | AX13: Del 19 al 23 de enero de 2015 | AY13: 213929547 | AZ13: 849700687 | BB13: Del 20 al 24 de enero de 2014 | BC13: 266443711 | BD13: 960084217 | BF13: Del 21 al 25 de Enero de 2013 | BG13: 300091444 | BH13: 1096540332 | BJ13: Del 23 al 27 de enero de 2012 | BK13: 356704461 | BL13: 1540981050 | BN13: Del 24 al 28 de enero de 2011 | BO13: 358100151 | BP13: 1430502591 | BR13: Del 25 al 29 de Enero de 2010 | BS13: 256568290 | BT13: 994697683 | BV13: Del 26 al 30 de Enero de 2009 | BW13: 321931585 | BX13: 1553370420 | BZ13: Del 21 al 25 de enero de 2008 | CA13: 317085219 | CB13: 1331182575 | CD13: Del 22 al 26 de Enero de 2007 | CE13: 202511597 | CF13: 892051103 | CH13: Del 23 al 27 de Enero de 2006 | CI13: 241517743 | CJ13: 754203799 | CL13: 06 de Enero de 2005 | CM13: 49779707 | CN13: 129121461 | CO13: 2.9718 | CQ13: 07 de Enero de 2004 | CR13: 27736800 | CS13: 148647024 | CT13: 35899000 | CU13: 2.873 | CW13: 07 de Enero de 2003 | CX13: 70817145 | CY13: 187686579 | CZ13: 101980000 | DA13: 3.2888 | DC13: 29 de Mayo de 2002 | DD13: 38053168 | DE13: 116403670 | DF13: s/d | DG13: 3.5433
A14: Del 2 al 30 de Junio de 2025 | E14: Del 3 al 28 de Junio de 2024 | F14: 1977926224 | G14: 11024009871 | I14: Del 1 al 30 de Junio de 2023 | J14: 1581687598 | K14: 11031655491 | M14: Del 1 al 30 de Junio de 2022 | N14: 3815369692 | O14: 19144962182 | Q14: Del 1 al 30 de Junio de 2021 | R14: 3358404256 | S14: 16659735690 | U14: Del 1 al 30 de Junio de 2021 | V14: 3358404256 | W14: 16659735690 | Z14: Del 1 al 30 de Junio de 2020 | AA14: 2343986868 | AB14: 9307245958 | AF14: Del 1 al 28 de Junio de 2019 | AG14: 2218876896 | AH14: 10718584145 | AL14: Del 01 al 29 de Junio de 2018 | AM14: 3833254488 | AN14: 11568146668 | AP14: Del 30 de Enero al 3 de Febrero de 2017 | AQ14: 442363991 | AR14: 2281102959 | AT14: Del 01 al 05 de Febrero de 2016 | AU14: 549171683 | AV14: 3026384427 | AX14: Del 26 al 30 de enero de 2015 | AY14: 237190594 | AZ14: 1086891281 | BB14: Del 27 al 31 de enero de 2014 | BC14: 108940642 | BD14: 1069024859 | BF14: Del 28 al 01 de Febrero de 2013 | BG14: 253181934 | BH14: 1349722266 | BJ14: Del 30 de enero al 03 de febrero de 2012 | BK14: 399037930 | BL14: 1940018980 | BN14: Del 31 de enero al 04 de febrero de 2011 | BO14: 262461142 | BP14: 1692963733 | BR14: Del 01 al 05 de Febrero de 2010 | BS14: 220201556 | BT14: 1214899239 | BV14: Del 02 al 06 de Febrero de 2009 | BW14: 186428247 | BX14: 1739798667 | BZ14: Del 28 de enero al 1de febrero 2008 | CA14: 405699715 | CB14: 1736882290 | CD14: Del 29 de Enero al 2 de Febrero | CE14: 215305594 | CF14: 1107356697 | CH14: Del 30 de Enero al 03 de Febrero de 2006 | CI14: 230659141 | CJ14: 984862940 | CL14: 07 de Enero de 2005 | CM14: 35438129 | CN14: 164559590 | CO14: 2.9653 | CQ14: 08 de Enero de 2004 | CR14: 72410257 | CS14: 221057281 | CT14: 35430000 | CU14: 2.8902 | CW14: 08 de Enero de 2003 | CX14: 13242866 | CY14: 200929445 | CZ14: 45780000 | DA14: 3.2935 | DC14: 30 de Mayo de 2002 | DD14: 33378870 | DE14: 149782540 | DF14: s/d | DG14: 3.5917
A15: Del 1 al 31 de Julio de 2025 | E15: Del 1 al 31 de Julio de 2024 | F15: 2616153519 | G15: 13640163390 | I15: Del 1 al 31 de Julio de 2023 | J15: 1925038614 | K15: 12956694105 | M15: Del 1 al 31 de Julio de 2022 | N15: 3164056788 | O15: 22309018970 | Q15: Del 1 al 30 de Julio de 2021 | R15: 3519721211 | S15: 20179456901 | U15: Del 1 al 30 de Julio de 2021 | V15: 3519721211 | W15: 20179456901 | Z15: Del 1 al 31 de Julio de 2020 | AA15: 2296072801 | AB15: 11603318759 | AF15: Del 1 al 31 de Julio de 2019 | AG15: 2253962831 | AH15: 12972546976 | AL15: Del 02 al 31 de Julio de 2018 | AM15: 2701252139 | AN15: 14269398807 | AP15: Del 06 al 10 de Febrero de 2017 | AQ15: 312649339 | AR15: 2593752298 | AT15: Del 10 al 12 de Febrero de 2016 | AU15: 282303296 | AV15: 3308687723 | AX15: Del 02 al 06 de febrero de 2015 | AY15: 256220639 | AZ15: 1343111920 | BB15: Del 03 al 07 de febrero de 2014 | BC15: 419388211 | BD15: 1488413070 | BF15: Del 04 al 08 de Febero de 2013 | BG15: 240081996 | BH15: 1589804262 | BJ15: Del 06 al 10 de Febrero de 2012 | BK15: 351209585 | BL15: 2291228565 | BN15: Del 07 al 11 de Febrero de 2011 | BO15: 293265242 | BP15: 1986228975 | BR15: Del 08 al 12 de Febrero de 2010 | BS15: 291999659 | BT15: 1506898898 | BV15: Del 09 al 13 de Febrero de 2009 | BW15: 360065725 | BX15: 2099864392 | BZ15: Del 4 al 8 de Febrero de 2008 | CA15: 367288527 | CB15: 2104170817 | CD15: Del 5 al 9 de Febrero de 2007 | CE15: 166267829 | CF15: 1273624526 | CH15: Del 06 al 10 de Febrero de 2006 | CI15: 215908465 | CJ15: 1200771405 | CL15: 10 de Enero de 2005 | CM15: 27069395 | CN15: 191628985 | CO15: 2.967 | CQ15: 09 de Enero de 2004 | CR15: 64576823 | CS15: 285634104 | CT15: 35033000 | CU15: 2.8892 | CW15: 09 de Enero de 2003 | CX15: 20557612 | CY15: 221487057 | CZ15: 7840000 | DA15: 3.3143 | DC15: 31 de Mayo de 2002 | DD15: 29461883.6 | DE15: 179244423.6 | DF15: s/d | DG15: 3.575
A16: Del 1 al 29 de Agosto de 2025 | E16: Del 1 al 30 de Agosto de 2024 | F16: 2451504224 | G16: 16091667614 | I16: Del 1 al 31 de Agosto de 2023 | J16: 1746316659 | K16: 14703010764 | M16: Del 1 al 31 de Agosto de 2022 | N16: 3387888431 | O16: 25696907401 | Q16: Del 1 al 31 de Agosto de 2021 | R16: 3049781726 | S16: 23229238627 | U16: Del 1 al 31 de Agosto de 2021 | V16: 3049781726 | W16: 23229238627 | Z16: Del 1 al 31 de Agosto de 2020 | AA16: 1743000372 | AB16: 13346319131 | AF16: Del 1 al 30 de Agosto de 2019 | AG16: 2266086002 | AH16: 15238632978 | AL16: Del 01 al 31 de Agosto de 2018 | AM16: 1604869934 | AN16: 15874268741 | AP16: Del 13 al 17 de Febrero de 2017 | AQ16: 334475158 | AR16: 2928227456 | AT16: Del 15 al 19 de Febrero de 2016 | AU16: 406628026 | AV16: 3715315749 | AX16: Del 09 al 13 de febrero de 2015 | AY16: 290050055 | AZ16: 1633161975 | BB16: Del 10 al 14 de febrero de 2014 | BC16: 496433184 | BD16: 1984846254 | BF16: Del 11 al 15 de Febrero de 2013 | BG16: 219379290 | BH16: 1809183552 | BJ16: Del 13 al 17 de febrero de 2012 | BK16: 330060741 | BL16: 2621289306 | BN16: Del 14 al 18 de Febrero de 2011 | BO16: 294660510 | BP16: 2280889485 | BR16: Del 15 al 19 de Febrero de 2010 | BS16: 240985109 | BT16: 1747884007 | BV16: Del 16 al 20 de Febrero de 2009 | BW16: 293866413 | BX16: 2393730805 | BZ16: Del 11 al 15 de Febrero de 2008 | CA16: 368238404 | CB16: 2472409221 | CD16: Del 12 al 16 de Febrero de 2007 | CE16: 217967126 | CF16: 1491591652 | CH16: Del 13 al 17 de Febrero de 2006 | CI16: 209584764 | CJ16: 1410356169 | CL16: 11 de Enero de 2005 | CM16: 32579717 | CN16: 224208702 | CO16: 2.9653 | CQ16: 12 de Enero de 2004 | CR16: 54166264 | CS16: 339800368 | CT16: 29013000 | CU16: 2.8663 | CW16: 10 de Enero de 2003 | CX16: 25117690 | CY16: 246604747 | CZ16: -7640000 | DA16: 3.3533 | DC16: 3 de Junio de 2002 | DD16: 24018441.65 | DE16: 203262865.3 | DF16: 34000000 | DG16: 3.5942
A17: Del 1 al 30 de Septiembre de 2025 | E17: Del 2 al 30 de Septiembre de 2024 | F17: 2480519150 | G17: 18572186764 | I17: Del 1 al 30 de Septiembre de 2023 | J17: 2045759836 | K17: 16748770600 | M17: Del 1 al 30 de Septiembre de 2022 | N17: 8120315975 | O17: 33817223376 | Q17: Del 1al 30 de Septiembre de 2021 | R17: 2441073417 | S17: 25670312044 | U17: Del 1al 30 de Septiembre de 2021 | V17: 2441073417 | W17: 25670312044 | Z17: Del 1 al 30 de Septiembre de 2020 | AA17: 1787449659 | AB17: 15133768790 | AF17: Del 2 al 30 de Septiembre de 2019 | AG17: 2093638249 | AH17: 17332271227 | AL17: Del 03 al 28 de Setiembre de 2018 | AM17: 1310629612 | AN17: 17184898353 | AP17: Del 20 al 24 de Febrero de 2017 | AQ17: 222538269 | AR17: 3150765725 | AT17: Del 22 al 26 de Febrero de 2016 | AU17: 353189747 | AV17: 4068505496 | AX17: Del 18 al 20 de febrero de 2015 | AY17: 179976450 | AZ17: 1813138425 | BB17: Del 17 al 21 de febrero de 2014 | BC17: 280159585 | BD17: 2265005839 | BF17: Del 18 al 22 de Febrero de 2013 | BG17: 171285233 | BH17: 1980468785 | BJ17: Del 22 al 24 de febrero de 2012 | BK17: 229275268 | BL17: 2850564574 | BN17: Del 21 al 25 de Febrero de 2011 | BO17: 366848833 | BP17: 2647738318 | BR17: Del 22 al 26 de Febrero de 2010 | BS17: 268556520 | BT17: 2016440527 | BV17: Del 23 al 27 de Febrero de 2009 | BW17: 272298310 | BX17: 2666029115 | BZ17: Del 18 al 22 de Febrero de 2008 | CA17: 369751420 | CB17: 2842160641 | CD17: Del 19 al 23 de Febrero de 2007 | CE17: 127919154 | CF17: 1619510806 | CH17: Del 20 al 24 de Febrero de 2006 | CI17: 142572489 | CJ17: 1552928658 | CL17: 12 de Enero de 2005 | CM17: 26963851 | CN17: 251172553 | CO17: 2.9538 | CQ17: 13 de Enero de 2004 | CR17: 53113546 | CS17: 392913914 | CT17: 29701000 | CU17: 2.8567 | CW17: 13 de Enero de 2003 | CX17: 32733383 | CY17: 279338130 | CZ17: 25630000 | DA17: 3.345 | DC17: 4 de Junio de 2002 | DD17: 36925703 | DE17: 240188568.3 | DF17: 41000000 | DG17: 3.6083
A18: Del 1 al 31 de Octubre de 2025 | E18: Del 1 al 31 de Octubre de 2024 | F18: 2553153313 | G18: 21125340077 | I18: Del 2 al 31 de Octubre de 2023 | J18: 743565569 | K18: 17492336169 | M18: Del 1 al 31 de Octubre de 2022 | N18: 1217329690 | O18: 35034553066 | Q18: Del 1 al 31 de Octubre de 2021 | R18: 2416616587 | S18: 28086928631 | U18: Del 1 al 31 de Octubre de 2021 | V18: 2416616587 | W18: 28086928631 | Z18: Del 1 al 30 de Octubre de 2020 | AA18: 1715520147 | AB18: 16849288937 | AF18: Del 1 al 31 de Octubre de 2019 | AG18: 1978222227 | AH18: 19310493454 | AL18: Del 01 al 31 de Octubre de 2018 | AM18: 1184029259 | AN18: 18368927612 | AP18: Del 01 al 03 de Marzo de 2017 | AQ18: 199098529 | AR18: 3349864254 | AT18: Del 29 al 04 de Marzo de 2016 | AU18: 324469272 | AV18: 4392974768 | AX18: Del 23 al 27 de febrero de 2015 | AY18: 208872662 | AZ18: 2022011087 | BB18: Del 24 al 28 de febrero de 2014 | BC18: 695938315 | BD18: 2960944154 | BF18: Del 25 de Febrero al 01 de Marzo de 2013 | BG18: 337332876 | BH18: 2317801661 | BJ18: Del 28 de febrero al 02 de marzo de 2012 | BK18: 162746562 | BL18: 3013311136 | BN18: Del 28 de febrero al 4 de marzo de 2011 | BO18: 367506957 | BP18: 3015245275 | BR18: Del 01 al 05 de Marzo de 2010 | BS18: 296368956 | BT18: 2312809483 | BV18: Del 02 al 06 de Marzo de 2009 | BW18: 190679740 | BX18: 2856708855 | BZ18: Del 25 al 29 de Febrero de 2008 | CA18: 410764578 | CB18: 3252925219 | CD18: Del 26 de Febrero al 2 de marzo de 2007 | CE18: 193960220 | CF18: 1813471026 | CH18: Del 27 de Febrero al 3 de Marzo | CI18: 135242655 | CJ18: 1688171313 | CL18: 13 de Enero de 2005 | CM18: 60992110 | CN18: 312164663 | CO18: 2.9375 | CQ18: 14 de Enero de 2004 | CR18: 59264835 | CS18: 452178749 | CT18: 31250000 | CU18: 2.8767 | CW18: 14 de Enero de 2003 | CX18: 38752808 | CY18: 318090938 | CZ18: 36450000 | DA18: 3.3037 | DC18: 5 de Junio de 2002 | DD18: 41873743.32 | DE18: 282062311.6 | DF18: 52000000 | DG18: 3.6267
A19: Del 3 al 28 de Noviembre de 2025 | E19: Del 1 al 30 de Noviembre de 2024 | F19: 1999218138 | G19: 23124558215 | I19: Del 1al 30 de Noviembre de 2023 | J19: 1003960092 | K19: 18496296261 | M19: Del 1 al 30 de Noviembre de 2022 | N19: 1696978273 | O19: 36731531339 | Q19: Del 1 al 30 de Noviembre de 2021 | R19: 2042708037 | S19: 30129636668 | U19: Del 1 al 30 de Noviembre de 2021 | V19: 2042708037 | W19: 30129636668 | Z19: Del 1 al 30 de Noviembre de 2020 | AA19: 1734293026 | AB19: 18583581963 | AF19: Del 1 al 29 de Noviembre de 2019 | AG19: 2185621550 | AH19: 21496115004 | AL19: Del 01 al 30 de Noviembre de 2018 | AM19: 810022905 | AN19: 19178950517 | AP19: Del 06 al 10 de Marzo de 2017 | AQ19: 396774472 | AR19: 3746638726 | AT19: Del 7 al 11 de Marzo de 2016 | AU19: 486349054 | AV19: 4879323822 | AX19: Del 02 al 06 de marzo de 2015 | AY19: 315629308 | AZ19: 2337640395 | BB19: Del 5 al 7 de marzo de 2014 | BC19: 242202933 | BD19: 3203147087 | BF19: Del 04 al 08 de Marzo de 2013 | BG19: 322158894 | BH19: 2639960555 | BJ19: Del 05 al 09 de marzo de 2012 | BK19: 385894105 | BL19: 3399205241 | BN19: Del 07 al 11 de marzo de 2011 | BO19: 248961727 | BP19: 3264207002 | BR19: Del 08 al 12 de Marzo de 2010 | BS19: 214425554 | BT19: 2527235037 | BV19: Del 09 al 13 de Marzo de 2009 | BW19: 220001107 | BX19: 3076709962 | BZ19: Del 03 al 07 de Marzo de 2008 | CA19: 321825984 | CB19: 3574751203 | CD19: Del 5 al 9 de Marzo de 2007 | CE19: 153486010 | CF19: 1966957036 | CH19: Del 6 al 10 de Marzo de 2006 | CI19: 214607445 | CJ19: 1902778758 | CL19: 14 de Enero de 2005 | CM19: 40276890 | CN19: 352441553 | CO19: 2.9388 | CQ19: 15 de Enero de 2004 | CR19: 76673803 | CS19: 528852552 | CT19: 28908000 | CU19: 2.871 | CW19: 15 de Enero de 2003 | CX19: 38555412 | CY19: 356646350 | CZ19: 34180000 | DA19: 3.2275 | DC19: 6 de Junio de 2002 | DD19: 37615095.7 | DE19: 319677407.3 | DF19: 51000000 | DG19: 3.6367
A20: Del 1 al 30 de Diciembre de 2025 | E20: Del 1 al 30 de Diciembre de 2024 | F20: 1966104060 | G20: 25090662275 | I20: Del 1 al 31 de Diciembre de 2023 | J20: 1245841414 | K20: 19742137675 | M20: Del 1 al 30 de Diciembre de 2022 | N20: 3706639602 | O20: 40438170941 | Q20: Del 1 al 30 de Diciembre 2021 | R20: 2678296709 | S20: 32807933377 | U20: Del 1 al 30 de Diciembre 2021 | V20: 2678296709 | W20: 32807933377 | Z20: Del 1 al 30 de Diciembre de 2020 | AA20: 1690807530 | AB20: 20274389493 | AF20: Del 2 al 30 de Diciembre de 2019 | AG20: 2223417496 | AH20: 23719532500 | AL20: Del 01 al 31 de Diciembre de 2018 | AM20: 1040514400 | AN20: 20219464917 | AP20: Del 13 al 17 de Marzo de 2017 | AQ20: 377134275 | AR20: 4123773001 | AT20: Del 14 al 18 de Marzo de 2016 | AU20: 409352441 | AV20: 5288676263 | AX20: Del 9 al 13 de marzo de 2015 | AY20: 238095082 | AZ20: 2575735477 | BB20: Del 10 al 14 de marzo de 2014 | BC20: 516280327 | BD20: 3719427414 | BF20: Del 11 al 15 de Marzo de 2013 | BG20: 432168302 | BH20: 3072128857 | BJ20: Del 12 al 16 de marzo de 2012 | BK20: 437311683 | BL20: 3836516924 | BN20: Del 14 al 18 de marzo de 2011 | BO20: 473060799 | BP20: 3737267801 | BR20: Del 15 al 19 de Marzo de 2010 | BS20: 346072350 | BT20: 2873307387 | BV20: Del 16 al 20 de Marzo de 2009 | BW20: 320394606 | BX20: 3397104568 | BZ20: Del 10 al 14 de Marzo de 2008 | CA20: 351406376 | CB20: 3926157579 | CD20: Del 12 al 16 de Marzo de 2007 | CE20: 242008532 | CF20: 2208965568 | CH20: Del 13 al 17 de Marzo de 2006 | CI20: 264811452 | CJ20: 2167590210 | CL20: 17 de Enero de 2005 | CM20: 3200000 | CN20: 355641553 | CO20: 2.9332 | CQ20: 16 de Enero de 2004 | CR20: 49827428 | CS20: 578679980 | CT20: 30851000 | CU20: 2.8722 | CW20: 16 de Enero de 2003 | CX20: 35268218 | CY20: 391914568 | CZ20: 16170000 | DA20: 3.2438 | DC20: 7 de Junio de 2002 | DD20: 43576037.44 | DE20: 363253444.7 | DF20: 71000000 | DG20: 3.63
AM21: Del 20 al 23 de Marzo de 2017 | AN21: 266071424 | AO21: =SUM(AR20+AN21) -> 4389844425 | AQ21: Del 21 al 23 de Marzo de 2016 | AR21: 277862641 | AS21: =SUM(AV20+AR21) -> 5566538904 | AU21: Del 16 al 20 de Marzo de 2015 | AV21: 247847368 | AW21: =SUM(AZ20+AV21) -> 2823582845 | AY21: Del 17 al 21 de marzo de 2014 | AZ21: 447281683 | BA21: =SUM(BD20+AZ21) -> 4166709097 | BC21: Del 18 al 22 de Marzo de 2013 | BD21: 467815215 | BE21: =SUM(BH20+BD21) -> 3539944072 | BG21: Del 19 al 23 de marzo de 2012 | BH21: 425393627 | BI21: =SUM(BL20+BH21) -> 4261910551 | BK21: Del 21 al 25 de marzo de 2011 | BL21: 317872182 | BM21: =SUM(BP20+BL21) -> 4055139983 | BO21: Del 22 al 26 de Marzo de 2010 | BP21: 244416175 | BQ21: =SUM(BP21+BT20) -> 3117723562 | BS21: Del 23 al 27 de Marzo de 2009 | BT21: 180838997 | BU21: =SUM(BX20+BT21) -> 3577943565 | BW21: Del 17 al 19 de Marzo de 2008 | BX21: 347622389 | BY21: =+BX21+CB20 -> 4273779968 | CA21: Del 19 al 23 de Marzo de 2007 | CB21: 279984659 | CC21: =+CB21+CF20 -> 2488950227 | CE21: Del 20 al 23 de Marzo de 2006 | CF21: 175991904 | CG21: =+CF21+CJ20 -> 2343582114 | CI21: 18 de Enero de 2005 | CJ21: 31197554 | CK21: =+CJ21+CN20 -> 386839107 | CL21: 2.9375 | CN21: 19 de Enero de 2004 | CO21: 11002850 | CP21: =+CO21+CS20 -> 589682830 | CQ21: -798000 | CR21: 2.8882 | CT21: 17 de Enero de 2003 | CU21: 17957518 | CV21: =+CU21+CY20 -> 409872086 | CW21: 14920000 | CX21: 3.244 | CZ21: 10 de Junio de 2002 | DA21: 51638331.7 | DB21: =+DE20+DA21 -> 414891776.4 | DC21: 83000000 | DD21: 3.5325
AM22: Del 27 al 31 de Marzo de 2017 | AN22: 433327526 | AO22: =SUM(AO21+AN22) -> 4823171951 | AQ22: Del 28 al 01 de Abril de 2016 | AR22: 334128646 | AS22: =SUM(AS21+AR22) -> 5900667550 | AU22: Del 25 al 27 de Marzo de 2015 | AV22: 202269805 | AW22: =SUM(AW21+AV22) -> 3025852650 | AY22: Del 25 al 28 de marzo de 2014 | AZ22: 262757414 | BA22: =SUM(BA21+AZ22) -> 4429466511 | BC22: Del 25 al 27 de Marzo de 2013 | BD22: 448647375 | BE22: =SUM(BE21+BD22) -> 3988591447 | BG22: Del 26 al 30 de marzo de 2012 | BH22: 430951086 | BI22: =SUM(BI21+BH22) -> 4692861637 | BK22: Del 28 de marzo al 01 de abril de 2011 | BL22: 536849702 | BM22: =SUM(BM21+BL22) -> 4591989685 | BO22: Del 29 al 31 de Marzo de 2010 | BP22: 209104643 | BQ22: =SUM(BP22+BQ21) -> 3326828205 | BS22: Del 30 de Marzo al 03 de Abril del 2009 | BT22: 257432731 | BU22: =SUM(BU21+BT22) -> 3835376296 | BW22: Del 25 al 28 de Marzo de 2008 | BX22: 234704535 | BY22: =+BX22+BY21 -> 4508484503 | CA22: Del 26 al 30 de Marzo de 2007 | CB22: 321312958 | CC22: =+CB22+CC21 -> 2810263185 | CE22: Del 27 al 31 de Marzo de 2006 | CF22: 262595100 | CG22: =+CF22+CG21 -> 2606177214 | CI22: 19 de Enero de 2005 | CJ22: 56445361 | CK22: =+CJ22+CK21 -> 443284468 | CL22: 2.9365 | CN22: 20 de Enero de 2004 | CO22: 55700892 | CP22: =+CO22+CP21 -> 645383722 | CQ22: 25713000 | CR22: 2.8858 | CT22: 20 de Enero de 2003 | CU22: 13343637 | CV22: =+CU22+CV21 -> 423215723 | CW22: -820000 | CX22: 3.1933 | CZ22: 11 de Junio de 2002 | DA22: 37046109.4 | DB22: =+DB21+DA22 -> 451937885.8 | DC22: 57000000 | DD22: 3.4558
AM23: Del 03 al 7 de Abril de 2017 | AN23: 431534145 | AO23: 5254706096 | AQ23: Del 4 al 8 de Abril de 2016 | AR23: 344780804 | AS23: 6245448354 | AU23: Del 30 al 01 de Abril de 2015 | AV23: 380839481 | AW23: 3406692131 | AY23: Del 31 de marzo al 4 de abril de 2014 | AZ23: 625532699 | BA23: 5054999210 | BC23: Del 03 al 05 de abril de 2013 | BD23: 299170329 | BE23: 4287761776 | BG23: Del 3 al 4 de abril de 2012 | BH23: 219117989 | BI23: 4911979626 | BK23: Del 04 al 08 de abril de 2011 | BL23: 718886076 | BM23: 5310875761 | BO23: Del 05 al 09 de Abril de 2010 | BP23: 498150835 | BQ23: 3824979040 | BS23: Del 06 al 08 de Abril del 2009 | BT23: 284048931 | BU23: 4119425227 | BW23: Del 31 de Marzo al 4 de Abril | BX23: 269729086 | BY23: 4778213589 | CA23: Del 3 al 4 de Abril de 2007 | CB23: 104343471 | CC23: 2914606656 | CE23: Del 3 al 7 de Abril 2006 | CF23: 245806310 | CG23: 2851983524 | CI23: 20 de Enero de 2005 | CJ23: =25782353+9000000 -> 34782353 | CK23: 478066821 | CL23: 2.9443 | CN23: 21 de Enero de 2004 | CO23: 38697510 | CP23: 684081232 | CQ23: 25625000 | CR23: 2.8932 | CT23: 21 de Enero de 2003 | CU23: 44601590 | CV23: 467817313 | CW23: 50510000 | CX23: 3.1328 | CZ23: 12 de Junio de 2002 | DA23: 41393595.3 | DB23: 493331481.1 | DC23: 66000000 | DD23: 3.445
AM24: Del 10 al 12 de Abril de 2017 | AN24: 377789288 | AO24: 5632495384 | AQ24: Del 11 al 15 de Abril de 2016 | AR24: 590523239 | AS24: 6835971593 | AU24: Del 06 al 10 de Abril de 2015 | AV24: 507192079 | AW24: 3913884210 | AY24: Del 07 al 11 de abril de 2014 | AZ24: 825439323 | BA24: 5880438533 | BC24: Del 08 al 12 de abril de 2013 | BD24: 716406914 | BE24: 5004168690 | BG24: Del 09 al 13 de abril de 2012 | BH24: 652782273 | BI24: 5564761899 | BK24: Del 11 al 15 de abril de 2011 | BL24: 745916653 | BM24: 6056792414 | BO24: Del 12 al 16 de Abril de 2010 | BP24: 553925583 | BQ24: 4378904623 | BS24: Del 13 al 17 de Abril del 2009 | BT24: 477703616 | BU24: 4597128843 | BW24: Del 7 al 11 de Abril de 2008 | BX24: 522638434 | BY24: 5300852023 | CA24: Del 9 al 13 de Enero de 2007 | CB24: 353746555 | CC24: 3268353211 | CE24: Del 10 al 12 de Abril de 2006 | CF24: 204659834 | CG24: 3056643358 | CI24: 21 de Enero de 2005 | CJ24: 35461856 | CK24: 513528677 | CL24: 2.9432 | CN24: 22 de Enero de 2004 | CO24: 61744330 | CP24: 745825562 | CQ24: 21303000 | CR24: 2.9112 | CT24: 22 de Enero de 2003 | CU24: 19436358 | CV24: 487253671 | CW24: 12530000 | CX24: 3.0633 | CZ24: 13 de Junio de 2002 | DA24: 22256502.38 | DB24: 515587983.5 | DC24: 40000000 | DD24: 3.4717
AM25: Del 17 al 21 de Abril de 2017 | AN25: 412397883 | AO25: 6044893267 | AQ25: Del 18 al 22 de Abril de 2016 | AR25: 681173278 | AS25: 7517144871 | AU25: Del 13 al 17 de Abril de 2015 | AV25: 589874557 | AW25: 4503758767 | AY25: Del 14 al 18 de abil de 2014 | AZ25: 567531563 | BA25: 6447970096 | BC25: Del 15 al 19 de abril de 2013 | BD25: 817376992 | BE25: 5821545682 | BG25: Del 16 al 20 de Abril de 2012 | BH25: 679026190 | BI25: 6243788089 | BK25: Del 18 al 22 de abril de 2011 | BL25: 410877372 | BM25: 6467669786 | BO25: Del 19 al 23 de Abril de 2010 | BP25: 500110851 | BQ25: 4879015474 | BS25: Del 20 al 24 de Abril del 2009 | BT25: 531036882 | BU25: 5128165725 | BW25: Del 14 al 18 de Abril de 2008 | BX25: 463534012 | BY25: 5764386035 | CA25: Del 16 al 20 de Abril de 2007 | CB25: 473212123 | CC25: 3741565334 | CE25: Del 17 al 21 de Abril de 2006 | CF25: 322514077 | CG25: 3379157435 | CI25: 24 de Enero de 2005 | CJ25: 35893200 | CK25: 549421877 | CL25: 2.9392 | CN25: 23 de Enero de 2004 | CO25: 44043326 | CP25: 789868888 | CQ25: 28390000 | CR25: 2.8952 | CT25: 23 de Enero de 2003 | CU25: 22767749 | CV25: 510021420 | CW25: 10000000 | CX25: 3.12 | CZ25: 14 de Junio de 2002 | DA25: 38174214.57 | DB25: 553762198.1 | DC25: 39000000 | DD25: 3.5043
AM26: Del 24 al 28 de Abril de 2017 | AN26: 599597544 | AO26: 6644490811 | AQ26: Del 25 al 29 de Abril de 2016 | AR26: 478960637 | AS26: 7996105508 | AU26: Del 20 al 24 de abril de 2015 | AV26: 548262328 | AW26: 5052021095 | AY26: Del 21 al 25 de abril de 2014 | AZ26: 900481862 | BA26: 7348451958 | BC26: Del 22 al 26 de abril de 2013 | BD26: 883249087 | BE26: 6704794769 | BG26: Del 23 al 27 de abril de 2012 | BH26: 800038757 | BI26: 7043826846 | BK26: Del 25 al 29 de abril de 2011 | BL26: 646024661 | BM26: 7113694447 | BO26: Del 26 al 30 de Abril de 2010 | BP26: 710255298 | BQ26: 5589270772 | BS26: Del 27 al 30 de Abril del 2009 | BT26: 374604269 | BU26: 5502769994 | BW26: Del 21 al 25 de Abril de 2008 | BX26: 675202728 | BY26: 6439588763 | CA26: Del 23 al 27 de Abril de 2007 | CB26: 447968887 | CC26: 4189534221 | CE26: Del 24 al 28 de Abril de 2006 | CF26: 417912873 | CG26: 3797070308 | CI26: 25 de Enero de 2005 | CJ26: 39802375 | CK26: 589224252 | CL26: 2.9258 | CN26: 26 de Enero de 2004 | CO26: 32541235 | CP26: 822410123 | CQ26: 18719000 | CR26: 2.909 | CT26: 24 de Enero de 2003 | CU26: 18548900 | CV26: 528570320 | CW26: 18700000 | CX26: 3.1733 | CZ26: 18 de Junio de 2002 | DA26: 32269004.81 | DB26: 586031202.9 | DC26: 64000000 | DD26: 3.5078
AM27: Del 02 al 05 de Mayo de 2017 | AN27: 552650223 | AO27: 7197141034 | AQ27: Del 2 al 06 de Mayo de 2016 | AR27: 455079581 | AS27: 8451185089 | AU27: Del 27 de abril al 01 de mayo de 2015 | AV27: 581046028 | AW27: 5633067123 | AY27: Del 28 al 30 de abril de 2014 | AZ27: 456799481 | BA27: 7805251439 | BC27: Del 29 de abril al 03 de mayo de 2013 | BD27: 633991655 | BE27: 7338786424 | BG27: Del 02 al 04 de mayo de 2012 | BH27: 383272366 | BI27: 7427099212 | BK27: Del 02 al 06 de mayo de 2011 | BL27: 660623294 | BM27: 7774317741 | BO27: Del 03 al 07 de Mayo de 2010 | BP27: 590089926 | BQ27: 6179360698 | BS27: Del 04 al 08 de Mayo del 2009 | BT27: 583066431 | BU27: 6085836425 | BW27: Del 28 de Abril al 2 de Mayo de 2008 | BX27: 612139530 | BY27: 7051728293 | CA27: Del 30 de Abril al 4 de Mayo 2007 | CB27: 381268726 | CC27: 4570802947 | CE27: Del 2 al 5 de Mayo de 2006 | CF27: 262350162 | CG27: 4059420470 | CI27: 26 de Enero de 2005 | CJ27: 38507035 | CK27: 627731287 | CL27: 2.9233 | CN27: 27 de Enero de 2004 | CO27: 46232485 | CP27: 868642608 | CQ27: 20033000 | CR27: 2.905 | CT27: 27 de Enero de 2003 | CU27: 20013195 | CV27: 548583515 | CW27: -8770000 | CX27: 3.2592 | CZ27: 19 de Junio de 2002 | DA27: 38072255.99 | DB27: 624103458.9 | DC27: 54000000 | DD27: 3.5362
AM28: Del 08 al 12 de Mayo de 2017 | AN28: 536356399 | AO28: 7733497433 | AQ28: Del 9 al 13 de Mayo de 2016 | AR28: 674261904 | AS28: 9125446993 | AU28: Del 04 al 08 de mayo de 2015 | AV28: 584864876 | AW28: 6217931999 | AY28: Del 05 al 09 de mayo de 2014 | AZ28: 966866397 | BA28: 8772117836 | BC28: Del 06 al 10 de mayo de 2013 | BD28: 726337789 | BE28: 8065124213 | BG28: Del 07 al 11 de mayo de 2012 | BH28: 663138964 | BI28: 8090238176 | BK28: Del 09 al 13 de mayo de 2011 | BL28: 751805076 | BM28: 8526122817 | BO28: Del 10 al 14 de Mayo de 2010 | BP28: 461418276 | BQ28: 6640778974 | BS28: Del 11 al 15 de Mayo del 2009 | BT28: 643064483 | BU28: 6728900908 | BW28: Del 5 al 9 de Mayo de 2008 | BX28: 701990484 | BY28: 7753718777 | CA28: Del 7 al 11 de Mayo de 2007 | CB28: 437325205 | CC28: 5008128152 | CE28: Del 8 al 12 de Mayo de 2006 | CF28: 354940094 | CG28: 4414360564 | CI28: 27 de Enero de 2005 | CJ28: 44420696 | CK28: 672151983 | CL28: 2.9258 | CN28: 28 de Enero de 2004 | CO28: 47682088 | CP28: 916324696 | CQ28: 20711306.78 | CR28: 2.9175 | CT28: 28 de Enero de 2003 | CU28: 38604640 | CV28: 587188155 | CW28: 3240000 | CX28: 3.3433 | CZ28: 20 de Junio de 2002 | DA28: 25093948.47 | DB28: 649197407.3 | DC28: 49000000 | DD28: 3.5833
AM29: Del 15 al 19 de Mayo de 2017 | AN29: 605966685 | AO29: 8339464118 | AQ29: Del 16 al 20 de Mayo de 2016 | AR29: 821259242 | AS29: 9946706235 | AU29: Del 11 al 15 de mayo de 2015 | AV29: 746505820 | AW29: 6964437819 | AY29: Del 12 al 16 de mayo de 2014 | AZ29: 670493128 | BA29: 9442610964 | BC29: Del 13 al 17 de mayo de 2013 | BD29: 785377628 | BE29: 8850501841 | BG29: Del 14 al 18 de mayo de 2012 | BH29: 620664302 | BI29: 8710902478 | BK29: Del 16 al 20 de mayo de 2011 | BL29: 717533870 | BM29: 9243656687 | BO29: Del 17 al 21 de Mayo de 2010 | BP29: 776108959 | BQ29: 7416887933 | BS29: Del 18 al 22 de Mayo del 2009 | BT29: 544054481 | BU29: 7272955389 | BW29: Del 12 al 16 de Mayo de 2008 | BX29: 568297416 | BY29: 8322016193 | CA29: Del 14 al 18 de Mayo de 2007 | CB29: 420248668 | CC29: 5428376820 | CE29: Del 15 al 19 de Mayo de 2006 | CF29: 368243941 | CG29: 4782604505 | CI29: 28 de Enero de 2005 | CJ29: 47737100 | CK29: 719889083 | CL29: 2.926 | CN29: 29 de Enero de 2004 | CO29: 47370175 | CP29: 963694871 | CQ29: 21506000 | CR29: 2.9428 | CT29: 29 de Enero de 2003 | CU29: 9167627 | CV29: 596355782 | CW29: -440000 | CX29: 3.335 | CZ29: 21 de Junio de 2002 | DA29: 35040841 | DB29: 684238248.3 | DC29: 52500000 | DD29: 3.636
AM30: Del 22 al 26 de Mayo de 2017 | AN30: 482409720 | AO30: 8821873838 | AQ30: Del 23 al 27 de Mayo de 2016 | AR30: 773426816 | AS30: 10720133051 | AU30: Del 18 al 22 de mayo de 2015 | AV30: 609273184 | AW30: 7573711003 | AY30: Del 19 al 23 de mayo de 2014 | AZ30: 726515360 | BA30: 10169126324 | BC30: Del 20 al 24 de mayo de 2013 | BD30: 740920931 | BE30: 9591422772 | BG30: Del 21 al 24 de mayo de 2012 | BH30: 554023567 | BI30: 9264926045 | BK30: Del 23 al 27 de mayo de 2011 | BL30: 799277018 | BM30: 10042933705 | BO30: Del 26 al 28 de Mayo de 2010 | BP30: 396554881 | BQ30: 7813442814 | BS30: Del 26 al 29 de Mayo del 2009 | BT30: 414651284 | BU30: 7687606673 | BW30: Del 19 al 23 de Mayo de 2008 | BX30: 405012029 | BY30: 8727028222 | CA30: Del 21 al 24 de Mayo de 2007 | CB30: 332523926 | CC30: 5760900746 | CE30: Del 22 al 26 de Mayo de 2006 | CF30: 302381013 | CG30: 5084985518 | CI30: 31 de Enero de 2005 | CJ30: 45673067 | CK30: 765562150 | CL30: 2.9253 | CN30: 30 de Enero de 2004 | CO30: 42818391 | CP30: 1006513262 | CQ30: 20390000 | CR30: 2.9327 | CT30: 30 de Enero de 2003 | CU30: 28763151 | CV30: 625118933 | CW30: 6580000 | CX30: 3.24 | CZ30: 24 de Junio de 2002 | DA30: 36981129 | DB30: 721219377.3 | DC30: 63500000 | DD30: 3.7058
AM31: Del 29 al 02 de Junio de 2017 | AN31: 575001642 | AO31: 9396875480 | AQ31: Del 30 de Mayo al 03 de Junio de 2016 | AR31: 570705996 | AS31: 11290839047 | AU31: Del 26 al 29 de mayo de 2015 | AV31: 418144673 | AW31: 7991855676 | AY31: Del 26 al 30 de mayo de 2014 | AZ31: 612591332 | BA31: 10781717656 | BC31: Del 27 al 31 de mayo de 2013 | BD31: 719670174 | BE31: 10311092946 | BG31: Del 28 de mayo al 01 de junio de 2012 | BH31: 505094989 | BI31: 9770021034 | BK31: Del 30 de mayo al 03 de junio de 2011 | BL31: 700812466 | BM31: 10743746171 | BO31: Del 31 de Mayo al 04 de junio de 2010 | BP31: 527828591 | BQ31: 8341271405 | BS31: Del 01 al 05 de Junio del 2009 | BT31: 509925845 | BU31: 8197532518 | BW31: Del 26 al 30 de Mayo de 2008 | BX31: 592873188 | BY31: 9319901410 | CA31: Del 28 de Mayo al 1 de Junio 2007 | CB31: 534431574 | CC31: 6295332320 | CE31: Del 29 de Mayo y el 2 de Junio de 2006 | CF31: 331737622 | CG31: 5416723140 | CI31: 1 de Febrero de 2005 | CJ31: 36567946 | CK31: 802130096 | CL31: 2.9202 | CN31: 02 de Febrero de 2004 | CO31: 26793758 | CP31: 1033307020 | CQ31: 14052000 | CR31: 2.939 | CT31: 31 de Enero de 2003 | CU31: 23227872 | CV31: 648346805 | CW31: 6970000 | CX31: 3.1817 | CZ31: 25 de Junio de 2002 | DA31: 43076423.18 | DB31: 764295800.5 | DC31: 72200000 | DD31: 3.85
AM32: Del 05 al 09 de Junio de 2017 | AN32: 598886774 | AO32: 9995762254 | AQ32: Del 06 al 10 de Junio de 2016 | AR32: 525840507 | AS32: 11816679554 | AU32: Del 01 al 05 de junio de 2015 | AV32: 573449228 | AW32: 8565304904 | AY32: Del 02 al 06 de junio de 2014 | AZ32: 528807030 | BA32: 11310524686 | BC32: Del 03 al 07 de junio de 2013 | BD32: 607248394 | BE32: 10918341340 | BG32: Del 04 al 08 de junio de 2012 | BH32: 519601031 | BI32: 10289622065 | BK32: Del 06 al 10 de junio de 2011 | BL32: 838706844 | BM32: 11582453015 | BO32: Del 07 al 11 de Jumio de 2010 | BP32: 572839080 | BQ32: 8914110485 | BS32: Del 08 al 12 de Junio del 2009 | BT32: 460086651 | BU32: 8657619169 | BW32: Del 2 al 6 de Junio de 2008 | BX32: 480925660 | BY32: 9800827070 | CA32: Del 4 al 8 de Junio de 2007 | CB32: 439807246 | CC32: 6735139566 | CE32: Del 5 al 9 de Junio de 2006 | CF32: 294591383 | CG32: 5711314523 | CI32: 2 de Febrero de 2005 | CJ32: 33543438 | CK32: 835673534 | CL32: 2.9243 | CN32: 03 de Febrero de 2004 | CO32: 35377034 | CP32: 1068684054 | CQ32: 10135000 | CR32: 2.9252 | CT32: 03 de Febrero de 2003 | CU32: 14978656 | CV32: 663325461 | CW32: 10350000 | CX32: 3.1983 | CZ32: 26 de Junio de 2002 | DA32: 52515265 | DB32: 816811065.5 | DC32: 93000000 | DD32: 3.8675
AM33: Del 12 al 16 de Junio de 2017 | AN33: 595481936 | AO33: 10591244190 | AQ33: Del 13 al 16 de Junio de 2016 | AR33: 434654730 | AS33: 12251334284 | AU33: Del 08 al 12 de junio de 2015 | AV33: 789308066 | AW33: 9354612970 | AY33: Del 09 al 13 de junio de 2014 | AZ33: 583121583 | BA33: 11893646269 | BC33: Del 10 al 14 de junio de 2013 | BD33: 829187886 | BE33: 11747529226 | BG33: Del 11 al 15 de junio de 2012 | BH33: 440156187 | BI33: 10729778252 | BK33: Del 13 al 17 de junio de 2011 | BL33: 767893181 | BM33: 12350346196 | BO33: Del 14 al 18 de junio de 2010 | BP33: 701376312 | BQ33: 9615486797 | BS33: Del 16 al 19 de Junio del 2009 | BT33: 380797214 | BU33: 9038416383 | BW33: Del 9 al 13 de Junio de 2008 | BX33: 379542689 | BY33: 10180369759 | CA33: Del 11 al 15 de Junio de 2007 | CB33: 443575787 | CC33: 7178715353 | CE33: Del 12 al 16 de Junio de 2006 | CF33: 292309187 | CG33: 6003623710 | CI33: 3 de Febrero de 2005 | CJ33: 38641401 | CK33: 874314935 | CL33: 2.9213 | CN33: 04 de Febrero de 2004 | CO33: 31765221 | CP33: 1100449275 | CQ33: 15752000 | CR33: 2.9337 | CT33: 04 de Febrero de 2003 | CU33: 9877752 | CV33: 673203213 | CW33: 17200000 | CX33: 3.1567 | CZ33: 27 de Junio de 2002 | DA33: 26376412 | DB33: 843187477.5 | DC33: 65800000 | DD33: 3.8092
AM34: Del 19 al 23 de Junio de 2017 | AN34: 308784682 | AO34: 10900028872 | AQ34: Del 21 al 24 de Junio de 2016 | AR34: 319914561 | AS34: 12571248845 | AU34: Del 15 al 19 de junio de 2015 | AV34: 610830297 | AW34: 9965443267 | AY34: Del 16 al 19 de junio de 2014 | AZ34: 451420005 | BA34: 12345066274 | BC34: Del 17 al 21 de junio de 2013 | BD34: 423968015 | BE34: 12171497241 | BG34: Del 18 al 22 de junio de 2012 | BH34: 465388419 | BI34: 11195166671 | BK34: Del 21 al 24 de junio de 2011 | BL34: 461351124 | BM34: 12811697320 | BO34: Del 22 al 25 de Junio de 2010 | BP34: 537054347 | BQ34: 10152541144 | BS34: Del 22 al 26 de Junio del 2009 | BT34: 406623572 | BU34: 9445039955 | BW34: Del 17 al 20 de Junio de 2008 | BX34: 242389094 | BY34: 10422758853 | CA34: Del 19 al 22 de Junio de 2007 | CB34: 344636787 | CC34: 7523352140 | CE34: Del 19 al 23 de Junio de 2006 | CF34: 257783549 | CG34: 6261407259 | CI34: 4 de Febrero de 2005 | CJ34: 38019502 | CK34: 912334437 | CL34: 2.9177 | CN34: 05 de Febrero de 2004 | CO34: 33978777 | CP34: 1134428052 | CQ34: 11078000 | CR34: 2.96 | CT34: 05 de Febrero de 2003 | CU34: 22969668 | CV34: 696172881 | CW34: 14050000 | CX34: 3.1533 | CZ34: 28 de Junio de 2002 | DA34: 38840901 | DB34: 882028378.5 | DC34: 60800000 | DD34: 3.8037
AM35: Del 26 al 30 de Junio de 2017 | AN35: 478458099 | AO35: 11378486971 | AQ35: Del 27 al 01 de Julio de 2016 | AR35: 709640208 | AS35: 13280889053 | AU35: Del 22 al 26 de Junio de 2015 | AV35: 708422626 | AW35: 10673865893 | AY35: Del 23 al 27 de junio de 2014 | AZ35: 760733690 | BA35: 13105799964 | BC35: Del 24 al 28 de junio de 2013 | BD35: 628368525 | BE35: 12799865766 | BG35: Del 25 al 29 de junio de 2012 | BH35: 793250857 | BI35: 11988417528 | BK35: Del 27 de junio al 01 de julio de 2011 | BL35: 609746399 | BM35: 13421443719 | BO35: Del 28 de Junio al 02 de julio de 2010 | BP35: 690976619 | BQ35: 10843517763 | BS35: Del 29 de Junio al 03 de Julio del 2009 | BT35: 412019810 | BU35: 9857059765 | BW35: Del 23 al 27 de Junio de 2008 | BX35: 415753594 | BY35: 10838512447 | CA35: Del 25 al 29 de Junio de 2007 | CB35: 485804724 | CC35: 8009156864 | CE35: Del 26 al 30 de Junio de 2006 | CF35: 314333937 | CG35: 6575741196 | CI35: 7 de Febrero de 2005 | CJ35: 23855687 | CK35: 936190124 | CL35: 2.919 | CN35: 06 de Febrero de 2004 | CO35: 27838855 | CP35: 1162266907 | CQ35: 10557000 | CR35: 2.9613 | CT35: 06 de Febrero de 2003 | CU35: 25447072 | CV35: 721619953 | CW35: 8990000 | CX35: 3.1458 | CZ35: 01 de Julio de 2002 | DA35: 30508792 | DB35: 912537170.5 | DC35: 67000000 | DD35: 3.7912
AM36: Del 03 al 07 de Julio de 2017 | AN36: 606772908 | AO36: 11985259879 | AQ36: Del 04 al 07 de julio de 2016 | AR36: 449563916 | AS36: 13730452969 | AU36: Del 29 de junio al 3 de julio de 2015 | AV36: 606975549 | AW36: 11280841442 | AY36: Del 30 al 04 de Julio de 2014 | AZ36: 758471564 | BA36: 13864271528 | BC36: Del 01 al 05 de julio de 2013 | BD36: 477022554 | BE36: 13276888320 | BG36: Del 02 al 06 de julio de 2012 | BH36: 669409309 | BI36: 12657826837 | BK36: Del 04 al 08 de julio de 2011 | BL36: 381392276 | BM36: 13802835995 | BO36: Del 05 al 08 de julio de 2010 | BP36: 509078856 | BQ36: 11352596619 | BS36: Del 06 al 08 de Julio del 2009 | BT36: 236881521 | BU36: 10093941286 | BW36: Del 30 de Junio al 4 de Julio | BX36: 629790994 | BY36: 11468303441 | CA36: Del 2 al 6 de Julio de 2007 | CB36: 387615431 | CC36: 8396772295 | CE36: Del 03 al 07 de Julio de 2006 | CF36: 251916390 | CG36: 6827657586 | CI36: 8 de Febrero de 2005 | CJ36: 19684893 | CK36: 955875017 | CL36: 2.915 | CN36: 09 de Febrero de 2004 | CO36: 18832032 | CP36: 1181098939 | CQ36: 4744000 | CR36: 2.9445 | CT36: 07 de Febrero de 2003 | CU36: 15166457 | CV36: 736786410 | CW36: 19150000 | CX36: 3.1517 | CZ36: 02 de Julio de 2002 | DA36: 41289326.21 | DB36: 953826496.7 | DC36: 64500000 | DD36: 3.69
AM37: Del 10 al 14 de Julio de 2017 | AN37: 664010297 | AO37: 12649270176 | AQ37: Del 11 al 15 de julio de 2016 | AR37: 446788340 | AS37: 14177241309 | AU37: Del 6 al 10 de Julio de 2015 | AV37: 633788676 | AW37: 11914630118 | AY37: Del 7 al 11 de Julio de 2014 | AZ37: 553775396 | BA37: 14418046924 | BC37: Del 08 al 12 de julio de 2013 | BD37: 447525919 | BE37: 13724414239 | BG37: Del 10 al 13 de julio de 2012 | BH37: 584218815 | BI37: 13242045652 | BK37: Del 11 al 15 de julio de 2011 | BL37: 679782742 | BM37: 14482618737 | BO37: Del 12 al 16 de julio de 2010 | BP37: 724309799 | BQ37: 12076906418 | BS37: Del 13 al 17 de Julio del 2009 | BT37: 338909168 | BU37: 10432850454 | BW37: Del 7 al 11 de Julio de 2008 | BX37: 722576785 | BY37: 12190880226 | CA37: Del 10 al 13 de Julio de 2007 | CB37: 338421517 | CC37: 8735193812 | CE37: Del 10 al 14 de Julio de 2006 | CF37: 256700808 | CG37: 7084358394 | CI37: 9 de Febrero de 2005 | CJ37: 35546601 | CK37: 991421618 | CL37: 2.9087 | CN37: 10 de Febrero de 2004 | CO37: 26316804 | CP37: 1207415743 | CQ37: 10675000 | CR37: 2.928 | CT37: 10 de Febrero de 2003 | CU37: 15067726 | CV37: 751854136 | CW37: 22990000 | CX37: 3.1458 | CZ37: 03 de Julio de 2002 | DA37: 46322436.79 | DB37: 1000148934 | DC37: 64400000 | DD37: 3.5767
AM38: Del 17 al 21 de Julio de 2017 | AN38: 448331782 | AO38: 13097601958 | AQ38: Del 18 al 22 de Julio de 2016 | AR38: 404557016 | AS38: 14581748325 | AU38: Del 13 al 17 de Julio de 2015 | AV38: 749158625 | AW38: 12663788743 | AY38: Del 14 al 18 de Julio de 2014 | AZ38: 578109975 | BA38: 14996156899 | BC38: Del 15 al 19 de julio de 2013 | BD38: 648110419 | BE38: 14372524658 | BG38: Del 16 al 20 de julio de 2012 | BH38: 589472394 | BI38: 13831518046 | BK38: Del 18 al 22 de Julio de 2011 | BL38: 554522757 | BM38: 15037141494 | BO38: Del 19 al 23 de Julio de 2010 | BP38: 522256546 | BQ38: 12599162964 | BS38: Del 20 al 24 de Julio del 2009 | BT38: 247558150 | BU38: 10680408604 | BW38: Del 14 al 18 de Julio 2008 | BX38: 565557350 | BY38: 12756437576 | CA38: Del 16 al 20 de Julio de 2007 | CB38: 455212468 | CC38: 9190406280 | CE38: Del 17 al 21 de Julio de 2006 | CF38: 242746405 | CG38: 7327104799 | CI38: 10 de febrero de 2005 | CJ38: 48379610 | CK38: 1039801228 | CL38: 2.9087 | CN38: 11 de Febrero de 2004 | CO38: 31604165 | CP38: 1239019908 | CQ38: 6079000 | CR38: 2.9428 | CT38: 11 de Febrero de 2003 | CU38: 24496839 | CV38: 776350975 | CW38: 21520000 | CX38: 3.1017 | CZ38: 04 de Julio de 2002 | DA38: 7500947 | DB38: 1007649881 | DC38: 17400000 | DD38: 3.5558
AM39: Del 24 al 28 de Julio de 2017 | AN39: 406767821 | AO39: 13504369779 | AQ39: Del 25 al 29 de Julio de 2016 | AR39: 355852150 | AS39: =SUM(AS38+AR39) -> 14937600475 | AU39: Del 20 al 24 de Julio de 2015 | AV39: 556044947 | AW39: 13219833690 | AY39: Del 21 al 25 de julio de 2014 | AZ39: 640018219 | BA39: 15636175118 | BC39: Del 22 al 26 de Julio de 2013 | BD39: 481227914 | BE39: 14853752572 | BG39: Del 23 al 27 de julio de 2012 | BH39: 540850746 | BI39: 14372368792 | BK39: Del 25 al 29 de Julio de 2011 | BL39: 480151781 | BM39: 15517293275 | BO39: Del 26 al 30 de Julio de 2010 | BP39: 533680641 | BQ39: 13132843605 | BS39: Del 24 al 31 de Julio del 2009 | BT39: 290611978 | BU39: 10971020582 | BW39: Del 21 al 25 de Julio de 2008 | BX39: 579577351 | BY39: 13336014927 | CA39: Del 23 al 27 de Julio de 2007 | CB39: 410651724 | CC39: 9601058004 | CE39: Del 24 al 28 de Julio de 2006 | CF39: 273132966 | CG39: 7600237765 | CI39: 11 de febrero de 2005 | CJ39: 38181866 | CK39: 1077983094 | CL39: 2.9122 | CN39: 12 de Febrero de 2004 | CO39: 24574388 | CP39: 1263594296 | CQ39: 9950000 | CR39: 2.9275 | CT39: 12 de Febrero de 2003 | CU39: 22387478 | CV39: 798738453 | CW39: 20320000 | CX39: 3.0848 | CZ39: 05 de Julio de 2002 | DA39: 45257946 | DB39: 1052907827 | DC39: 72000000 | DD39: 3.5667
AM40: Del 31 al 04 de Agosto de 2017 | AN40: 491092446 | AO40: 13995462225 | AQ40: Del 1 al 5 de Agosto de 2016 | AR40: 583536250 | AS40: 15521136725 | AU40: Del 27 al 31 de Julio de 2015 | AV40: 368073156 | AW40: 13587906846 | AY40: Del 28 al 01 de agosto de 2014 | AZ40: 508657799 | BA40: 16144832917 | BC40: Del 29 de julio hasta el 02 de agosto de 2013 | BD40: 530498714 | BE40: 15384251286 | BG40: Del 30 de julio al 03 de agosto de 2012 | BH40: 437863198 | BI40: 14810231990 | BK40: Del 01 al 05 de agosto de 2011 | BL40: 516408940 | BM40: 16033702215 | BO40: Del 02 al 06 de agosto de 2010 | BP40: 407353581 | BQ40: 13540197186 | BS40: Del 03 al 07 de Agosto del 2009 | BT40: 312205497 | BU40: 11283226079 | BW40: Del 28 de Julio al 1 de Agosto de 2008 | BX40: 535817528 | BY40: 13871832455 | CA40: Del 30 de Julio al 3 de Agosto de 2007 | CB40: 353139904 | CC40: 9954197908 | CE40: Del 31 de Julio al 4 de Agosto | CF40: 230145438 | CG40: 7830383203 | CI40: 14 de febrero de 2005 | CJ40: 45837554 | CK40: 1123820648 | CL40: 2.906 | CN40: 13 de Febrero de 2004 | CO40: 30716237 | CP40: 1294310533 | CQ40: 6288000 | CR40: 2.9173 | CT40: 13 de Febrero de 2003 | CU40: 27410178 | CV40: 826148631 | CW40: 16240000 | CX40: 3.1167 | CZ40: 08 de Julio de 2002 | DA40: 32982564.37 | DB40: 1085890391 | DC40: 65500000 | DD40: 3.5317
AM41: Del 7 al 11 de Agosto de 2017 | AN41: 405098861 | AO41: 14400561086 | AQ41: Del 8 al 12 de Agosto de 2016 | AR41: 683607604 | AS41: 16204744329 | AU41: Del 03 al 07 de Agosto de 2015 | AV41: 345374793 | AW41: 13933281639 | AY41: Del 04 al 08 de agosto de 2014 | AZ41: 474869137 | BA41: 16619702054 | BC41: Del 05 al 09 de agosto de 2013 | BD41: 502088405 | BE41: 15886339691 | BG41: Del 06 al 10 de julio de 2012 | BH41: 501250788 | BI41: 15311482778 | BK41: Del 8 al 12 de agosto de 2011 | BL41: 517048269 | BM41: 16550750484 | BO41: Del 09 al 13 de agosto de 2010 | BP41: 516012419 | BQ41: 14056209605 | BS41: Del 10 al 14 de Agosto del 2009 | BT41: 269286095 | BU41: 11552512174 | BW41: Del 4 al 8 de Agosto de 2008 | BX41: 452271604 | BY41: 14324104059 | CA41: Del 6 al 10 de Agosto de 2007 | CB41: 420476185 | CC41: 10374674093 | CE41: Del 7 al 11 de Agosto | CF41: 253148309 | CG41: 8083531512 | CI41: 15 de febrero de 2005 | CJ41: 43052595 | CK41: 1166873243 | CL41: 2.9057 | CN41: 16 de Febrero de 2004 | CO41: 9903295 | CP41: 1304213828 | CQ41: -1499000 | CR41: 2.9168 | CT41: 14 de Febrero de 2003 | CU41: 19465586 | CV41: 845614217 | CW41: 7710000 | CX41: 3.1908 | CZ41: 10 de Julio de 2002 | DA41: 39689918 | DB41: 1125580309 | DC41: 54000000 | DD41: 3.5303
AM42: Del 14 al 18 de Agosto de 2017 | AN42: 601334539 | AO42: 15001895625 | AQ42: Del 16 al 19 de Agosto de 2016 | AR42: 396620650 | AS42: 16601364979 | AU42: Del 10 al 14 de Agosto de 2015 | AV42: 365752741 | AW42: 14299034380 | AY42: Del 11 al 15 de agosto de 2014 | AZ42: 398710193 | BA42: 17018412247 | BC42: Del 12 al 16 de agosto de 2013 | BD42: 519634340 | BE42: 16405974031 | BG42: Del 13 al 17 de agosto de 2012 | BH42: 454822108 | BI42: 15766304886 | BK42: Del 15 al 19 de agsoto de 2011 | BL42: 633777935 | BM42: 17184528419 | BO42: Del 17 al 20 de agosto de 2010 | BP42: 372959514 | BQ42: 14429169119 | BS42: Del 18 al 21 de Agosto del 2009 | BT42: 186370083 | BU42: 11738882257 | BW42: Del 11 al 15 de Agosto de 2008 | BX42: 413474074 | BY42: 14737578133 | CA42: Del 13 al 17 de Agosto de 2007 | CB42: 370235411 | CC42: 10744909504 | CE42: Del 14 al 18 de Agosto de 2006 | CF42: 208374629 | CG42: 8291906141 | CI42: 16 de Febrero de 2005 | CJ42: 62846678 | CK42: 1229719921 | CL42: 2.8973 | CN42: 17 de Febrero de 2004 | CO42: 36643814 | CP42: 1340857642 | CQ42: 15996000 | CR42: 2.9165 | CT42: 17 de Febrero de 2003 | CU42: 4996890 | CV42: 850611107 | CW42: -600000 | CX42: 3.1617 | CZ42: 11 de Julio de 2002 | DA42: 40630524 | DB42: 1166210833 | DC42: 59300000 | DD42: 3.555
AM43: Del 22 al 25 de Agosto de 2017 | AN43: 381855513 | AO43: 15383751138 | AQ43: Del 22 al 26 de Agosto de 2016 | AR43: 548507004 | AS43: 17149871983 | AU43: Del 18 al 21 de Agosto de 2015 | AV43: 281221146 | AW43: 14580255526 | AY43: Del 19 al 22 de agosto de 2014 | AZ43: 252752874 | BA43: 17271165121 | BC43: Del 20 al 23 de agosto de 2013 | BD43: 495717923 | BE43: 16901691954 | BG43: Del 21 al 24 de agosto de 2012 | BH43: 383640606 | BI43: 16149945492 | BK43: Del 22 al 26 de agsoto de 2011 | BL43: 528751441 | BM43: 17713279860 | BO43: Del 23 al 27 de agosto de 2010 | BP43: 400198426 | BQ43: 14829367545 | BS43: Del 24 al 28 de Agosto del 2009 | BT43: 284043968 | BU43: 12022926225 | BW43: Del 19 al 22 de Agosto de 2008 | BX43: 488547141 | BY43: 15226125274 | CA43: Del 21 al 24 de Agosto de 2007 | CB43: 295830593 | CC43: 11040740097 | CE43: Del 22 al 25 de Agosto de 2006 | CF43: 166825632 | CG43: 8458731773 | CI43: 17 de Febrero de 2005 | CJ43: 57714433 | CK43: 1287434354 | CL43: 2.8893 | CN43: 18 de Febrero de 2004 | CO43: 26807024 | CP43: 1367664666 | CQ43: 1759000 | CR43: 2.9342 | CT43: 18 de Febrero de 2003 | CU43: 25392795 | CV43: 876003902 | CW43: 22400000 | CX43: 3.1585 | CZ43: 12 de Julio de 2002 | DA43: 40233398 | DB43: 1206444231 | DC43: 65300000 | DD43: 3.5875
AM44: Del 28 al 01 de Septiembre de 2017 | AN44: 572100695 | AO44: 15955851833 | AQ44: Del 29 al 02 de Septiembre de 2016 | AR44: 388055348 | AS44: 17537927331 | AU44: Del 24 al 28 de Agosto de 2015 | AV44: 470071735 | AW44: 15050327261 | AY44: Del 25 al 29 de agosto de 2014 | AZ44: 348479945 | BA44: 17619645066 | BC44: Del 26 al 30 de agostos de 2013 | BD44: 614937981 | BE44: 17516629935 | BG44: Del 27 al 31 de agosto de 2012 | BH44: 518372763 | BI44: 16668318255 | BK44: Del 29 de Agosto al 02 de Septiembre de 2011 | BL44: 648632641 | BM44: 18361912501 | BO44: Del 30 de agosto al 03 de septiembre de 2010 | BP44: 518092881 | BQ44: 15347460426 | BS44: Del 31 de Agosto al 04 de Septiembre del 2009 | BT44: 263139486 | BU44: 12286065711 | BW44: Del 25 al 29 de Agosto de 2008 | BX44: 710948347 | BY44: 15937073621 | CA44: Del 27 al 31 de Agosto de 2007 | CB44: 432449279 | CC44: 11473189376 | CE44: Del 28 de Agosto al 1 de Septiembre 2006 | CF44: 242713760 | CG44: 8701445533 | CI44: 18 de Febrero de 2005 | CJ44: 39764035 | CK44: 1327198389 | CL44: 2.905 | CN44: 19 de Febrero de 2004 | CO44: 20481049 | CP44: 1388145715 | CQ44: 11372000 | CR44: 2.9398 | CT44: 19 de Febrero de 2003 | CU44: 21137165 | CV44: 897141067 | CW44: 19510000 | CX44: 3.1843 | CZ44: 15 de Julio de 2002 | DA44: 44919773 | DB44: 1251364004 | DC44: 82500000 | DD44: 3.5933
AM45: Del 4 al 8 de Septiembre de 2017 | AN45: 307414430 | AO45: 16263266263 | AQ45: Del 5 al 09 de Septiembre de 2016 | AR45: 328534616 | AS45: 17866461947 | AU45: Del 31 de Agosto al 4 de Septiembre de 2015 | AV45: 307373000 | AW45: 15357700261 | AY45: Del 01 al 05 de septiembre de 2014 | AZ45: 285563877 | BA45: 17905208943 | BC45: Del 02 al 06 de septiembre de 2013 | BD45: 456942734 | BE45: 17973572669 | BG45: Del 03 al 07 de agosto de 2012 | BH45: 356240263 | BI45: 17024558518 | BK45: Del 05 al 09 de septiembre de 2011 | BL45: 555275198 | BM45: 18917187699 | BO45: Del 06 al 10 de septiembre de 2010 | BP45: 432214690 | BQ45: 15779675116 | BS45: Del 07 al 11 de Septiembre del 2009 | BT45: 193101713 | BU45: 12479167424 | BW45: Del 1 al 5 de Septiembre de 2008 | BX45: 386598940 | BY45: 16323672561 | CA45: Del 3 al 7 de Septiembre de 2007 | CB45: 473767398 | CC45: 11946956774 | CE45: Del 4 al 8 de Septiembre de 2006 | CF45: 192671936 | CG45: 8894117469 | CI45: 21 de Febrero de 2005 | CJ45: 4719785 | CK45: 1331918174 | CL45: 2.9105 | CN45: 20 de Febrero de 2004 | CO45: 32600550 | CP45: 1420746265 | CQ45: 5735000 | CR45: 2.9412 | CT45: 20 de Febrero de 2003 | CU45: 32303988 | CV45: 929445055 | CW45: 10670000 | CX45: 3.2317 | CZ45: 16 de Julio de 2002 | DA45: 49658734 | DB45: 1301022738 | DC45: 62400000 | DD45: 3.5907
AM46: Del 11 al 15 de Septiembre de 2017 | AN46: 509111177 | AO46: 16772377440 | AQ46: Del 12 al 16 de Septiembre de 2016 | AR46: 469599684 | AS46: 18336061631 | AU46: Del 7 al 11 de Septiembre de 2015 | AV46: 252439451 | AW46: 15610139712 | AY46: Del 08 al 12 de septiembre de 2014 | AZ46: 242293106 | BA46: 18147502049 | BC46: Del 09 al 13 de septiembre de 2013 | BD46: 475268101 | BE46: 18448840770 | BG46: Del 10 al 14 de Septiembre de 2012 | BH46: 398818071 | BI46: 17423376589 | BK46: Del 12 al 16 de septiembre de 2011 | BL46: 460712061 | BM46: 19377899760 | BO46: Del 13 al 17 de septiembre de 2010 | BP46: 380253535 | BQ46: 16159928651 | BS46: Del 14 al 18 de Septiembre del 2009 | BT46: 301007373 | BU46: 12780174797 | BW46: Del 8 al 12 Septiembre de 2008 | BX46: 404459312 | BY46: 16728131873 | CA46: Del 10 al 14 de Septiembre de 2007 | CB46: 432233161 | CC46: 12379189935 | CE46: Del 11 al 15 de Septiembre de 2006 | CF46: 265953322 | CG46: 9160070791 | CI46: 22 de Febrero de 2005 | CJ46: 46987781 | CK46: 1378905955 | CL46: 2.9155 | CN46: 23 de Febrero de 2004 | CO46: 13269106 | CP46: 1434015371 | CQ46: 10230000 | CR46: 2.9218 | CT46: 21 de Febrero de 2003 | CU46: 29119452 | CV46: 958564507 | CW46: 30260000 | CX46: 3.2025 | CZ46: 17 de Julio de 2002 | DA46: 63127882 | DB46: 1364150620 | DC46: 77900000 | DD46: 3.4967
AM47: Del 18 al 22 de Septiembre de 2017 | AN47: 406482164 | AO47: 17178859604 | AQ47: Del 19 al 23 de Septiembre de 2016 | AR47: 471176969 | AS47: 18807238600 | AU47: Del 14 al 18 de Septiembre de 2015 | AV47: 249058851 | AW47: 15859198563 | AY47: Del 15 al 19 de septiembre de 2014 | AZ47: 177541469 | BA47: 18325043518 | BC47: Del 16 al 20 de septiembre de 2013 | BD47: 399357094 | BE47: 18848197864 | BG47: Del 17 al 21 de Septiembre de 2012 | BH47: 535001233 | BI47: 17958377822 | BK47: Del 19 al 23 de septiembre de 2011 | BL47: 336273085 | BM47: 19714172845 | BO47: Del 20 al 24 de septiembre de 2010 | BP47: 455375796 | BQ47: 16615304447 | BS47: Del 21al 25 de Septiembre del 2009 | BT47: 240292764 | BU47: 13020467561 | BW47: Del 15 al 19 de Septiembre de 2008 | BX47: 354296413 | BY47: 17082428286 | CA47: Del 17 al 21 de Septiembre de 2007 | CB47: 375521802 | CC47: 12754711737 | CE47: Del 18 al 22 de Septiembre de 2006 | CF47: 202134130 | CG47: 9362204921 | CI47: 23 de Febrero de 2005 | CJ47: 32756066 | CK47: 1411662021 | CL47: 2.928 | CN47: 24 de Febrero de 2004 | CO47: 38277711 | CP47: 1472293082 | CQ47: 9945000 | CR47: 2.9218 | CT47: 24 de Febrero de 2003 | CU47: 32099672 | CV47: 990664179 | CW47: 14050000 | CX47: 3.1838 | CZ47: 18 de Julio de 2002 | DA47: 25241664 | DB47: 1389392284 | DC47: 75700000 | DD47: 3.5417
AM48: Del 25 al 29 de Septiembre de 2017 | AN48: 335917155 | AO48: 17514776759 | AQ48: Del 26 al 30 de Septiembre de 2016 | AR48: 397619188 | AS48: 19204857788 | AU48: Del 21 al 25 de Septiembre de 2015 | AV48: 231129604 | AW48: 16090328167 | AY48: Del 22 al 26 de septiembre de 2014 | AZ48: 291464668 | BA48: 18616508186 | BC48: Del 23 al 27 de septiembre de 2013 | BD48: 357518843 | BE48: 19205716707 | BG48: Del 24 al 28 de Septiembre de 2012 | BH48: 437365110 | BI48: 18395742932 | BK48: Del 26 al 30 de Septiembre de 2011 | BL48: 612913297 | BM48: 20327086142 | BO48: Del 27 septiembre al 01 de octubre de 2010 | BP48: 510297120 | BQ48: 17125601567 | BS48: Del 28 de Septiembre al 02 de Octubre | BT48: 224849761 | BU48: 13245317322 | BW48: Del 22 al 26 de Septiembre de 2008 | BX48: 512043067 | BY48: 17594471353 | CA48: Del 24 al 28 de Septiembre de 2007 | CB48: 352798952 | CC48: 13107510689 | CE48: Del 25 al 29 de Septiembre de 2006 | CF48: 229276601 | CG48: 9591481522 | CI48: 24 de Febrero de 2005 | CJ48: 28562899 | CK48: 1440224920 | CL48: 2.9353 | CN48: 25 de Febrero de 2004 | CO48: 41232194 | CP48: 1513525276 | CQ48: 10192000 | CR48: 2.9192 | CT48: 25 de Febrero de 2003 | CU48: 27466198 | CV48: 1018130377 | CW48: 19910000 | CX48: 3.15 | CZ48: 19 de Julio de 2002 | DA48: 43677375 | DB48: 1433069659 | DC48: 49700000 | DD48: 3.5845
AM49: Del 2 al 6 de Octubre de 2017 | AN49: 288631364 | AO49: 17803408123
AM50: Decl 9 al 13 de Octubre de 2017 | AN50: 294366853 | AO50: 18097774976 | AQ50: Del 03 al 07 de Octubre de 2016 | AR50: 336598150 | AS50: =SUM(AS48+AR50) -> 19541455938 | AU50: Del 28 de Septiembre al 02 de Octubre de 2015 | AV50: 297520799 | AW50: =SUM(AW48+AV50) -> 16387848966 | AY50: Del 29 de septiembre al 03 de octubre de 2014 | AZ50: 223037513 | BA50: =SUM(BA48+AZ50) -> 18839545699 | BC50: Del 30 de septiembre al 04 de octubre de 2013 | BD50: 318047048 | BE50: =SUM(BE48+BD50) -> 19523763755 | BG50: Del 01 al 05 de Octubre de 2012 | BH50: 434864691 | BI50: =SUM(BI48+BH50) -> 18830607623 | BK50: Del 03 al 07 de octubre de 2011 | BL50: 390098014 | BM50: =SUM(BM48+BL50) -> 20717184156 | BO50: Del 04 al 08 de cotubre de 2010 | BP50: 406578726 | BQ50: =SUM(BP50+BQ48) -> 17532180293 | BS50: Del 05 al 09 de Octubre de 2009 | BT50: 282918735 | BU50: =SUM(BU48+BT50) -> 13528236057 | BW50: Del 29 de Septiembre al 3 de Octubre de 2008 | BX50: 597572454 | BY50: =+BX50+BY48 -> 18192043807 | CA50: Del 1 al 5 de Octubre de 2007 | CB50: 272290080 | CC50: =+CB50+CC48 -> 13379800769 | CE50: Del 02 al 06 de Octubre de 2006 | CF50: 187734511 | CG50: =+CF50+CG48 -> 9779216033 | CI50: 25 de Febrero de 2005 | CJ50: 62718221 | CK50: =+CJ50+CK48 -> 1502943141 | CL50: 2.9345 | CN50: 26 de Febrero de 2004 | CO50: 36012493 | CP50: =+CO50+CP48 -> 1549537769 | CQ50: 10062000 | CR50: 2.9243 | CT50: 26 de Febrero de 2003 | CU50: 24676853 | CV50: =+CU50+CV48 -> 1042807230 | CW50: 8240000 | CX50: 3.1622 | CZ50: 22 de Julio de 2002 | DA50: 41949832 | DB50: =+DB48+DA50 -> 1475019491 | DC50: 71200000 | DD50: 3.5978
AM51: Del 17 al 20 de Octubre de 2017 | AN51: 342681292 | AO51: 18440456268 | AQ51: Del 11 al 14 de Octubre de 2016 | AR51: 301156528 | AS51: =SUM(AS50+AR51) -> 19842612466 | AU51: Del 5 al 9 de Octubre de 2015 | AV51: 296288366 | AW51: =SUM(AW50+AV51) -> 16684137332 | AY51: Del 6 al 10 de octubre de 2014 | AZ51: 385966241 | BA51: =SUM(BA50+AZ51) -> 19225511940 | BC51: Del 07 al 11 de cotubre de 2013 | BD51: 400568539 | BE51: =SUM(BE50+BD51) -> 19924332294 | BG51: Del 09 al 12 de Octubre de 2012 | BH51: 328241568 | BI51: =SUM(BI50+BH51) -> 19158849191 | BK51: Del 10 al 14 de octubre de 2011 | BL51: 445984593 | BM51: =SUM(BM50+BL51) -> 21163168749 | BO51: Del 12 al 15 de octubre de 2010 | BP51: 404008402 | BQ51: =SUM(BP51+BQ50) -> 17936188695 | BS51: Del 13 al 16 de Octubre de 2009 | BT51: 300880280 | BU51: =SUM(BU50+BT51) -> 13829116337 | BW51: Del 6 al 10 de Octubre de 2008 | BX51: 428031166 | BY51: =+BX51+BY50 -> 18620074973 | CA51: Del 8 al 12 de Octubre de 2007 | CB51: 396528268 | CC51: =+CB51+CC50 -> 13776329037 | CE51: Del 09 al 13 de Octubre de 2006 | CF51: 193661047 | CG51: =+CF51+CG50 -> 9972877080 | CI51: 28 de Febrero de 2005 | CJ51: 40543314 | CK51: =+CJ51+CK50 -> 1543486455 | CL51: 2.9327 | CN51: 27 de Febrero de 2004 | CO51: 49084165 | CP51: =+CO51+CP50 -> 1598621934 | CQ51: 10662272 | CR51: 2.9235 | CT51: 27 de Febrero de 2003 | CU51: 8218255 | CV51: =+CU51+CV50 -> 1051025485 | CW51: 5310000 | CX51: 3.1817 | CZ51: 23 de Julio de 2002 | DA51: 34546686 | DB51: =+DB50+DA51 -> 1509566177 | DC51: 69900000 | DD51: 3.6383
AM52: Del 23 al 27 de Octubre de 2017 | AN52: 350762928 | AO52: 18791219196 | AQ52: Del 17 al 21 de Octubre de 2016 | AR52: 532770600 | AS52: 20375383066 | AU52: Del 13 al 16 de Octubre de 2015 | AV52: 309569658 | AW52: 16993706990 | AY52: Del 14 al 17 de octubre de 2014 | AZ52: 266412504 | BA52: 19491924444 | BC52: Del 15 al 18 de octubre de 2013 | BD52: 347365736 | BE52: 20271698030 | BG52: Del 15 al 19 de Octubre de 2012 | BH52: 344003795 | BI52: 19502852986 | BK52: Del 17 al 21 de octubre de 2011 | BL52: 654914154 | BM52: 21818082903 | BO52: Del 18 al 22 de octubre de 2010 | BP52: 590280686 | BQ52: 18526469381 | BS52: Del 19 al 23 de Octubre de 2009 | BT52: 293528477 | BU52: 14122644814 | BW52: Del 14 al 17 de Octubre de 2008 | BX52: 261892213 | BY52: 18881967186 | CA52: Del 16 al 19 de Octubre de 2007 | CB52: 329081404 | CC52: 14105410441 | CE52: Del 17 al 20 de Octubre de 2006 | CF52: 164485257 | CG52: 10137362337 | CI52: 01 de Marzo de 2005 | CJ52: 30810011 | CK52: 1574296466 | CL52: 2.9422 | CN52: 01 de Marzo de 2004 | CO52: 25685675 | CP52: 1624307609 | CQ52: 8708000 | CR52: 2.9163 | CT52: 28 de Febrero de 2003 | CU52: 26630805 | CV52: 1077656290 | CW52: 4430000 | CX52: 3.2013 | CZ52: 24 de Julio de 2002 | DA52: 52014954 | DB52: 1561581131 | DC52: 70000000 | DD52: 3.645
AM53: Del 30 al 03 de Noviembre de 2017 | AN53: 346623950 | AO53: 19137843146 | AQ53: Del 14 al 28 de Octubre de 2016 | AR53: 506298429 | AS53: 20881681495 | AU53: Del 19 al 23 de Octubre de 2015 | AV53: 219142388 | AW53: 17212849378 | AY53: Del 20 al 24 de octubre de 2014 | AZ53: 375542765 | BA53: 19867467209 | BC53: Del 21 al 25 de octubre de 2013 | BD53: 332317432 | BE53: 20604015462 | BG53: Del 22 al 26 de Octubre de 2012 | BH53: 335764218 | BI53: 19838617204 | BK53: Del 24 al 28 de octubre de 2011 | BL53: 390828139 | BM53: 22208911042 | BO53: Del 25 al 29 de octubre de 2010 | BP53: 449881420 | BQ53: 18976350801 | BS53: Del 26 al 30 de Octubre de 2009 | BT53: 195266975 | BU53: 14317911789 | BW53: Del 20 al 24 de Octubre de 2008 | BX53: 266682736 | BY53: 19148649922 | CA53: Del 22 al 26 de Octubre de 2007 | CB53: 340440903 | CC53: 14445851344 | CE53: Del 23 al 27 de Octubre de 2006 | CF53: 177567801 | CG53: 10314930138 | CI53: 02 de Marzo de 2005 | CJ53: 51280108 | CK53: 1625576574 | CL53: 2.9518 | CN53: 02 de Marzo de 2004 | CO53: 25774705 | CP53: 1650082314 | CQ53: 11573000 | CR53: 2.9233 | CT53: 3 de Marzo de 2003 | CU53: 8057754 | CV53: 1085714044 | CW53: -2360000 | CX53: 3.2187 | CZ53: 25 de Julio de 2002 | DA53: 19265502 | DB53: 1580846633 | DC53: 46600000 | DD53: 3.6267
AM54: Del 06 al 10 de Noviembre de 2017 | AN54: 303333486 | AO54: 19441176632 | AQ54: Del 31 al 04 de Noviembre de 2016 | AR54: 303446585 | AS54: 21185128080 | AU54: Del 26 al 30 de Octubre de 2015 | AV54: 192294334 | AW54: 17405143712 | AY54: Del 27 al 31 de octubre de 2014 | AZ54: 611061014 | BA54: 20478528223 | BC54: Del 28 de octubre al 01 de noviembre de 2013 | BD54: 327796792 | BE54: 20931812254 | BG54: Del 29 al 02 de Noviembre de 2012 | BH54: 400277514 | BI54: 20238894718 | BK54: Del 31 de octubre al 04 de noviembre de 2011 | BL54: 366432164 | BM54: 22575343206 | BO54: Del 01 al 05 de noviembre de 2010 | BP54: 447857965 | BQ54: 19424208766 | BS54: Del 02 al 06 de Noviembre de 2009 | BT54: 224945146 | BU54: 14542856935 | BW54: Del 27 al 31 de Octubre de 2008 | BX54: 279688610 | BY54: 19428338532 | CA54: Del 29 de Octubre al 2 de Noviembre de 2007 | CB54: 400908899 | CC54: 14846760243 | CE54: Del 30 de Octubre al 3 de Noviembre 2006 | CF54: 299274327 | CG54: 10614204465 | CI54: 03 de Marzo de 2005 | CJ54: 50677382 | CK54: 1676253956 | CL54: 2.9522 | CN54: 03 de Marzo de 2004 | CO54: 45866485 | CP54: 1695948799 | CQ54: 10141000 | CR54: 2.9122 | CT54: 4 de Marzo de 2003 | CU54: 40094162 | CV54: 1125808206 | CW54: 6380000 | CX54: 3.1962 | CZ54: 26 de Julio de 2002 | DA54: 33000615 | DB54: 1613847248 | DC54: 80900000 | DD54: 3.6558
AM55: Del 13 al 17 de Noviembre de 2017 | AN55: 309003078 | AO55: 19750179710 | AQ55: Del 07 al 11 de Noviembre de 2016 | AR55: 336888195 | AS55: 21522016275 | AU55: Del 02 al 06 de Noviembre de 2015 | AV55: 131879770 | AW55: 17537023482 | AY55: Del 3 al 7 de noviembre de 2014 | AZ55: 641472281 | BA55: 21120000504 | BC55: Del 04 al 08 de noviembre de 2013 | BD55: 417003939 | BE55: 21348816193 | BG55: Del 05 al 09 de Noviembre de 2012 | BH55: 388769866 | BI55: 20627664584 | BK55: Del 07 al 11 de noviembre de 2011 | BL55: 290126931 | BM55: 22865470137 | BO55: Del 08 al 12 de noviembre de 2010 | BP55: 343327616 | BQ55: 19767536382 | BS55: Del 09 al 13 de Noviembre de 2009 | BT55: 204157938 | BU55: 14747014873 | BW55: Del 3 al 7 de Noviembre de 2008 | BX55: 320856635 | BY55: 19749195167 | CA55: Del 5 al 9 de Noviembre de 2007 | CB55: 343845030 | CC55: 15190605273 | CE55: Del 6 al 10 de Noviembre de 2006 | CF55: 190479226 | CG55: 10804683691 | CI55: 04 de Marzo de 2005 | CJ55: 37013981 | CK55: 1713267937 | CL55: 2.9397 | CN55: 04 de Marzo de 2004 | CO55: 39135914 | CP55: 1735084713 | CQ55: 8323000 | CR55: 2.9165 | CT55: 5 de Marzo de 2003 | CU55: 13370294 | CV55: 1139178500 | CW55: 9260000 | CX55: 3.174 | CZ55: 29 de Julio de 2002 | DA55: 28220243 | DB55: 1642067491 | DC55: 46400000 | DD55: 3.65
AM56: Del 21 al 24 de Noviembre de 2017 | AN56: 173860310 | AO56: 19924040020 | AQ56: Del 14 al 18 de Noviembre de 2016 | AR56: 401731475 | AS56: 21923747750 | AU56: Del 09 al 13 de noviembre de 2015 | AV56: 116155803 | AW56: 17653179285 | AY56: Del 10 al 14 de noviembre de 2014 | AZ56: 487986241 | BA56: 21607986745 | BC56: Del 11 al 15 de noviembre de 2013 | BD56: 243704992 | BE56: 21592521185 | BG56: Del 12 al 16 de Noviembre de 2012 | BH56: 314625405 | BI56: 20942289989 | BK56: Del 14 al 18 de noviembre de 2011 | BL56: 399347965 | BM56: 23264818102 | BO56: Del 15 al 19 de noviembre de 2010 | BP56: 479009685 | BQ56: 20246546067 | BS56: Del 16 al 20 de Noviembre de 2009 | BT56: 297951798 | BU56: 15044966671 | BW56: Del 10 al 14 de Noviembre de 2008 | BX56: 284817809 | BY56: 20034012976 | CA56: Del 12 al 16 de Noviembre de 2007 | CB56: 319738978 | CC56: 15510344251 | CE56: Del 13 al 17 de Noviembre de 2006 | CF56: 129388506 | CG56: 10934072197 | CI56: 07 de Marzo de 2005 | CJ56: 32651569 | CK56: 1745919506 | CL56: 2.9253 | CN56: 05 de Marzo de 2004 | CO56: 31779046 | CP56: 1766863759 | CQ56: 12490100 | CR56: 2.9325 | CT56: 6 de Febrero de 2003 | CU56: 20161032 | CV56: 1159339532 | CW56: 5750000 | CX56: 3.1808 | CZ56: 30 de Julio de 2002 | DA56: 20623615 | DB56: 1662691106 | DC56: 63200000 | DD56: 3.6508
AM57: Del 27 al 1 de Diciembre de 2017 | AN57: 369342447 | AO57: 20293382467 | AQ57: Del 21 al 25 de Noviembre de 2016 | AR57: 342868375 | AS57: 22266616125 | AU57: Del 16 al 20 de Noviembre de 2015 | AV57: 108764571 | AW57: 17761943856 | AY57: Del 17 al 21 de noviembre de 2014 | AZ57: 388595443 | BA57: 21996582188 | BC57: Del 18 al 22 de noviembre de 2013 | BD57: 209287606 | BE57: 21801808791 | BG57: Del 19 al 23 de Noviembre de 2012 | BH57: 277175442 | BI57: 21219465431 | BK57: Del 21 al 25 de Noviembre de 2011 | BL57: 250251662 | BM57: 23515069764 | BO57: Del 23 al 26 de noviembre de 2010 | BP57: 203682797 | BQ57: 20450228864 | BS57: Del 23 al 27 de Noviembre de 2009 | BT57: 275047576 | BU57: 15320014247 | BW57: Del 17 al 21 de Noviembre de 2008 | BX57: 299898179 | BY57: 20333911155 | CA57: Del 19 al 23 de Noviembre de 2007 | CB57: 189637220 | CC57: 15699981471 | CE57: Del 20 al 24 de Noviembre de 2006 | CF57: 172254779 | CG57: 11106326976 | CI57: 08 de Marzo de 2005 | CJ57: 34263948 | CK57: 1780183454 | CL57: 2.9312 | CN57: 08 de Marzo de 2004 | CO57: 28703159 | CP57: 1795566918 | CQ57: 8752000 | CR57: 2.9387 | CT57: 7 de Febrero de 2003 | CU57: 29611657 | CV57: 1188951189 | CW57: 780000 | CX57: 3.1715 | CZ57: 31 de Julio de 2002 | DA57: 26351271.66 | DB57: 1689042378 | DC57: 47400000 | DD57: 3.7008
AM58: Del 04 al 07 de Diciembre de 2017 | AN58: 227073432 | AO58: 20520455899 | AQ58: Del 29 al 2 de Diciembre de 2016 | AR58: 358017582 | AS58: 22624633707 | AU58: Del 23 al 26 de Noviembre de2015 | AV58: =86224307+10887433 -> 97111740 | AW58: 17859055596 | AY58: Del 25 al 28 de noviembre de 2014 | AZ58: 356084093 | BA58: 22352666281 | BC58: Del 26 al 29 de noviembre de 2013 | BD58: 176305233 | BE58: 21978114024 | BG58: Del 27 al 30 de Noviembre de 2012 | BH58: 312426489 | BI58: 21531891920 | BK58: Del 29 de noviembre al 02 de diciembre de 2011 | BL58: 189294072 | BM58: 23704363836 | BO58: Del 29 de noviembre al 03 de diciembre de 2010 | BP58: 354641135 | BQ58: 20804869999 | BS58: Del 30 de Noviembre al 01 de Diciembre de 2009 | BT58: 220246928 | BU58: 15540261175 | BW58: Del 24 al 28 de Noviembre de 2008 | BX58: 227421219 | BY58: 20561332374 | CA58: Del 26 al 30 de Noviembre de 2007 | CB58: 372244999 | CC58: 16072226470 | CE58: Del 27 de Noviembre al 1 de Diciembre 2006 | CF58: 203304604 | CG58: 11309631580 | CI58: 09 de Marzo de 2005 | CJ58: 34743945 | CK58: 1814927399 | CL58: 2.9355 | CN58: 09 de Marzo de 2004 | CO58: 40794129 | CP58: 1836361047 | CQ58: 20517000 | CR58: 2.925 | CT58: 10 de Marzo de 2003 | CU58: 25574003 | CV58: 1214525192 | CW58: 26280000 | CX58: 3.1493 | CZ58: 1 de Agosto de 2002 | DA58: 41752835 | DB58: 1730795213 | DC58: 63700000 | DD58: 3.6333
AM59: Del 11 al 15 de Diciembre de 2017 | AN59: 358868974 | AO59: 20879324873 | AQ59: Del 5 al 7 de Diciembre de 2016 | AR59: 214222916 | AS59: 22838856623 | AU59: Del 30 al 04 de Diciembre de 2015 | AV59: 42348006 | AW59: 17901403602 | AY59: Del 01 al 05 de diciembre de 2014 | AZ59: 365408895 | BA59: 22718075176 | BC59: Del 2 al 6 de diciembre de 2013 | BD59: 251179274 | BE59: 22229293298 | BG59: Del 03 al 07 de Diciembre de 2012 | BH59: 368919944 | BI59: 21900811864 | BK59: Del 05 al 06 de diciembre de 2011 | BL59: 230136900 | BM59: 23934500736 | BO59: Del 06 al 10 de diciembre de 2010 | BP59: 301368982 | BQ59: 21106238981 | BS59: Del 07 al 11 de Diciembre de 2009 | BT59: 191928108 | BU59: 15732189283 | BW59: Del 01 al 05 de Diciembre de 2008 | BX59: 264378596 | BY59: 20825710970 | CA59: Del 3 al 7 de Diciembre de 2007 | CB59: 378510336 | CC59: 16450736806 | CE59: Del 4 al 7 de Diciembre de 2006 | CF59: 129157809 | CG59: 11438789389 | CI59: 10 de Marzo de 2005 | CJ59: 40347498 | CK59: 1855274897 | CL59: 2.9353 | CN59: 10 de Marzo de 2004 | CO59: 21226517 | CP59: 1857587564 | CQ59: 19171000 | CR59: 2.9042 | CT59: 11 de Marzo de 2003 | CU59: 24718224 | CV59: 1239243416 | CW59: 4870000 | CX59: 3.137 | CZ59: 2 de Agosto de 2002 | DA59: 16291086.45 | DB59: 1747086299 | DC59: 28800000 | DD59: 3.615
AM60: Del 18 al 22 de Diciembre de 2017 | AN60: 129468758 | AO60: 21008793631 | AQ60: Del 12 al 16 de Diciembre de 2016 | AR60: 318046923 | AS60: 23156903546 | AU60: Del 9 al 11 de Diciembre de 2015 | AV60: 71951710 | AW60: 17973355312 | AY60: Del 09 al 12 de diciembre de 2014 | AZ60: 349008168 | BA60: 23067083344 | BC60: Del 9 al 13 de diciembre de 2013 | BD60: 275005443 | BE60: 22504298741 | BG60: Del 10 al 14 de Diciembre de 2012 | BH60: 411888520 | BI60: 22312700384 | BK60: Del 12 al 16 de diciembre de 2011 | BL60: 397010210 | BM60: 24331510946 | BO60: Del 13 al 17 de diciembre de 2010 | BP60: 358714870 | BQ60: 21464953851 | BS60: Del 14 al 18 de Diciembre de 2009 | BT60: 174615171 | BU60: 15906804454 | BW60: Del 09 al 12 de Diciembre de 2008 | BX60: 218454935 | BY60: 21044165905 | CA60: Del 10 al 14 de Diciembre de 2007 | CB60: 322325050 | CC60: 16773061856 | CE60: Del 11 al 15 de Diciembre de 2006 | CF60: 243590223 | CG60: 11682379612 | CI60: 11 de Marzo de 2005 | CJ60: 56402362 | CK60: 1911677259 | CL60: 2.9232 | CN60: 11 de Marzo de 2004 | CO60: 30299918 | CP60: 1887887482 | CQ60: 21190000 | CR60: 2.9182 | CT60: 12 de Marzo de 2003 | CU60: 37647546 | CV60: 1276890962 | CW60: 1780000 | CX60: 3.1133 | CZ60: 5 de Agosto de 2002 | DA60: 20488872 | DB60: 1767575171 | DC60: 50000000 | DD60: 3.6163
AM61: Del 26 al 29 de Diciembre de 2017 | AN61: 390290452 | AO61: 21399084083 | AQ61: Del 19 al 23 de Diciembre de 2016 | AR61: 511580124 | AS61: 23668483670 | AU61: Del 14 al 18 de Diciembre de 2015 | AV61: 481445975 | AW61: 18454801287 | AY61: Del 15 al 19 de diciembre de 2014 | AZ61: 501699085 | BA61: 23568782429 | BC61: Del 16 al 20 de diciembre de 2013 | BD61: 427732537 | BE61: 22932031278 | BG61: Del 17 al 21 de Diciembre de 2012 | BH61: 428953883 | BI61: 22741654267 | BK61: Del 19 al 23 de diciembre de 2011 | BL61: 409668352 | BM61: 24741179298 | BO61: Del 20 al 24 de diciembre de 2010 | BP61: 392474034 | BQ61: 21857427885 | BS61: Del 22 al 25 de Diciembre de 2009 | BT61: 136309498 | BU61: 16043113952 | BW61: Del 15 al 19 de Diciembre de 2008 | BX61: 393964276 | BY61: 21438130181 | CA61: Del 17 al 21 de diciembre de 2007 | CB61: 501922101 | CC61: 17274983957 | CE61: Del 18 al 22 de Diciembre de 2006 | CF61: 314528332 | CG61: 11996907944 | CI61: 14 de Marzo de 2005 | CJ61: 48221214 | CK61: 1959898473 | CL61: 2.9183 | CN61: 12 de Marzo de 2004 | CO61: 48730820 | CP61: 1936618302 | CQ61: 19201000 | CR61: 2.912 | CT61: 13 de Marzo de 2003 | CU61: 26315059 | CV61: 1303206021 | CW61: -1760000 | CX61: 3.1078 | CZ61: 6 de Agosto de 2002 | DA61: 27234755 | DB61: 1794809926 | DC61: 47300000 | DD61: 3.6208
AU62: Del 28 al 30 de Diciembre de 2015
AV63: 752345316 | AW63: =SUM(#REF!+AV63) -> #REF! | AY63: Del 29 al 30 de diciembre de 2014 | AZ63: 364847326 | BA63: =SUM(#REF!+AZ63) -> #REF! | BC63: 30 de diciembre | BD63: 46960778 | BE63: =SUM(#REF!+BD63) -> #REF!
BW65: Del 29 al 30 de Diciembre de 2008 | BX65: 280371254 | BY65: =+BX65+#REF! -> #REF! | CI65: 16 de Marzo de 2005 | CJ65: 56486434 | CK65: =+CJ65+#REF! -> #REF! | CL65: 2.923 | CN65: 16 de Marzo de 2004 | CO65: 38041306 | CP65: =+CO65+#REF! -> #REF! | CQ65: 20072000 | CR65: 2.9027 | CT65: 17 de Marzo de 2003 | CU65: 42736067 | CV65: =+CU65+#REF! -> #REF! | CW65: 18900000 | CX65: 3.1 | CZ65: 8 de Agosto de 2002 | DA65: 38609477 | DB65: =+#REF!+DA65 -> #REF! | DC65: 50700000 | DD65: 3.6408
AI66: Nota: Elaborado en base a la información proporcionada por las empresas socias de CIARA-CEC | AM66: Nota: Elaborado en base a la información proporcionada por las empresas socias de CIARA-CEC | AQ66: Nota: Elaborado en base a la información proporcionada por las empresas socias de CIARA-CEC | AU66: Nota: Elaborado en base a la información proporcionada por las empresas socias de CIARA-CEC | AY66: Nota: Elaborado en base a la información proporcionada por las empresas socias de CIARA-CEC | BC66: Nota: Elaborado en base a la información proporcionada por las empresas socias de CIARA-CEC | BG66: Nota: Elaborado en base a la información proporcionada por las empresas socias de CIARA-CEC | BK66: Nota: Elaborado en base a la información proporcionada por las empresas socias de CIARA-CEC | BO66: Nota: Elaborado en base a la información proporcionada por las empresas socias de CIARA-CEC | BS66: Nota: Elaborado en base a la información proporcionada por las empresas socias de CIARA-CEC | CA66: Nota: Elaborado en base a la información proporcionada por las empresas socias de CIARA-CEC | CE66: Nota: Elaborado en base a la información proporcionada por las empresas socias de CIARA-CEC | CI66: 17 de Marzo de 2005 | CJ66: 29864119 | CK66: =+CJ66+CK65 -> #REF! | CL66: 2.92 | CN66: 17 de Marzo de 2004 | CO66: 33952737 | CP66: =+CO66+CP65 -> #REF! | CQ66: 20131000 | CR66: 2.8932 | CT66: 18 de Marzo de 2003 | CU66: 41529378 | CV66: =+CU66+CV65 -> #REF! | CW66: 11970000 | CX66: 3.0655 | CZ66: 9 de Agosto de 2002 | DA66: 25722909 | DB66: =+DB65+DA66 -> #REF! | DC66: 40400000 | DD66: 3.6367
BW67: Nota: Elaborado en base a la información proporcionada por las empresas socias de CIARA-CEC | CI67: 18 de Marzo de 2005 | CJ67: 57464959 | CK67: #REF! | CL67: 2.9145 | CN67: 18 de Marzo de 2004 | CO67: 37312577 | CP67: #REF! | CQ67: 20253000 | CR67: 2.8832 | CT67: 19 de Marzo de 2003 | CU67: 28853594 | CV67: #REF! | CW67: -3360000 | CX67: 3.0192 | CZ67: 12 de Agosto de 2002 | DA67: 29553460 | DB67: #REF! | DC67: 51000000 | DD67: 3.62
CI68: 21 de Marzo de 2005 | CJ68: 33359188 | CK68: #REF! | CL68: 2.9163 | CN68: 19 de Marzo de 2004 | CO68: 41034972 | CP68: #REF! | CQ68: 20067000 | CR68: 2.8825 | CT68: 20 de Marzo de 2003 | CU68: 34299190 | CV68: #REF! | CW68: 23040000 | CX68: 3.0195 | CZ68: 13 de Agosto de 2002 | DA68: 34260755 | DB68: #REF! | DC68: 70500000 | DD68: 3.6108
CI69: 22 de Marzo de 2005 | CJ69: 57150412 | CK69: #REF! | CL69: 2.9142 | CN69: 22 de Marzo de 2004 | CO69: 47877350 | CP69: #REF! | CQ69: 24432000 | CR69: 2.8667 | CT69: 21 de Marzo de 2003 | CU69: 25958556 | CV69: #REF! | CW69: 1060000 | CX69: 3.0357 | CZ69: 14 de Agosto de 2002 | DA69: 46718630 | DB69: #REF! | DC69: 56300000 | DD69: 3.6325
CI70: 23 de Marzo de 2005 | CJ70: 29825904 | CK70: #REF! | CL70: 2.9165 | CN70: 23 de Marzo de 2004 | CO70: 41408411 | CP70: #REF! | CQ70: 25381000 | CR70: 2.8658 | CT70: 24 de Marzo de 2003 | CU70: 32342714 | CV70: #REF! | CW70: 21230000 | CX70: 3.0088 | CZ70: 15 de Agosto de 2002 | DA70: 44257270 | DB70: #REF! | DC70: 70400000 | DD70: 3.6417
CI71: 28 de Marzo de 2005 | CJ71: 43500007 | CK71: #REF! | CL71: 2.9188 | CN71: 24 de Marzo de 2004 | CO71: 35487134 | CP71: #REF! | CQ71: 25771000 | CR71: 2.8752 | CT71: 25 de Marzo de 2003 | CU71: 51557933 | CV71: #REF! | CW71: 19070000 | CX71: 2.9417 | CZ71: 16 de Agosto de 2002 | DA71: 35100861.9 | DB71: #REF! | DC71: 70100000 | DD71: 3.6392
CI72: 29 de Marzo de 2005 | CJ72: 65540585 | CK72: #REF! | CL72: 2.9222 | CN72: 25 de Marzo de 2004 | CO72: 37201549 | CP72: #REF! | CQ72: 24568000 | CR72: 2.8818 | CT72: 26 de Marzo de 2003 | CU72: 45190638 | CV72: #REF! | CW72: 17230000 | CX72: 2.9012 | CZ72: 20 de Agosto de 2002 | DA72: 32314248 | DB72: #REF! | DC72: 55200000 | DD72: 3.63
CI73: 30 de Marzo de 2005 | CJ73: 47016226 | CK73: #REF! | CL73: 2.9163 | CN73: 26 de Marzo de 2004 | CO73: 54032455 | CP73: #REF! | CQ73: 24212000 | CR73: 2.8782 | CT73: 27 de Marzo de 2003 | CU73: 37758087 | CV73: #REF! | CW73: 19920000 | CX73: 2.871 | CZ73: 21 de Agosto de 2002 | DA73: 20541588 | DB73: #REF! | DC73: 42400000 | DD73: 3.5983
CI74: 31 de Marzo de 2005 | CJ74: 65926199 | CK74: #REF! | CL74: 2.9233 | CN74: 29 de Marzo de 2004 | CO74: 37211987 | CP74: #REF! | CQ74: 30402000 | CR74: 2.884 | CT74: 28 de Marzo de 2003 | CU74: 48276823 | CV74: #REF! | CW74: 1480000 | CX74: 2.9625 | CZ74: 22 de Agosto de 2002 | DA74: 34795964 | DB74: #REF! | DC74: 59800000 | DD74: 3.5817
CI75: 01 de Abril de 2005 | CJ75: 39574071 | CK75: #REF! | CL75: 2.9188 | CN75: 30 de Marzo de 2004 | CO75: 49039207 | CP75: #REF! | CQ75: 30287000 | CR75: 2.865 | CT75: 1 de Abril de 2003 | CU75: 24320584 | CV75: #REF! | CW75: 3150000 | CX75: 2.9792 | CZ75: 23 de Agosto de 2002 | DA75: 31114676.34 | DB75: #REF! | DC75: 53900000 | DD75: 3.6042
CI76: 04 de Abril de 2005 | CJ76: 32737027 | CK76: #REF! | CL76: 2.9187 | CN76: 31 de Marzo de 2004 | CO76: 56680679 | CP76: #REF! | CQ76: 29602000 | CR76: 2.855 | CT76: 2 de Abril de 2003 | CU76: 26720498 | CV76: #REF! | CW76: 8810000 | CX76: 2.9243 | CZ76: 26 de Agosto de 2002 | DA76: 17883663 | DB76: #REF! | DC76: 29800000 | DD76: 3.6183
CI77: 05 de Abril de 2005 | CJ77: 26349468 | CK77: #REF! | CL77: 2.9158 | CN77: 01 de Abril de 2004 | CO77: 49106623 | CP77: #REF! | CQ77: 35151000 | CR77: 2.8522 | CT77: 3 de Abril de 2003 | CU77: 48220866 | CV77: #REF! | CW77: 32790000 | CX77: 2.9 | CZ77: 27 de Agosto de 2002 | DA77: 24516126 | DB77: #REF! | DC77: 49000000 | DD77: 3.6258
CI78: 06 de Abril de 2005 | CJ78: 41673225 | CK78: #REF! | CL78: 2.9067 | CN78: 02 de Abril de 2004 | CO78: 64339312 | CP78: #REF! | CQ78: 34980000 | CR78: 2.8457 | CT78: 4 de Abril de 2003 | CU78: 29176605 | CV78: #REF! | CW78: 2640000 | CX78: 2.9022 | CZ78: 28 de Agosto de 2002 | DA78: 21562635 | DB78: #REF! | DC78: 36200000 | DD78: 3.605
CI79: 07 de Abril de 2005 | CJ79: 55653572 | CK79: #REF! | CL79: 2.8925 | CN79: 06 de Abril de 2004 | CO79: 60157523 | CP79: #REF! | CQ79: 35501000 | CR79: 2.8445 | CT79: 7 de Abril de 2003 | CU79: 28603596 | CV79: #REF! | CW79: 10880000 | CX79: 2.8932 | CZ79: 29 de Agosto de 2002 | DA79: 17961035 | DB79: #REF! | DC79: 36300000 | DD79: 3.6117
CI80: 08 de Abril de 2005 | CJ80: 65296823 | CK80: #REF! | CL80: 2.8938 | CN80: 07 de Abril de 2004 | CO80: 62886873 | CP80: #REF! | CQ80: 42379000 | CR80: 2.8108 | CT80: 8 de Abril de 2003 | CU80: 36101761 | CV80: #REF! | CW80: 6080000 | CX80: 2.9092 | CZ80: 30 de Agosto de 2002 | DA80: 39506996.25 | DB80: #REF! | DC80: 70700000 | DD80: 3.625
CI81: 11 de Abril de 2005 | CJ81: 29413680 | CK81: #REF! | CL81: 2.8927 | CN81: 12 de Abril de 2004 | CO81: 51979940 | CP81: #REF! | CQ81: 42001000 | CR81: 2.8037 | CT81: 9 de Abril de 2003 | CU81: 37301557 | CV81: #REF! | CW81: 3140000 | CX81: 2.9187 | CZ81: 2 de Septiembre de 2002 | DA81: 12901031 | DB81: #REF! | DC81: 22100000 | DD81: 3.628
CI82: 12 de Abril de 2005 | CJ82: 41089571 | CK82: #REF! | CL82: 2.8897 | CN82: 13 de Abril de 2004 | CO82: 47315200 | CP82: #REF! | CQ82: 47601000 | CR82: 2.8162 | CT82: 10 de Abril de 2003 | CU82: 46810140 | CV82: #REF! | CW82: 21540000 | CX82: 2.895 | CZ82: 3 de Septiembre de 2002 | DA82: 28787369 | DB82: #REF! | DC82: 47300000 | DD82: 3.633
CI83: 13 de Abril de 2005 | CJ83: 56324608 | CK83: #REF! | CL83: 2.8823 | CN83: 14 de Abril de 2004 | CO83: 59392347 | CP83: #REF! | CQ83: 45401000 | CR83: 2.8167 | CT83: 11 de Abril de 2003 | CU83: 27168624 | CV83: #REF! | CW83: 16300000 | CX83: 2.8897 | CZ83: 4 de Septiembre de 2002 | DA83: 25179731.74 | DB83: #REF! | DC83: 68600000 | DD83: 3.6368
CI84: 14 de Abril de 2005 | CJ84: 70287822 | CK84: #REF! | CL84: 2.8838 | CN84: 15 de Abril de 2004 | CO84: 53256458 | CP84: #REF! | CQ84: 45051000 | CR84: 2.8142 | CT84: 14 de Abril de 2003 | CU84: 60217218 | CV84: #REF! | CW84: 4320000 | CX84: 2.924 | CZ84: 5 de Septiembre de 2002 | DA84: 35302815 | DB84: #REF! | DC84: 82000000 | DD84: 3.6247
CI85: 15 de Abril de 2005 | CJ85: 58766202 | CK85: #REF! | CL85: 2.8938 | CN85: 16 de Abril de 2004 | CO85: 60634741 | CP85: #REF! | CQ85: 43451000 | CR85: 2.8195 | CT85: 15 de Abril de 2003 | CU85: 49107001 | CV85: #REF! | CW85: 1570000 | CX85: 2.959 | CZ85: 6 de Septiembre de 2002 | DA85: 39107064 | DB85: #REF! | DC85: 72800000 | DD85: 3.6092
CI86: 18 de Abril de 2005 | CJ86: 34854688 | CK86: #REF! | CL86: 2.9012 | CN86: 19 de Abril de 2004 | CO86: 55228179 | CP86: #REF! | CQ86: 45843000 | CR86: 2.823 | CT86: 16 de Abril de 2003 | CU86: 39732272 | CV86: #REF! | CW86: 2240000 | CX86: 2.9377 | CZ86: 9 de Septiembre de 2002 | DA86: 45080626 | DB86: #REF! | DC86: 72300000 | DD86: 3.6092
CI87: 19 de Abril de 2005 | CJ87: 62079651 | CK87: #REF! | CL87: 2.8983 | CN87: 20 de Abril de 2004 | CO87: 49445788 | CP87: #REF! | CQ87: 46711000 | CR87: 2.8355 | CT87: 21 de Abril de 2003 | CU87: 45420465 | CV87: #REF! | CW87: 9220000 | CX87: 2.8953 | CZ87: 10 de Septiembre de 2002 | DA87: 36282141 | DB87: #REF! | DC87: 59800000 | DD87: 3.6183
CI88: 20 de Abril de 2005 | CJ88: 74321331 | CK88: #REF! | CL88: 2.9025 | CN88: 21 de Abril de 2004 | CO88: 53891844 | CP88: #REF! | CQ88: 43501000 | CR88: 2.8518 | CT88: 22 de Abril de 2003 | CU88: 57803538 | CV88: #REF! | CW88: 40780000 | CX88: 2.8552 | CZ88: 11 de Septiembre de 2002 | DA88: 35106993 | DB88: #REF! | DC88: 55400000 | DD88: 3.61
CI89: 21 de Abril de 2005 | CJ89: 44040679 | CK89: #REF! | CL89: 2.9002 | CN89: 22 de Abril de 2004 | CO89: 53080452 | CP89: #REF! | CQ89: 47073000 | CR89: 2.8633 | CT89: 23 de Abril de 2003 | CU89: 69660373 | CV89: #REF! | CW89: 47890000 | CX89: 2.8378 | CZ89: 12 de Septiembre de 2002 | DA89: 28822405 | DB89: #REF! | DC89: 48500000 | DD89: 3.6237
CI90: 22 de Abril de 2005 | CJ90: 73204307 | CK90: #REF! | CL90: 2.9012 | CN90: 23 de Abril de 2004 | CO90: 68602526 | CP90: #REF! | CQ90: 43318377.81 | CR90: 2.8583 | CT90: 24 de Abril de 2003 | CU90: 38806109 | CV90: #REF! | CW90: 9440000 | CX90: 2.852 | CZ90: 13 de Septiembre de 2002 | DA90: 17974540 | DB90: #REF! | DC90: 40600000 | DD90: 3.6297
CI91: 25 de Abril de 2005 | CJ91: 53855437 | CK91: #REF! | CL91: 2.9013 | CN91: 26 de Abril de 2004 | CO91: 63673048 | CP91: #REF! | CQ91: 47571000 | CR91: 2.8407 | CT91: 25 de Abril de 2003 | CU91: 55547327 | CV91: #REF! | CW91: 10370000 | CX91: 2.8752 | CZ91: 16 de Septiembre de 2002 | DA91: 34647529 | DB91: #REF! | DC91: 59100000 | DD91: 3.6393
CI92: 26 de Abril de 2005 | CJ92: 36575560 | CK92: #REF! | CL92: 2.9002 | CN92: 27 de Abril de 2004 | CO92: 62005520 | CP92: #REF! | CQ92: 44779000 | CR92: 2.8298 | CT92: 28 de Abril de 2003 | CU92: 67275934 | CV92: #REF! | CW92: 25700000 | CX92: 2.8602 | CZ92: 17 de Septiembre de 2002 | DA92: 26705121 | DB92: #REF! | DC92: 53300000 | DD92: 3.6342
CI93: 27 de Abril de 2005 | CJ93: 54823069 | CK93: #REF! | CL93: 2.8982 | CN93: 28 de Abril de 2004 | CO93: 69181373 | CP93: #REF! | CQ93: 50356000 | CR93: 2.8483 | CT93: 29 de Abril de 2003 | CU93: 37805776 | CV93: #REF! | CW93: 45680000 | CX93: 2.8547 | CZ93: 18 de Septiembre de 2002 | DA93: 17392207 | DB93: #REF! | DC93: 37800000 | DD93: 3.6317
CI94: 28 de Abril de 2005 | CJ94: 94483511 | CK94: #REF! | CL94: 2.9037 | CN94: 29 de Abril de 2004 | CO94: 79555317 | CP94: #REF! | CQ94: 44215539 | CR94: 2.863 | CT94: 30 de Abril de 2003 | CU94: 40949425 | CV94: #REF! | CW94: 47220000 | CX94: 2.8295 | CZ94: 19 de Septiembre de 2002 | DA94: 27566348 | DB94: #REF! | DC94: 43500000 | DD94: 3.6508
CI95: 29 de Abril de 2005 | CJ95: 123233165 | CK95: #REF! | CL95: 2.9133 | CN95: 30 de Abril de 2004 | CO95: 70644570 | CP95: #REF! | CQ95: 45834100 | CR95: 2.8452 | CT95: 2 de Mayo de 2003 | CU95: 70006671 | CV95: #REF! | CW95: 94540000 | CX95: 2.7947 | CZ95: 20 de Septiembre de 2002 | DA95: 20893436 | DB95: #REF! | DC95: 61400000 | DD95: 3.658
CI96: 02 de Mayo de 2005 | CJ96: 44689579 | CK96: #REF! | CL96: 2.904 | CN96: 03 de Mayo de 2004 | CO96: 64331627 | CP96: #REF! | CQ96: 44019000 | CR96: 2.8438 | CT96: 5 de Mayo de 2003 | CU96: 49794797 | CV96: #REF! | CW96: 78770000 | CX96: 2.7975 | CZ96: 23 de Septiembre de 2002 | DA96: 33092880 | DB96: #REF! | DC96: 64200000 | DD96: 3.6492
CI97: 03 de Mayo de 2005 | CJ97: 62148887 | CK97: #REF! | CL97: 2.8968 | CN97: 04 de Mayo de 2004 | CO97: 56876012 | CP97: #REF! | CQ97: 46019000 | CR97: 2.8592 | CT97: 6 de Mayo de 2003 | CU97: 37330070 | CV97: #REF! | CW97: 74580000 | CX97: 2.7965 | CZ97: 24 de Septiembre de 2002 | DA97: 27867822 | DB97: #REF! | DC97: 61000000 | DD97: 3.6583
CI98: 04 de Mayo de 2005 | CJ98: 60654491 | CK98: #REF! | CL98: 2.8963 | CN98: 05 de Mayo de 2004 | CO98: 58862140 | CP98: #REF! | CQ98: 44439495 | CR98: 2.864 | CT98: 7 de Mayo de 2003 | CU98: 41124117 | CV98: #REF! | CW98: 5500000 | CX98: 2.8055 | CZ98: 25 de Septiembre de 2002 | DA98: 31237730 | DB98: #REF! | DC98: 51700000 | DD98: 3.665
CI99: 05 de Mayo de 2005 | CJ99: 72512461 | CK99: #REF! | CL99: 2.8957 | CN99: 06 de Mayo de 2004 | CO99: 66052333 | CP99: #REF! | CQ99: 46085000 | CR99: 2.8837 | CT99: 8 de Mayo de 2003 | CU99: 81532256 | CV99: #REF! | CW99: 142470000 | CX99: 2.7683 | CZ99: 26 de Septiembre de 2002 | DA99: 9348865 | DB99: #REF! | DC99: 30000000 | DD99: 3.6678
CI100: 06 de Mayo de 2005 | CJ100: 55291109 | CK100: #REF! | CL100: 2.897 | CN100: 07 de Mayo de 2004 | CO100: 90499829 | CP100: #REF! | CQ100: 44431000 | CR100: 2.9183 | CT100: 9 de mayo de 2003 | CU100: 61729324 | CV100: #REF! | CW100: 153110000 | CX100: 2.7602 | CZ100: 27 de Septiembre de 2002 | DA100: 11209686 | DB100: #REF! | DC100: 32200000 | DD100: 3.701
CI101: 09 de Mayo de 2005 | CJ101: 61976417 | CK101: #REF! | CL101: 2.897 | CN101: 10 de Mayo de 2004 | CO101: 62124289 | CP101: #REF! | CQ101: 45162000 | CR101: 2.9597 | CT101: 12 de Mayo de 2003 | CU101: 45816085 | CV101: #REF! | CW101: 62170000 | CX101: 2.774 | CZ101: 30 de Septiembre de 2002 | DA101: 27968540 | DB101: #REF! | DC101: 65200000 | DD101: 3.7267
CI102: 10 de Mayo de 2005 | CJ102: 57194061 | CK102: #REF! | CL102: 2.8917 | CN102: 11 de Mayo de 2004 | CO102: 64700159 | CP102: #REF! | CQ102: 45255504 | CR102: 2.9143 | CT102: 13 de Mayo de 2003 | CU102: 99278596 | CV102: #REF! | CW102: 90810000 | CX102: 2.7485 | CZ102: 1º de Octubre de 2002 | DA102: 16159896 | DB102: #REF! | DC102: 55600000 | DD102: 3.7417
CI103: 11 de Mayo de 2005 | CJ103: 50822997 | CK103: #REF! | CL103: 2.894 | CN103: 12 de Mayo de 2004 | CO103: 81887194 | CP103: #REF! | CQ103: 44567192.32 | CR103: 2.9098 | CT103: 14 de Mayo de 2003 | CU103: 35899598 | CV103: #REF! | CW103: 12760000 | CX103: 2.7678 | CZ103: 2 de Octubre de 2002 | DA103: 35936117 | DB103: #REF! | DC103: 69400000 | DD103: 3.7608
CI104: 12 de Mayo de 2005 | CJ104: 46183825 | CK104: #REF! | CL104: 2.8965 | CN104: 13 de Mayo de 2004 | CO104: 69751320 | CP104: #REF! | CQ104: 41693531 | CR104: 2.9278 | CT104: 15 de Mayo de 2003 | CU104: 52681678 | CV104: #REF! | CW104: 15730000 | CX104: 2.8395 | CZ104: 3 de Octubre de 2002 | DA104: 42398718 | DB104: #REF! | DC104: 76900000 | DD104: 3.7508
CI105: 13 de Mayo de 2005 | CJ105: 49361182 | CK105: #REF! | CL105: 2.8968 | CN105: 14 de Mayo de 2004 | CO105: 88067018 | CP105: #REF! | CQ105: 49144000 | CR105: 2.9097 | CT105: 16 de Mayo de 2003 | CU105: 47364683 | CV105: #REF! | CW105: 480000 | CX105: 2.9083 | CZ105: 4 de Octubre de 2002 | DA105: 28372588 | DB105: #REF! | DC105: 51400000 | DD105: 3.7397
CI106: 16 de mayo de 2005 | CJ106: 56033889 | CK106: #REF! | CL106: 2.8857 | CN106: 17 de Mayo de 2004 | CO106: 74714351 | CP106: #REF! | CQ106: 44610000 | CR106: 2.9097 | CT106: 19 de Mayo de 2003 | CU106: 81695965 | CV106: #REF! | CW106: -200000 | CX106: 2.95 | CZ106: 7 de Octubre de 2002 | DA106: 23352241 | DB106: #REF! | DC106: 53000000 | DD106: 3.756
CI107: 17 de mayo de 2005 | CJ107: 56317515 | CK107: #REF! | CL107: 2.885 | CN107: 18 de Mayo de 2004 | CO107: 72145369 | CP107: #REF! | CQ107: 45069209 | CR107: 2.9057 | CT107: 20 de Mayo de 2003 | CU107: 74779139 | CV107: #REF! | CW107: 84040000 | CX107: 2.8832 | CZ107: 8 de Octubre de 2002 | DA107: 32436114 | DB107: #REF! | DC107: 59300000 | DD107: 3.7422
CI108: 18 de mayo de 2005 | CJ108: 115515669 | CK108: #REF! | CL108: 2.8873 | CN108: 19 de Mayo de 2004 | CO108: 72997710 | CP108: #REF! | CQ108: 45609752 | CR108: 2.9102 | CT108: 21 de Mayo de 2003 | CU108: 63059097 | CV108: #REF! | CW108: 8000000 | CX108: 2.853 | CZ108: 9 de Octubre de 2002 | DA108: 38746050 | DB108: #REF! | DC108: 70900000 | DD108: 3.715
CI109: 19 de Mayo de 2005 | CJ109: 77324925 | CK109: #REF! | CL109: 2.8843 | CN109: 20 de Mayo de 2004 | CO109: 79835793 | CP109: #REF! | CQ109: 43563000 | CR109: 2.9313 | CT109: 22 de Mayo de 2003 | CU109: 38346122 | CV109: #REF! | CW109: -1010000 | CX109: 2.839 | CZ109: 10 de Octubre de 2002 | DA109: 25605994 | DB109: #REF! | DC109: 46600000 | DD109: 3.6907
CI110: 20 de Mayo de 2005 | CJ110: 76208444 | CK110: #REF! | CL110: 2.8875 | CN110: 21 de Mayo de 2004 | CO110: 73680153 | CP110: #REF! | CQ110: 46957000 | CR110: 2.9525 | CT110: 23 de Mayo de 2003 | CU110: 43987523 | CV110: #REF! | CW110: 1970000 | CX110: 2.8913 | CZ110: 11 de Octubre de 2002 | DA110: 31641700 | DB110: #REF! | DC110: 52000000 | DD110: 3.7052
CI111: 23 de Mayo de 2005 | CJ111: 71415317 | CK111: #REF! | CL111: 2.8862 | CN111: 24 de Mayo de 2004 | CO111: 57709663 | CP111: #REF! | CQ111: 46804000 | CR111: 2.9512 | CT111: 26 de Mayo de 2003 | CU111: 9571710 | CV111: #REF! | CW111: -1450000 | CX111: 2.8825 | CZ111: 15 de Octubre de 2002 | DA111: 55836020 | DB111: #REF! | DC111: 99700000 | DD111: 3.6792
CI112: 24 de Mayo de 2005 | CJ112: 84582457 | CK112: #REF! | CL112: 2.884 | CN112: 26 de Mayo de 2004 | CO112: 59365005 | CP112: #REF! | CQ112: 40410000 | CR112: 2.9535 | CT112: 27 de Mayo de 2003 | CU112: 36828470 | CV112: #REF! | CW112: 5880000 | CX112: 2.8683 | CZ112: 16 de Octubre de 2002 | DA112: 40794419 | DB112: #REF! | DC112: 67600000 | DD112: 3.612
CI113: 26 de Mayo de 2005 | CJ113: 116739887 | CK113: #REF! | CL113: 2.8862 | CN113: 27 de Mayo de 2004 | CO113: 76933631 | CP113: #REF! | CQ113: 39744000 | CR113: 2.9622 | CT113: 28 de mayo de 2003 | CU113: 39095511 | CV113: #REF! | CW113: -1960000 | CX113: 2.8753 | CZ113: 17 de Octubre de 2002 | DA113: 17592809 | DB113: #REF! | DC113: 43700000 | DD113: 3.5742
CI114: 27 de Mayo de 2005 | CJ114: 70906934 | CK114: #REF! | CL114: 2.885 | CN114: 28 de Mayo de 2004 | CO114: 78602523 | CP114: #REF! | CQ114: 44931000 | CR114: 2.9627 | CT114: 29 de Mayo de 2003 | CU114: 42180746 | CV114: #REF! | CW114: 4350000 | CX114: 2.8825 | CZ114: 18 de Octubre de 2002 | DA114: 22969100 | DB114: #REF! | DC114: 61100000 | DD114: 3.5938
CI115: 30 de Mayo de 2005 | CJ115: 19995980 | CK115: #REF! | CL115: 2.8852 | CN115: 31 de Mayo de 2004 | CO115: 17456252 | CP115: #REF! | CQ115: 3000 | CR115: 2.9642 | CT115: 30 de Mayo de 2003 | CU115: 41729507 | CV115: #REF! | CW115: 4430000 | CX115: 2.8632 | CZ115: 21 de Octubre de 2002 | DA115: 15235513 | DB115: #REF! | DC115: 44200000 | DD115: 3.61
CI116: 31 de Mayo de 2005 | CJ116: 127566588 | CK116: #REF! | CL116: 2.8877 | CN116: 01 de Junio de 2004 | CO116: 69925217 | CP116: #REF! | CQ116: 41695000 | CR116: 2.9658 | CT116: 2 de Junio de 2003 | CU116: 43726705 | CV116: #REF! | CW116: 16240000 | CX116: 2.8468 | CZ116: 22 de Octubre de 2002 | DA116: 18128974 | DB116: #REF! | DC116: 39200000 | DD116: 3.615
CI117: 01 de Junio de 2005 | CJ117: 106636690 | CK117: #REF! | CL117: 2.882 | CN117: 02 de Junio de 2004 | CO117: 58040809 | CP117: #REF! | CQ117: 45726000 | CR117: 2.9537 | CT117: 3 de Junio de 2003 | CU117: 44667339 | CV117: #REF! | CW117: 50300000 | CX117: 2.838 | CZ117: 23 de Octubre de 2002 | DA117: 38983623 | DB117: #REF! | DC117: 80500000 | DD117: 3.6002
CI118: 02 de Junio de 2005 | CJ118: 74023129 | CK118: #REF! | CL118: 2.8845 | CN118: 03 de Junio de 2004 | CO118: 56365778 | CP118: #REF! | CQ118: 25564000 | CR118: 2.9533 | CT118: 4 de Junio de 2003 | CU118: 44736888 | CV118: #REF! | CW118: 30040000 | CX118: 2.8255 | CZ118: 24 de Octubre de 2002 | DA118: 27502009 | DB118: #REF! | DC118: 57900000 | DD118: 3.6033
CI119: 03 de Junio de 2005 | CJ119: 92432461 | CK119: #REF! | CL119: 2.8857 | CN119: 04 de Junio de 2004 | CO119: 60852776 | CP119: #REF! | CQ119: 50813092 | CR119: 2.969 | CT119: 5 de Junio de 2003 | CU119: 43967059 | CV119: #REF! | CW119: 30680000 | CX119: 2.8225 | CZ119: 25 de Octubre de 2002 | DA119: 34022158 | DB119: #REF! | DC119: 64500000 | DD119: 3.606
CI120: Semana 06 al 10 de Junio de 2005 | CJ120: 300496563 | CK120: #REF! | CN120: 07 de Junio de 2004 | CO120: 45534349 | CP120: #REF! | CQ120: 46700812 | CR120: 2.965 | CT120: 6 de Junio de 2003 | CU120: 50904413 | CV120: #REF! | CW120: 42760000 | CX120: 2.8243 | CZ120: 28 de Octubre de 2002 | DA120: 17012688 | DB120: #REF! | DC120: 36500000 | DD120: 3.59
CI121: Semana 13 al 17 de Junio de 2005 | CJ121: 375311902 | CK121: #REF! | CN121: 08 de Junio de 2004 | CO121: 55744384 | CP121: #REF! | CQ121: 40000956 | CR121: 2.9743 | CT121: 9 de Junio de 2003 | CU121: 70164971 | CV121: #REF! | CW121: 74040000 | CX121: 2.815 | CZ121: 29 de Octubre de 2002 | DA121: 39252333 | DB121: #REF! | DC121: 64900000 | DD121: 3.5792
CI122: Semana 21 al 24 de Junio de 2005 | CJ122: 346036465 | CK122: #REF! | CN122: 09 de Junio de 2004 | CO122: 62485452 | CP122: #REF! | CQ122: 40096000 | CR122: 2.962 | CT122: 10 de Junio de 2003 | CU122: 63910252 | CV122: #REF! | CW122: 85190000 | CX122: 2.811 | CZ122: 30 de Octubre de 2002 | DA122: 36728323 | DB122: #REF! | DC122: 69900000 | DD122: 3.5532
CI123: Semana 27 de Junio al 01 de Julio de 2005 | CJ123: 350476394 | CK123: #REF! | CN123: 10 de Junio de 2004 | CO123: 52987522 | CP123: #REF! | CQ123: 41598000 | CR123: 2.9638 | CT123: 11 de Junio de 2003 | CU123: 49782949 | CV123: #REF! | CW123: 28110000 | CX123: 2.8112 | CZ123: 31 de Octubre de 2002 | DA123: 30094861 | DB123: #REF! | DC123: 56000000 | DD123: 3.5232
CI124: Semana 04 al 08 de Julio de 2005 | CJ124: 248344210 | CK124: #REF! | CN124: 11 de Junio de 2004 | CO124: 38765896 | CP124: #REF! | CQ124: 38019000 | CR124: 2.9695 | CT124: 12 de Junio de 2003 | CU124: 48500372 | CV124: #REF! | CW124: 22910000 | CX124: 2.8383 | CZ124: 1 de Noviembre de 2002 | DA124: 17221058 | DB124: #REF! | DC124: 50000000 | DD124: 3.5182
CI125: Semana 11 al 15 de Julio de 2005 | CJ125: 291497868 | CK125: #REF! | CN125: 14 de Junio de 2004 | CO125: 44263919 | CP125: #REF! | CQ125: 42551000 | CR125: 2.9708 | CT125: 13 de Junio de 2003 | CU125: 81673537 | CV125: #REF! | CW125: 101900000 | CX125: 2.8265 | CZ125: 4 de Noviembre de 2002 | DA125: 17390663 | DB125: #REF! | DC125: 49500000 | DD125: 3.541
CI126: Semana 18 al 22 de Julio de 2005 | CJ126: 276529529 | CK126: #REF! | CN126: 15 de Junio de 2004 | CO126: 59883299 | CP126: #REF! | CQ126: 39542836.35 | CR126: 2.9552 | CT126: 17 de Junio de 2003 | CU126: 71075232 | CV126: #REF! | CW126: 89340000 | CX126: 2.8043 | CZ126: 5 de Noviembre de 2002 | DA126: 22231393 | DB126: #REF! | DC126: 47700000 | DD126: 3.5367
CI127: Semana 25 al 29 de Julio de 2005 | CJ127: 284568443 | CK127: #REF! | CN127: 16 de Junio de 2004 | CO127: 50190766 | CP127: #REF! | CQ127: 39586311 | CR127: 2.9543 | CT127: 18 de Junio de 2003 | CU127: 60923664 | CV127: #REF! | CW127: 70400000 | CX127: 2.795 | CZ127: 7 de Noviembre de 2002 | DA127: 39193376 | DB127: #REF! | DC127: 102600000 | DD127: 3.5395
CI128: Semana 01 al 05 de Agosto de 2005 | CJ128: 290656871 | CK128: #REF! | CN128: 17 de Junio de 2004 | CO128: 42445477 | CP128: #REF! | CQ128: 44257851.5 | CR128: 2.9555 | CT128: 19 de Junio de 2003 | CU128: 40605899 | CV128: #REF! | CW128: 35150000 | CX128: 2.7987 | CZ128: 8 de Noviembre de 2002 | DA128: 63839855 | DB128: #REF! | DC128: 99800000 | DD128: 3.5343
CI129: Semana del 08 al 12 de Agosto de 2005 | CJ129: 241015385 | CK129: #REF! | CN129: 18 de Junio de 2004 | CO129: 58538996 | CP129: #REF! | CQ129: 38163000 | CR129: 2.9632 | CT129: 20 de Junio de 2003 | CU129: 71022468 | CV129: #REF! | CW129: 34860000 | CX129: 2.8027 | CZ129: 11 de Noviembre de 2002 | DA129: 1400000 | DB129: #REF! | DC129: 19600000 | DD129: 3.5422
CI130: Semana del 16 al 19 de Agosto de 2005 | CJ130: 113455532 | CK130: #REF! | CN130: 22 de Junio de 2004 | CO130: 75746108 | CP130: #REF! | CQ130: 31916322 | CR130: 2.9632 | CT130: 23 de Junio de 2003 | CU130: 48360685 | CV130: #REF! | CW130: 89690000 | CX130: 2.7957 | CZ130: 12 de Noviembre de 2002 | DA130: 42407699 | DB130: #REF! | DC130: 82700000 | DD130: 3.5292
CI131: Semana del 22 al 26 de Agosto de 2005 | CJ131: 170183018 | CK131: #REF! | CN131: 23 de Junio de 2004 | CO131: 100257959 | CP131: #REF! | CQ131: 38934000 | CR131: 2.9505 | CT131: 24 de Junio de 2003 | CU131: 58795021 | CV131: #REF! | CW131: 78350000 | CX131: 2.7728 | CZ131: 13 de Noviembre de 2002 | DA131: 20432154 | DB131: #REF! | DC131: 55300000 | DD131: 3.5303
CI132: Semana del 29 de Agosto al 02 de Septiembre de 2005 | CJ132: 216906490 | CK132: #REF! | CN132: 24 de Junio de 2004 | CO132: 56533254 | CP132: #REF! | CQ132: 37920000 | CR132: 2.9378 | CT132: 25 de Junio de 2003 | CU132: 67816351 | CV132: #REF! | CW132: 32970000 | CX132: 2.7615 | CZ132: 14 de Noviembre de 2002 | DA132: 51079276 | DB132: #REF! | DC132: 81900000 | DD132: 3.5358
CI133: Semana del 05 al 09 de Septiembre de 2005 | CJ133: 148739850 | CK133: #REF! | CN133: 25 de Junio de 2004 | CO133: 49131061 | CP133: #REF! | CQ133: 35728000 | CR133: 2.9543 | CT133: 26 de junio de 2003 | CU133: 95314721 | CV133: #REF! | CW133: 57730000 | CX133: 2.7857 | CZ133: 15 de Noviembre de 2002 | DA133: 41326880 | DB133: #REF! | DC133: 70400000 | DD133: 3.5317
CI134: Semana del 12 al 16 de Septiembre de 2005 | CJ134: 128606101 | CK134: #REF! | CN134: 28 de Junio de 2004 | CO134: 52401506 | CP134: #REF! | CQ134: 34781916 | CR134: 2.9593 | CT134: 27 de Junio de 2003 | CU134: 55385206 | CV134: #REF! | CW134: 12350000 | CX134: 2.794 | CZ134: 18 de Noviembre de 2002 | DA134: 23750022 | DB134: #REF! | DC134: 64100000 | DD134: 3.527
CI135: Semana del 19 al 23 de Septiembre de 2005 | CJ135: 128627458 | CK135: #REF! | CN135: 29 de Junio de 2004 | CO135: 66047867 | CP135: #REF! | CQ135: 35779302.04 | CR135: 2.9642 | CT135: 30 de Junio de 2003 | CU135: 48340120 | CV135: #REF! | CW135: 12818000 | CX135: 2.8075 | CZ135: 19 de Noviembre de 2002 | DA135: 24782528 | DB135: #REF! | DC135: 46100000 | DD135: 3.5127
CI136: Semana del 26 al 30 de Septiembre de 2005 | CJ136: 161274346 | CK136: #REF! | CN136: 30 de Junio de 2004 | CO136: 74965454 | CP136: #REF! | CQ136: -29239000 | CR136: 2.9607 | CT136: 01 de Julio de 2003 | CU136: 44995878 | CV136: #REF! | CW136: 21501000 | CX136: 2.8003 | CZ136: 20 de Noviembre de 2002 | DA136: 19457682 | DB136: #REF! | DC136: 47400000 | DD136: 3.5123
CI137: Semana del 3 al 7 de Octubre de 2005 | CJ137: 120560659 | CK137: #REF! | CN137: 01 de Julio de 2004 | CO137: 37886979 | CP137: #REF! | CQ137: 35053385.87 | CR137: 2.9505 | CT137: 02 de Julio de 2003 | CU137: 85158761 | CV137: #REF! | CW137: 25150000 | CX137: 2.8012 | CZ137: 21 de Noviembre de 2002 | DA137: 18798800 | DB137: #REF! | DC137: 65400000 | DD137: 3.5067
CI138: Semana del 11 al 14 de Octubre de 2005 | CJ138: 147372719 | CK138: #REF! | CN138: 02 de Julio de 2004 | CO138: 31235775 | CP138: #REF! | CQ138: 35102066.44 | CR138: 2.9472 | CT138: 03 de Julio de 2003 | CU138: 51772181 | CV138: #REF! | CW138: 12600000 | CX138: 2.7967 | CZ138: 22 de Noviembre de 2002 | DA138: 19148881 | DB138: #REF! | DC138: 40500000 | DD138: 3.5023
CI139: Semana del 17 al 21 de Octubre de 2005 | CJ139: 186872562 | CK139: #REF! | CN139: 05 de Julio de 2004 | CO139: 13275489 | CP139: #REF! | CQ139: 30000 | CR139: 2.9485 | CT139: 04 de Julio de 2003 | CU139: 8683146 | CV139: #REF! | CW139: -1000000 | CX139: 2.7953 | CZ139: 25 de Noviembre de 2002 | DA139: 25578754 | DB139: #REF! | DC139: 52200000 | DD139: 3.5047
CI140: Semana del 24 al 28 de Octubre de 2005 | CJ140: 148316090 | CK140: #REF! | CN140: 06 de Julio de 2004 | CO140: 49474774 | CP140: #REF! | CQ140: 99421498.01 | CR140: 2.9417 | CT140: 07 de Julio de 2003 | CU140: 67391056 | CV140: #REF! | CW140: 57150000 | CX140: 2.7902 | CZ140: 26 de Noviembre de 2002 | DA140: 45688115 | DB140: #REF! | DC140: 82300000 | DD140: 3.4795
CI141: Semana del 31 de Octubre al 4 de Noviembre de 2005 | CJ141: 163933593 | CK141: #REF! | CN141: 07 de Julio de 2004 | CO141: =45825790+800000 -> 46625790 | CP141: #REF! | CQ141: 36306536 | CR141: 2.9428 | CT141: 08 de Julio de 2003 | CU141: 52434803 | CV141: #REF! | CW141: 34050000 | CX141: 2.776 | CZ141: 27 de Noviembre de 2002 | DA141: 18457831 | DB141: #REF! | DC141: 51800000 | DD141: 3.4882
CI142: Semana del 7 al 11 de Noviembre de 2005 | CJ142: 125490537 | CK142: #REF! | CN142: 08 de Julio de 2004 | CO142: 50366321 | CP142: #REF! | CQ142: 34155000 | CR142: 2.9532 | CT142: 10 de Julio de 2003 | CU142: 50795174 | CV142: #REF! | CW142: 38950000 | CX142: 2.7673 | CZ142: 28 de Noviembre de 2002 | DA142: 4108796 | DB142: #REF! | DC142: 20030000 | DD142: 3.5425
CI143: Semana del 14 al 18 de Noviembre de 2005 | CJ143: 168508401 | CK143: #REF! | CN143: 12 de Julio de 2004 | CO143: 27356292 | CP143: #REF! | CQ143: 31109953 | CR143: 2.957 | CT143: 11 de Julio de 2003 | CU143: 59718710 | CV143: #REF! | CW143: 32940000 | CX143: 2.7582 | CZ143: 29 de Noviembre de 2002 | DA143: 16077616 | DB143: #REF! | DC143: 51200000 | DD143: 3.5962
CI144: Semana del 21 al 25 de Noviembre de 2005 | CJ144: 128918465 | CK144: #REF! | CN144: 13 de Julio de 2004 | CO144: 33225187 | CP144: #REF! | CQ144: 28625668 | CR144: 2.9513 | CT144: 14 de Julio de 2003 | CU144: 38365597 | CV144: #REF! | CW144: 25940000 | CX144: 2.7647 | CZ144: 02 de Diciembre de 2002 | DA144: 61755918 | DB144: #REF! | DC144: 90700000 | DD144: 3.5875
CI145: Semana del 28 Noviembre al 2 de Diciembre de 2005 | CJ145: 189475055 | CK145: #REF! | CN145: 14 de Julio de 2004 | CO145: 58919458 | CP145: #REF! | CQ145: 32094843 | CR145: 2.9473 | CT145: 15 de Julio de 2003 | CU145: 63862044 | CV145: #REF! | CW145: 59500000 | CX145: 2.7815 | CZ145: 03 de Diciembre de 2002 | DA145: 34423762 | DB145: #REF! | DC145: 66600000 | DD145: 3.5372
CI146: Semana del 2 al 9 de Diciembre de 2005 | CJ146: 130084377 | CK146: #REF! | CN146: 15 de Julio de 2004 | CO146: 57655075 | CP146: #REF! | CQ146: 28507192 | CR146: 2.9463 | CT146: 16 de Julio de 2003 | CU146: 48076576 | CV146: #REF! | CW146: 11460000 | CX146: 2.7715 | CZ146: 04 de Diciembre de 2002 | DA146: 12534376 | DB146: #REF! | DC146: 38600000 | DD146: 3.5285
CI147: Semana del 12 al 16 de Diciembre de 2005 | CJ147: 218649570 | CK147: #REF! | CN147: 16 de Julio de 2004 | CO147: 39837289 | CP147: #REF! | CQ147: 32260803 | CR147: 2.9382 | CT147: 17 de Julio de 2003 | CU147: 29896268 | CV147: #REF! | CW147: 37650000 | CX147: 2.7873 | CZ147: 05 de Diciembre de 2002 | DA147: 23187678 | DB147: #REF! | DC147: 72000000 | DD147: 3.5188
CI148: Semana del 19 al 23 de Diciembre de 2005 | CJ148: 231803910 | CK148: #REF! | CN148: 19 de Julio de 2004 | CO148: 51789955 | CP148: #REF! | CQ148: 25193890 | CR148: 2.9443 | CT148: 18 de Julio de 2003 | CU148: 43510550 | CV148: #REF! | CW148: 31150000 | CX148: 2.799 | CZ148: 06 de Diciembre de 2002 | DA148: 25392456 | DB148: #REF! | DC148: 49100000 | DD148: 3.5307
CI149: Semana del 26 al 30 de Diciembre de 2005 | CJ149: 238200924 | CK149: #REF! | CN149: 20 de Julio de 2004 | CO149: 52404562 | CP149: #REF! | CQ149: 25556000 | CR149: 2.9497 | CT149: 21 de Julio de 2003 | CU149: 26126000 | CV149: #REF! | CW149: 25106000 | CX149: 2.7973 | CZ149: 09 de Diciembre de 2002 | DA149: 28900571 | DB149: #REF! | DC149: 71000000 | DD149: 3.5333
CN150: 21 de Julio de 2004 | CO150: 51536592 | CP150: #REF! | CQ150: 25165400 | CR150: 2.9522 | CT150: 22 de Julio de 2003 | CU150: 35873234 | CV150: #REF! | CW150: 42206000 | CX150: 2.7863 | CZ150: 10 de Diciembre de 2002 | DA150: 22148394 | DB150: #REF! | DC150: 58400000 | DD150: 3.5268
CI151: Nota: Elaborado en base a la información proporcionada por las empresas socias de CIARA-CEC | CN151: 22 de Julio de 2004 | CO151: 45000377 | CP151: #REF! | CQ151: 25126152 | CR151: 2.955 | CT151: 23 de Julio de 2003 | CU151: 31047633 | CV151: #REF! | CW151: 17300000 | CX151: 2.7757 | CZ151: 11 de Diciembre de 2002 | DA151: 30504823 | DB151: #REF! | DC151: 54200000 | DD151: 3.5065
CI152: (*) Tipo de Cambio de Referencia - Comunicación A "3500" (Mayorista) - Fuente: BCRA - | CN152: 23 de Julio de 2004 | CO152: 59780785 | CP152: #REF! | CQ152: 25009565 | CR152: 2.962 | CT152: 24 de Julio de 2003 | CU152: 47167345 | CV152: #REF! | CW152: 35330000 | CX152: 2.79 | CZ152: 12 de Diciembre de 2002 | DA152: 18299097 | DB152: #REF! | DC152: 51400000 | DD152: 3.4975
CN153: 26 de Julio de 2004 | CO153: 36156336 | CP153: #REF! | CQ153: 24534000 | CR153: 2.973 | CT153: 25 de Julio de 2003 | CU153: 42002596 | CV153: #REF! | CW153: 27420000 | CX153: 2.8183 | CZ153: 13 de Diciembre de 2002 | DA153: 27560632 | DB153: #REF! | DC153: 65400000 | DD153: 3.5088
CN154: 27 de Julio de 2004 | CO154: 26678573 | CP154: #REF! | CQ154: 25763368 | CR154: 2.9745 | CT154: 28 de Julio de 2003 | CU154: 23160612 | CV154: #REF! | CW154: 15950000 | CX154: 2.8182 | CZ154: 16 de Diciembre de 2002 | DA154: 27466454 | DB154: #REF! | DC154: 51000000 | DD154: 3.5365
CN155: 28 de Julio de 2004 | CO155: 23552351 | CP155: #REF! | CQ155: 25172000 | CR155: 2.9713 | CT155: 29 de Julio de 2003 | CU155: 31230753 | CV155: #REF! | CW155: 25250000 | CX155: 2.8423 | CZ155: 17 de Diciembre de 2002 | DA155: 25903550 | DB155: #REF! | DC155: 56090000 | DD155: 3.538
CN156: 29 de Julio de 2004 | CO156: 24845255 | CP156: #REF! | CQ156: 25402000 | CR156: 2.9775 | CT156: 30 de Julio de 2003 | CU156: 44875265 | CV156: #REF! | CW156: -4201000 | CX156: 2.8797 | CZ156: 18 de Diciembre de 2002 | DA156: 43245809 | DB156: #REF! | DC156: 93100000 | DD156: 3.5118
CN157: 30 de Julio de 2004 | CO157: 49219835 | CP157: #REF! | CQ157: 25605730 | CR157: 2.976 | CT157: 31 de Julio de 2003 | CU157: 28998685 | CV157: #REF! | CW157: 6480000 | CX157: 2.9313 | CZ157: 19 de Diciembre de 2002 | DA157: 28320935 | DB157: #REF! | DC157: 61800000 | DD157: 3.4792
CN158: 02 de Agosto de 2004 | CO158: 25917107 | CP158: #REF! | CQ158: 26466484 | CR158: 2.9852 | CT158: 01 de Agosto de 2003 | CU158: 20239326 | CV158: #REF! | CW158: -3737000 | CX158: 2.93 | CZ158: 20 de Diciembre de 2002 | DA158: 9400000 | DB158: #REF! | DC158: 61800000 | DD158: 3.4748
CN159: 03 de Agosto de 2004 | CO159: 25913557 | CP159: #REF! | CQ159: 25182000 | CR159: 2.9932 | CT159: 04 de Agosto de 2003 | CU159: 25214000 | CV159: #REF! | CW159: 5061000 | CX159: 2.9618 | CZ159: 23 de Diciembre de 2002 | DA159: 39738826 | DB159: #REF! | DC159: 91500000 | DD159: 3.47
CN160: 04 de Agosto de 2004 | CO160: 27230232 | CP160: #REF! | CQ160: 24731000 | CR160: 3.0118 | CT160: 05 de Agosto de 2003 | CU160: 23098313 | CV160: #REF! | CW160: 3415000 | CX160: 2.9385 | CZ160: 26 de Diciembre de 2002 | DA160: 36715201 | DB160: #REF! | DC160: 76800000 | DD160: 3.4467
CN161: 05 de Agosto de 2004 | CO161: 38713028 | CP161: #REF! | CQ161: 25782637 | CR161: 3.04 | CT161: 06 de Agosto de 2003 | CU161: 14959698 | CV161: #REF! | CW161: 1927000 | CX161: 2.931 | CZ161: 27 de Diciembre de 2002 | DA161: 14626812 | DB161: #REF! | DC161: 54700000 | DD161: 3.4128
CN162: 06 de Agosto de 2004 | CO162: 38180392 | CP162: #REF! | CR162: 3.0718 | CT162: 07 de Agosto de 2003 | CU162: 25594646 | CV162: #REF! | CW162: 1765000 | CX162: 2.9288 | CZ162: 30 de Diciembre de 2002 | DA162: 28253938 | DB162: #REF! | DC162: 64900000 | DD162: 3.3885
CN163: 09 de Agosto de 2004 | CO163: 29102185 | CP163: #REF! | CR163: 3.045 | CT163: 08 de Agosto de 2003 | CU163: 36120975 | CV163: #REF! | CW163: 4354000 | CX163: 2.9248
CN164: 10 de Agosto de 2004 | CO164: 25710886 | CP164: #REF! | CR164: 3.023 | CT164: 11 de Agosto de 2003 | CU164: 30482616 | CV164: #REF! | CW164: 8441000 | CX164: 2.9207
CN165: 11 de Agosto de 2004 | CO165: 28802139 | CP165: #REF! | CR165: 3.028 | CT165: 12 de Agosto de 2003 | CU165: 31098990 | CV165: #REF! | CW165: 17002000 | CX165: 2.9073 | CZ165: Nota: Elaborado en base a la información proporcionada por las empresas socias de CIARA-CEC
CN166: 12 de Agosto de 2004 | CO166: 27789881 | CP166: #REF! | CR166: 3.0207 | CT166: 13 de Agosto de 2003 | CU166: 29253119 | CV166: #REF! | CW166: 15316000 | CX166: 2.8842 | CZ166: (*) Tipo de Cambio de Referencia - Comunicación A "3500" (Mayorista) - Fuente: BCRA -
CN167: 13 de Agosto de 2004 | CO167: 45082743 | CP167: #REF! | CR167: 3.0112 | CT167: 14 de Agosto de 2003 | CU167: 72369991 | CV167: #REF! | CW167: 4370000 | CX167: 2.896
CN168: 17 de Agosto de 2004 | CO168: 34135012 | CP168: #REF! | CR168: 3.0107 | CT168: 15 de Agosto de 2003 | CU168: 32583816 | CV168: #REF! | CW168: -2753000 | CX168: 2.9
CN169: 18 de Agosto de 2004 | CO169: 28977031 | CP169: #REF! | CR169: 3.018 | CT169: 19 de Agosto de 2003 | CU169: 64487107 | CV169: #REF! | CW169: 9314000 | CX169: 2.902
CN170: 19 de Agosto de 2004 | CO170: 27866601 | CP170: #REF! | CR170: 3.007 | CT170: 20 de Agosto de 2003 | CU170: 61228240 | CV170: #REF! | CW170: 14681000 | CX170: 2.906
CN171: 20 de Agosto de 2004 | CO171: 36873166 | CP171: #REF! | CR171: 3.0087 | CT171: 21 de Agosto de 2003 | CU171: 84723794 | CV171: #REF! | CW171: 5311000 | CX171: 2.9352
CN172: 23 de Agosto de 2004 | CO172: 39714514 | CP172: #REF! | CR172: 3.0077 | CT172: 22 de Agosto de 2003 | CU172: 78279751 | CV172: #REF! | CW172: 1255000 | CX172: 2.97
CN173: 24 de Agosto de 2004 | CO173: 36249263 | CP173: #REF! | CR173: 3.002 | CT173: 25 de Agosto de 2003 | CU173: 31536755 | CV173: #REF! | CW173: -343000 | CX173: 2.9298
CN174: 25 de Agosto de 2004 | CO174: 37621845 | CP174: #REF! | CR174: 2.9892 | CT174: 26 de Agosto de 2003 | CU174: 24478721 | CV174: #REF! | CW174: 8908000 | CX174: 2.9217
CN175: 26 de Agosto de 2004 | CO175: 35735803 | CP175: #REF! | CR175: 2.9938 | CT175: 27 de Agosto de 2003 | CU175: 50538386 | CV175: #REF! | CW175: 10211000 | CX175: 2.9572
CN176: 27 de Agosto de 2004 | CO176: 28598692 | CP176: #REF! | CR176: 3.0097 | CT176: 28 de Agosto de 2003 | CU176: 43472740 | CV176: #REF! | CW176: -704000 | CX176: 2.972
CN177: 30 de Agosto de 2004 | CO177: 55845513 | CP177: #REF! | CR177: 3.0082 | CT177: 29 de Agosto de 2003 | CU177: 39421460 | CV177: #REF! | CW177: -1596000 | CX177: 2.9528
CN178: 31 de Agosto de 2004 | CO178: 54012908 | CP178: #REF! | CR178: 3.0003 | CT178: 01 de Septiembre de 2003 | CU178: 2630334 | CV178: #REF! | CW178: -399000 | CX178: 2.963
CN179: 01 de Septiembre de 2004 | CO179: 35572800 | CP179: #REF! | CR179: 2.9977 | CT179: 02 de Septiembre de 2003 | CU179: 43123873 | CV179: #REF! | CW179: 8050000 | CX179: 2.9658
CN180: 02 de Septiembre de 2004 | CO180: 30373983 | CP180: #REF! | CR180: 3.0017 | CT180: 03 de Septiembre de 2003 | CU180: 36850954 | CV180: #REF! | CW180: 3687000 | CX180: 2.9773
CN181: 03 de Septiembre de 2004 | CO181: 62458255 | CP181: #REF! | CR181: 3.002 | CT181: 04 de Septiembre de 2003 | CU181: 60609572 | CV181: #REF! | CW181: -227000 | CX181: 2.9607
CN182: 06 de Septiembre de 2004 | CO182: 9028208 | CP182: #REF! | CR182: 2.9928 | CT182: 05 de Septiembre de 2003 | CU182: 41372226 | CV182: #REF! | CW182: 9254000 | CX182: 2.937
CN183: 07 de Septiembre de 2004 | CO183: 56873384 | CP183: #REF! | CR183: 2.9932 | CT183: 08 de Septiembre de 2003 | CU183: 28746245 | CV183: #REF! | CW183: 1563000 | CX183: 2.9428
CN184: 08 de Septiembre de 2004 | CO184: 48692519 | CP184: #REF! | CR184: 2.9948 | CT184: 09 de Septiembre de 2003 | CU184: 29635616 | CV184: #REF! | CW184: -1351000 | CX184: 2.9567
CN185: 09 de Septiembre de 2004 | CO185: 64499055 | CP185: #REF! | CR185: 3.0045 | CT185: 10 de Septiembre de 2003 | CU185: 26363243 | CV185: #REF! | CW185: 915000 | CX185: 2.9353
CN186: 10 de Septiembre de 2004 | CO186: 44435646 | CP186: #REF! | CR186: 3.0095 | CT186: 11 de Septiembre de 2003 | CU186: 41479720 | CV186: #REF! | CW186: 1725000 | CX186: 2.9028
CN187: 13 de Septiembre de 2004 | CO187: 29866316 | CP187: #REF! | CR187: 3.0087 | CT187: 12 de Septiembre de 2003 | CU187: 37836805 | CV187: #REF! | CW187: -6877000 | CX187: 2.8942
CN188: 14 de Septiembre de 2004 | CO188: 39496687 | CP188: #REF! | CR188: 2.9957 | CT188: 15 de Septiembre de 2003 | CU188: 25465463 | CV188: #REF! | CW188: 605000 | CX188: 2.8898
CN189: 15 de Septiembre de 2004 | CO189: 34188429 | CP189: #REF! | CR189: 2.9832 | CT189: 16 de Septiembre de 2003 | CU189: 39975122 | CV189: #REF! | CW189: -399000 | CX189: 2.8917
CN190: 16 de Septiembre de 2004 | CO190: 47186363 | CP190: #REF! | CR190: 2.9803 | CT190: 17 de Septiembre de 2003 | CU190: 30324014 | CV190: #REF! | CW190: 4560000 | CX190: 2.9067
CN191: 17 de Septiembre de 2004 | CO191: 45698748 | CP191: #REF! | CR191: 3.0048 | CT191: 18 de Septiembre de 2003 | CU191: 33714612 | CV191: #REF! | CW191: 1236000 | CX191: 2.9178
CN192: 20 de Septiembre de 2004 | CO192: 32241111 | CP192: #REF! | CR192: 2.9938 | CT192: 19 de Septiembre de 2003 | CU192: 31271550 | CV192: #REF! | CW192: 5113000 | CX192: 2.9117
CN193: 21 de Septiembre de 2004 | CO193: 24873859 | CP193: #REF! | CR193: 3.0028 | CT193: 22 de Septiembre de 2003 | CU193: 31623800 | CV193: #REF! | CW193: 4563000 | CX193: 2.9107
CN194: 22 de Septiembre de 2004 | CO194: 51192934 | CP194: #REF! | CR194: 3.001 | CT194: 23 de Septiembre de 2003 | CU194: 34567666 | CV194: #REF! | CW194: 5929000 | CX194: 2.8963
CN195: 23 de Septiembre de 2004 | CO195: 52965318 | CP195: #REF! | CR195: 2.9925 | CT195: 24 de Septiembre de 2003 | CU195: 37291836 | CV195: #REF! | CW195: 20724000 | CX195: 2.8933
CN196: 24 de Septiembre de 2004 | CO196: 27430685 | CP196: #REF! | CR196: 2.9983 | CT196: 25 de Septiembre de 2003 | CU196: 25134216 | CV196: #REF! | CW196: 8857000 | CX196: 2.89
CN197: 27 de Septiembre de 2004 | CO197: 33628435 | CP197: #REF! | CR197: 2.9948 | CT197: 26 de Septiembre de 2003 | CU197: 39773394 | CV197: #REF! | CW197: -2210000 | CX197: 2.9007
CN198: 28 de Septiembre de 2004 | CO198: 48911675 | CP198: #REF! | CR198: 2.991 | CT198: 29 de Septiembre de 2003 | CU198: 32965921 | CV198: #REF! | CW198: 14396000 | CX198: 2.9055
CN199: 29 de Septiembre de 2004 | CO199: 45881445 | CP199: #REF! | CR199: 2.9867 | CT199: 30 de Septiembre de 2003 | CU199: 44905120 | CV199: #REF! | CW199: 12711000 | CX199: 2.911
CN200: 30 de Septiembre de 2004 | CO200: 30964914 | CP200: #REF! | CR200: 2.9825 | CT200: 01 de Octubre de 2003 | CU200: 27593856 | CV200: #REF! | CW200: 9724000 | CX200: 2.9127
CN201: 01 de Octubre de 2004 | CO201: 38075767 | CP201: #REF! | CR201: 2.979 | CT201: 02 de Octubre de 2003 | CU201: 20759193 | CV201: #REF! | CW201: 7525000 | CX201: 2.9012
CN202: 04 de Octubre de 2004 | CO202: 34544118 | CP202: #REF! | CR202: 2.973 | CT202: 03 de Octubre de 2003 | CU202: 32958238 | CV202: #REF! | CW202: 10260000 | CX202: 2.8952
... 62 more rows

Sheet Datos Mensuales
A1: Liquidacion de Divisas de los Industriales Oleaginosos y los Exportadores de Cereales
A2: (en dolares estadounidenses)
B4: 2002 | C4: 2003 | D4: 2004 | E4: 2005 | F4: 2006 | G4: 2007 | H4: 2008 | I4: 2009 | J4: 2010 | K4: 2011 | L4: 2012 | M4: 2013 | N4: 2014 | O4: 2015 | P4: 2016
A5: Total liquidacion del mes de: | Q5: 2017 | R5: 2018 | S5: 2019 | T5: 2020 | U5: 2021 | V5: 2022 | W5: 2023 | X5: 2024 | Y5: 2025
A7: Enero | C7: 648346805 | D7: 1006513262 | E7: 765562150 | F7: 851393281 | G7: 1050717671 | H7: 1638757715 | I7: 1553370420 | J7: 994697683 | K7: 1430502591 | L7: 1700959235 | M7: 1284200309 | N7: 1069024859 | O7: 1086891281 | P7: 2477212744 | Q7: 2050385854 | R7: 1879151216 | S7: 1755694136 | T7: 1613756421 | U7: 2140354575 | V7: 2441646546 | W7: 928372001 | X7: 1522414786 | Y7: 2073499162
A8: Febrero | C8: 429309485 | D8: 592108672 | E8: 777924305 | F8: 754154708 | G8: 695775262 | H8: 1614167504 | I8: 1112658695 | J8: 1021742844 | K8: 1193778917 | L8: 1221718674 | M8: 948980098 | N8: 1891919295 | O8: 935119806 | P8: 1646228102 | Q8: 1100379871 | R8: 1378551615 | S8: 1290339768 | T8: 815063096 | U8: 1810076157 | V8: 2500397358 | W8: 644961511 | X8: 1499345762
A9: Marzo | C9: 633353409 | D9: 878817921 | E9: 959642267 | F9: 1000629225 | G9: 1063770252 | H9: 1353305837 | I9: 1009458257 | J9: 1310387678 | K9: 1817743328 | L9: 1770183728 | M9: 1755411040 | N9: 1669471496 | O9: 1177985169 | P9: 1777226704 | Q9: 1672406226 | R9: 1423059120 | S9: 1143379287 | T9: 1064321944 | U9: 2773576208 | V9: 2984037264 | W9: 1228670903 | X9: 1501843144
A10: Abril | C10: 866749669 | D10: 1134377634 | E10: 1168637467 | F10: 1190893094 | G10: 1504942085 | H10: 2311764752 | I10: 1827282622 | J10: 2262442567 | K10: 2613718837 | L10: 2350965209 | M10: 3045745408 | N10: 3174835789 | O10: 2433070867 | P10: 2147677047 | Q10: 1821318860 | R10: 1376332358 | S10: 1915008217 | T10: 1524445457 | U10: 3031403008 | V10: 3171793606 | W10: 2435229359 | X10: 1909880386
A11: Mayo | C11: 1093831665 | D11: 1366592371 | E11: 1433442614 | F11: 1518573231 | G11: 1880010291 | H11: 2401905602 | I11: 2184836679 | J11: 2289864443 | K11: 3203122805 | L11: 2642882997 | M11: 3276756091 | N11: 2976466217 | O11: 2358788553 | P11: 3006717075 | Q11: 2488218286 | R11: 1677797871 | S11: 2035241593 | T11: 1945672172 | U11: 3545921486 | V11: 4231717716 | W11: 4212734119 | X11: 2612599569
A12: Junio | B12: 702783954.6 | C12: 1159673852 | D12: 1231107849 | E12: 1591786034 | F12: 1260097657 | G12: 1813941303 | H12: 1646194310 | I12: 1924867066 | J12: 2693534364 | K12: 2951579543 | L12: 2301707685 | M12: 2488772820 | N12: 2493592739 | O12: 2950062119 | P12: 2068017443 | Q12: 2245777874 | R12: 3833254488 | S12: 2218876896 | T12: 2343986868 | U12: 3358404256 | V12: 3815369692 | W12: 1581687598 | X12: 1977926224
A13: Julio | B13: 807013999.5 | C13: 955142867 | D13: 866823050 | E13: 1154567620 | F13: 1083802788 | G13: 1736655146 | H13: 2807298235 | I13: 1358546843 | J13: 2560174026 | K13: 2248896480 | L13: 2586346011 | M13: 2335837473 | N13: 2790784382 | O13: 2645989051 | P13: 1866810449 | Q13: 2229317743 | R13: 2701252139 | S13: 2253962831 | T13: 2296072801 | U13: 3519721211 | V13: 3164056788 | W13: 1925038614 | X13: 2616153519
A14: Agosto | B14: 637162765.9 | C14: 819182444 | D14: 728072498 | E14: 966542976 | F14: 1002605337 | G14: 1727377366 | H14: 2163679666 | I14: 1122338655 | J14: 1880090395 | K14: 2571052523 | L14: 2093554716 | M14: 2380926696 | N14: 1461127483 | O14: 1511441080 | P14: 2479675233 | Q14: 2256282526 | R14: 1604869934 | S14: 2266086002 | T14: 1743000372 | U14: 3049781726 | V14: 3387888431 | W14: 1746316659 | X14: 2451504224
A15: Septiembre | B15: 572474879.7 | C15: 755661302 | D15: 896460769 | E15: 632922075 | F15: 929332201 | G15: 1634321313 | H15: 2007207290 | I15: 1102253247 | J15: 2031839898 | K15: 2238740344 | L15: 1727424677 | M15: 1804820978 | N15: 1077410075 | O15: 1164209324 | P15: 1787582080 | Q15: 1650689519 | R15: 1310629612 | S15: 2093638249 | T15: 1787449659 | U15: 2441073417 | V15: 8120315975 | W15: 2045759836 | X15: 2480519150
A16: Octubre | B16: 668802248 | C16: 828323345 | D16: 690104236 | E16: 660788621 | F16: 912324187 | G16: 1552439428 | H16: 1484057621 | I16: 1122299305 | J16: 1931576903 | K16: 1962151064 | L16: 1694791506 | M16: 1547575794 | N16: 1781473082 | O16: 1141586462 | P16: 1706403937 | Q16: 1422636553 | R16: 1184029259 | S16: 1978222227 | T16: 1715520147 | U16: 2416616587 | V16: 1217329690 | W16: 743565569 | X16: 2553153313
A17: Noviembre | B17: 532371379 | C17: 538605178 | D17: 717254300 | E17: 677307596 | F17: 780993342 | G17: 1412276353 | H17: 1132993842 | I17: 1084706284 | J17: 1647718403 | K17: 1328008301 | L17: 1441357482 | M17: 1109087317 | N17: 1874138058 | O17: 450888381 | P17: 1598765636 | Q17: 1307816494 | R17: 810022905 | S17: 2185621550 | T17: 1734293026 | U17: 2042708037 | V17: 1696978273 | W17: 1003960092 | X17: 1999218138
A18: Diciembre | B18: 442199552 | C18: 722074077 | D18: 947376573 | E18: 865157011 | F18: 991290560 | G18: 1505713297 | H18: 1358518517 | I18: 796027128 | J18: 1609862062 | K18: 1473727050 | L18: 1537122797 | M18: 1230427422 | N18: 1791090647 | O18: 2096486956 | P18: 1400366197 | Q18: 1153854277 | R18: 1040514400 | S18: 2223417496 | T18: 1690807530 | U18: 2678296709 | V18: 3706639602 | W18: 1245841414 | X18: 1966104060
A20: Total Anual | B20: =SUM(B7:B19) -> 4362808779 | C20: 9450254098 | D20: 11055609135 | E20: 11654280736 | F20: 12276089611 | G20: 17577939767 | H20: 21919850891 | I20: 16198645201 | J20: 22233931266 | K20: 25033021783 | L20: 23069014717 | M20: 23208541446 | N20: 24051334122 | O20: 19952519049 | P20: 23962682647 | Q20: 21399084083 | R20: =SUM(R7:R18) -> 20219464917 | S20: =SUM(S7:S19) -> 23359488252 | T20: 20274389493 | U20: 32807933377 | V20: 40438170941 | W20: 19742137675 | X20: 25090662275
A23: Promedio diario de la liquidacion del mes de: | B23: 2002 | C23: 2003 | D23: 2004 | E23: 2005 | F23: 2006 | G23: 2007 | H23: 2008 | I23: 2009 | J23: 2010 | K23: 2011 | L23: 2012 | M23: 2013 | N23: 2014 | O23: 2015
P24: 2016 | Q24: 2017 | R24: 2018 | S24: 2019 | T24: 2020 | U24: 2021 | V24: 2022 | W24: 2023 | X24: 2024 | Y24: 2025
A26: Enero | C26: 29470309.32 | D26: 47929202.95 | E26: 36455340.48 | F26: 38699694.59 | G26: 47759894.14 | H26: 78036081.67 | I26: 73970020 | J26: 49734884.15 | K26: 68119171 | L26: 89524170.26 | M26: 61152395.67 | N26: 48592039.05 | O26: =O7/21 -> 51756727.67 | P26: =+P7/20 -> 123860637.2 | Q26: =+Q7/22 -> 93199357 | R26: 85415964.36 | S26: =+S7/20 -> 87784706.8 | T26: =+T7/22 -> 73352564.59 | U26: =+U7/20 -> 107017728.8 | V26: =+V7/21 -> 116268883.1 | W26: =+W7/22 -> 42198727.32 | X26: 69200672.09 | Y26: 94249961.91
A27: Febrero | C27: 21465474.25 | D27: 29605433.6 | E27: 38896215.25 | F27: 37707735.4 | G27: 34788763.1 | H27: 76865119.24 | I27: 55632934.75 | J27: 51087142.2 | K27: 59688945.85 | L27: 55532667 | M27: 55822358.71 | N27: 94595964.75 | O27: =O8/18 -> 51951100.33 | P27: =+P8/19 -> 86643584.32 | Q27: =+Q8/18 -> 61132215.06 | R27: =+R8/22 -> 62661437.05 | S27: 64516988.4 | T27: =+T8/18 -> 45281283.11 | U27: 100559786.5 | V27: =+V8/19 -> 131599860.9 | W27: =+W8/18 -> 35831195.06 | X27: 83296986.78
A28: Marzo | C28: 31667670.45 | D28: 38209474.83 | E28: 45697250.81 | F28: 45483146.59 | G28: 48353193.27 | H28: 75183657.61 | I28: 48069440.81 | J28: 59563076.27 | K28: 95670701.47 | L28: 80462896.73 | M28: 92390054.74 | N28: =+N9/19 -> 87866920.84 | O28: =O9/20 -> 58899258.45 | P28: =+P9/21 -> 84629843.05 | Q28: =+Q9/22 -> 76018464.82 | R28: =+R9/20 -> 71152956 | S28: =+S9/21 -> 54446632.71 | T28: =+T9/22 -> 48378270.18 | U28: =+U9/23 -> 120590269.9 | V28: =+V9/22 -> 135638057.5 | W28: 55848677.41 | X28: =+X9/19 -> 79044376
A29: Abril | C29: 43337483.45 | D29: 59704086 | E29: 55649403.19 | F29: 66160727.44 | G29: 83607893.61 | H29: 110084035.8 | I29: 96172769.58 | J29: 113122128.3 | K29: 118805401.7 | L29: 138292071.1 | M29: 152287270.4 | N29: =+N10/22 -> 144310717.7 | O29: 121653543.4 | P29: 102270335.6 | Q29: =+Q10/18 -> 101184381.1 | R29: =+R10/21 -> 65539636.1 | S29: =+S10/22 -> 87045828.05 | T29: =+T10/21 -> 72592640.81 | U29: 144352524.2 | V29: =+V10/19 -> 166936505.6 | W29: =+W10/18 -> 135290519.9 | X29: =+X10/20 -> 95494019.3
A30: Mayo | C30: 52087222.14 | D30: 68329618.55 | E30: 68259172.1 | F30: 72313011 | G30: 89524299.57 | H30: 114376457.2 | I30: 114991404.2 | J30: 120519181.2 | K30: 152529657.4 | L30: 125851571.3 | M30: 148943458.7 | N30: =+N11/23 -> 129411574.7 | O30: =O11/19 -> 124146765.9 | P30: 143177003.6 | Q30: =+Q11/21 -> 118486585 | R30: =+R11/22 -> 76263539.59 | S30: 92510981.5 | T30: =+T11/17 -> 114451304.2 | U30: =+U11/19 -> 186627446.6 | V30: =+V11/21 -> 201510367.4 | W30: =+W11/20 -> 210636706 | X30: =+X11/18 -> 145144420.5
A31: Junio | B31: 36988629.21 | C31: 57983692.6 | D31: 58624183.29 | E31: 75799334.95 | F31: 60004650.33 | G31: 90697065.15 | H31: 82309715.5 | I31: 101308792.9 | J31: 128263541.1 | K31: 140551406.8 | L31: 109605127.9 | M31: 124438641 | N31: 108417075.6 | O31: =O12/22 -> 134093732.7 | P31: =+P12/22 -> 94000792.86 | Q31: 106941803.5 | R31: =+R12/20 -> 191662724.4 | S31: 110943844.8 | T31: =+T12/19 -> 123367729.9 | U31: =+U12/21 -> 159924012.2 | V31: =+V12/20 -> 190768484.6 | W31: 79084379.9 | X31: =+X12/17 -> 116348601.4
A32: Julio | B32: 36682454.5 | C32: 43415584.86 | D32: 41277288.1 | E32: 54979410.48 | F32: 51609656.57 | G32: 82697864.1 | H32: 127604465.2 | I32: 71502465.42 | J32: 121913048.9 | K32: 107090308.6 | L32: 123159333.9 | M32: =+M13/22 -> 106174430.6 | N32: 121338451.4 | O32: =O13/23 -> 115043002.2 | P32: =+P13/20 -> 93340522.45 | Q32: 106157987.8 | R32: =+R13/22 -> 122784188.1 | S32: =+S13/23 -> 97998383.96 | T32: =+T13/22 -> 104366945.5 | U32: =+U13/19 -> 185248484.8 | V32: =+V13/21 -> 150669370.9 | W32: 91668505.43 | X32: =+X13/22 -> 118916069
A33: Agosto | B33: 30341084.09 | C33: 40959122.2 | D33: 34670118.95 | E33: 43933771.64 | F33: 45572969.86 | G33: 78517153 | H33: 108183983.3 | I33: 59070455.53 | J33: 89528114.05 | K33: 111784892.3 | L33: 95161578 | M33: =+M14/21 -> 113377461.7 | N33: =+N14/20 -> 73056374.15 | O33: =O14/20 -> 75572054 | P33: =+P14/22 -> 112712510.6 | Q33: =+Q14/23 -> 98099240.26 | R33: 72948633.36 | S33: =+S14/22 -> 103003909.2 | T33: =+T14/20 -> 87150018.6 | U33: =+U14/21 -> 145227701.2 | V33: =+V14/20 -> 169394421.6 | W33: =+W15/21 -> 97417135.05 | X33: 111432010.2
A34: Septiembre | B34: 27260708.56 | C34: 34348241 | D34: 40748216.77 | E34: 28769185 | F34: 44253914.33 | G34: 81716065.65 | H34: 91236695 | I34: 58013328.79 | J34: 92356359 | K34: 97336536.7 | L34: 90917088.26 | M34: 85943856.1 | N34: =+N15/22 -> 48973185.23 | O34: =O15/22 -> 52918605.64 | P34: 81253730.91 | Q34: =+Q15/21 -> 78604262.81 | R34: =+R15/20 -> 65531480.6 | S34: =+S15/21 -> 99697059.48 | T34: =+T15/22 -> 81247711.77 | U34: 110957882.6 | V34: =+V16/18 -> 67629427.22 | W34: =+W15/22 -> 92989083.45 | X34: =+X15/21 -> 118119959.5
A35: Octubre | B35: 30400102.18 | C35: 37651061.14 | D35: 34505211.8 | E35: 33039431 | F35: 43444008.9 | G35: 70565428.55 | H35: 67457164.59 | I35: 53442824.05 | J35: 101661942.3 | K35: 93435764.95 | L35: 77035977.55 | M35: =+M16/22 -> 70344354.27 | N35: =+N16/23 -> 77455351.39 | O35: =O16/21 -> 54361260.1 | P35: =+P16/20 -> 85320196.85 | Q35: 67744597.76 | R35: =+R16/22 -> 53819511.77 | S35: 89919192.14 | T35: 77978188.5 | U35: =+U16/21 -> 115076980.3 | V35: 57968080.48 | W35: =+W16/20 -> 37178278.45 | X35: =+X16/22 -> 116052423.3
A36: Noviembre | B36: 26618568.95 | C36: 28347640.95 | D36: 32602468.18 | E36: 31390216 | F36: 37190159.14 | G36: 67251254.9 | H36: 56649692.1 | I36: 51652680.19 | J36: 71639930.57 | K36: 66400415.05 | L36: 72067874.1 | M36: =+M17/21 -> 52813681.76 | N36: =+N17/19 -> 98638845.16 | O36: =O17/20 -> 22544419.05 | P36: =+P17/21 -> 76131696.95 | Q36: =+Q17/22 -> 59446204.27 | R36: =+R17/18 -> 45001272.5 | S36: =+S17/19 -> 115032713.2 | T36: =+T18/18 -> 93933751.67 | U36: =+U17/21 -> 97271811.29 | V36: 80808489.19 | W36: 47807623.43 | X36: =+X17/20 -> 99960906.9
A37: Diciembre | B37: 28335749.05 | C37: 38003898.79 | D37: 47368828.65 | E37: 41197953 | F37: 52173187.37 | G37: 83650738.72 | H37: 75473250.94 | I37: 39801356.4 | J37: 76660098.19 | K37: 81873725 | L37: 80901199.84 | M37: =+M18/22 -> 55928519.18 | N37: =+N18/18 -> 99505035.94 | O37: =O18/18 -> 116471497.6 | P37: =+P18/20 -> 70018309.85 | Q37: =+Q18/19 -> 60729172.47 | R37: =+R18/21 -> 49548304.76 | S37: 105877023.6 | T37: 80514644.29 | U37: =+U18/20 -> 133914835.5 | V37: 185331980.1 | W37: =+W18/19 -> 65570600.74 | X37: 103479161.1
